Departmental Family,Entity,Date,Expense Type,Expense Area,Supplier,Transaction Number,Amount
Department for Work and Pensions,European Social Fund,14-Jun-12,INTRA DWP PAYABLES,STR,DEPARTMENT FOR WORK & PENSIONS,5000001052,"50,000,000"
Department for Work and Pensions,Corporate,29-Jun-12,ACCOMMODATION,COO,TELEREAL TRILLIUM,2025857000,"31,767,208"
Department for Work and Pensions,Corporate,15-Jun-12,HOSTING,COO,HP ENTERPRISE SERVICES UK LTD,2025694207,"14,310,429"
Department for Work and Pensions,Employment Programmes,06-Jun-12,GRANTS IN AID,STR,REMPLOY LTD,1005267,"8,000,000"
Department for Work and Pensions,Corporate,26-Jun-12,MEDICAL SERVICES,COO,ATOS HEALTHCARE,2025782458,"7,558,613"
Department for Work and Pensions,Corporate,15-Jun-12,NETWORK,COO,BT GLOBAL SERVICES,2025692685,"7,124,254"
Department for Work and Pensions,European Social Fund,07-Jun-12,ESF Expenditure,STR,NATIONAL OFFENDER MANAGEMENT SERVICES,5000001045,"6,595,893"
Department for Work and Pensions,Corporate,29-Jun-12,BANKING AND ENCASHMENT COSTS,COO,POST OFFICE LTD,1005303,"5,374,244"
Department for Work and Pensions,Corporate,26-Jun-12,IS/IT,COO,SPECIALIST COMPUTER CENTRES PLC,2025790523,"5,221,878"
Department for Work and Pensions,Corporate,29-Jun-12,ACCOMMODATION,COO,TELEREAL TRILLIUM,2025857001,"5,105,734"
Department for Work and Pensions,Corporate,15-Jun-12,COMPUTER SERVICES,CIT,ACCENTURE UK LTD,2025692593,"4,864,614"
Department for Work and Pensions,Corporate,26-Jun-12,COMPUTER SERVICES,COO,HP ENTERPRISE SERVICES UK LTD,2025787493,"4,724,101"
Department for Work and Pensions,Corporate,06-Jun-12,GRANTS IN AID,COO,THE PENSIONS REGULATOR,1005269,"4,551,248"
Department for Work and Pensions,Corporate,12-Jun-12,COMPUTER SERVICES,COO,HP ENTERPRISE SERVICES UK LTD,2025624506,"4,509,054"
Department for Work and Pensions,Corporate,12-Jun-12,COMPUTER SERVICES,COO,ACCENTURE UK LTD,2025623383,"4,440,479"
Department for Work and Pensions,Corporate,29-Jun-12,TRADE DEBTORS,Excluded,TELEREAL TRILLIUM,2025857000,"4,349,428"
Department for Work and Pensions,Corporate,22-Jun-12,MEDICAL SERVICES,COO,ATOS HEALTHCARE,2025772995,"4,231,303"
Department for Work and Pensions,Corporate,12-Jun-12,COMPUTER SERVICES,CIT,IBM UNITED KINGDOM LTD,2025624548,"3,891,835"
Department for Work and Pensions,Corporate,12-Jun-12,COMPUTER SERVICES,COO,HP ENTERPRISE SERVICES UK LTD,2025624506,"3,782,910"
Department for Work and Pensions,Corporate,15-Jun-12,COMPUTER SERVICES,COO,ACCENTURE UK LTD,2025692593,"3,513,900"
Department for Work and Pensions,Corporate,11-Jun-12,AOS CONTRACTED OUT SERVICES,COO,BALFOUR BEATTY WORKPLACE LTD,2025618546,"3,468,849"
Department for Work and Pensions,Employment Programmes,21-Jun-12,INTRA DWP PAYABLES,Excluded,DWP PROGRAMME NIF MANUAL PAYMENTS,2003281,"3,226,094"
Department for Work and Pensions,Corporate,15-Jun-12,COMPUTER SERVICES,COO,BT GLOBAL SERVICES,2025692685,"3,221,164"
Department for Work and Pensions,Corporate,15-Jun-12,COMPUTER SERVICES,COO,HP ENTERPRISE SERVICES UK LTD,2025694207,"2,678,120"
Department for Work and Pensions,Corporate,19-Jun-12,MEDICAL SERVICES,COO,ATOS HEALTHCARE,2025702528,"2,471,177"
Department for Work and Pensions,Corporate,22-Jun-12,Accommodation Costs,COO,HMRC,2025775718,"2,364,064"
Department for Work and Pensions,Employment Programmes,28-Jun-12,GRANTS IN AID,STR,REMPLOY LTD,2025852497,"2,350,000"
Department for Work and Pensions,Corporate,20-Jun-12,POSTAGE,COO,TNT UK LTD,2025764425,"2,254,413"
Department for Work and Pensions,Corporate,15-Jun-12,IS/IT,COO,HP ENTERPRISE SERVICES UK LTD,2025694207,"2,088,644"
Department for Work and Pensions,Corporate,26-Jun-12,EMPLOYMENT PROGRAMMES,Excluded,NEST CORPORATION,2003296,"2,000,000"
Department for Work and Pensions,Corporate,28-Jun-12,MEDICAL SERVICES,COO,ATOS HEALTHCARE,2025850737,"1,929,425"
Department for Work and Pensions,Corporate,07-Jun-12,SIAM,COO,HP ENTERPRISE SERVICES UK LTD,2025610730,"1,897,027"
Department for Work and Pensions,Corporate,18-Jun-12,TELEPHONE AND POSTAGE,COO,UK MAIL,2025701035,"1,830,809"
Department for Work and Pensions,Corporate,29-Jun-12,ACCOMMODATION,COO,TELEREAL TRILLIUM,2025857000,"1,669,260"
Department for Work and Pensions,Jobcentre Plus,29-Jun-12,MEDICAL SERVICES,COO,ATOS HEALTHCARE,2025854477,"1,601,457"
Department for Work and Pensions,Corporate,28-Jun-12,Accommodation Costs,COO,EDF ENERGY 1 LTD SCC UTILITIES ONLY,1005297,"1,600,738"
Department for Work and Pensions,Corporate,11-Jun-12,Accommodation Costs,COO,EDF ENERGY 1 LTD SCC UTILITIES ONLY,2025619954,"1,572,871"
Department for Work and Pensions,Corporate,29-Jun-12,PAYMENTS TO CSAS,COO,DEPARTMENT FOR SOCIAL DEVELOPMENT,1005301,"1,553,993"
Department for Work and Pensions,Corporate,12-Jun-12,COMPUTER SERVICES,COO,HP ENTERPRISE SERVICES UK LTD,2025624506,"1,430,929"
Department for Work and Pensions,Corporate,26-Jun-12,IS/IT,COO,ORACLE CORPORATION UK LTD,2025789338,"1,426,252"
Department for Work and Pensions,Corporate,29-Jun-12,Accommodation Costs,COO,NORTH TYNESIDE COUNCIL,2025856617,"1,264,080"
Department for Work and Pensions,Corporate,29-Jun-12,ACCOMMODATION,COO,TELEREAL TRILLIUM,2025857000,"1,228,693"
Department for Work and Pensions,Corporate,11-Jun-12,COMPUTER SERVICES,COO,HP ENTERPRISE SERVICES UK LTD,2025620165,"1,157,858"
Department for Work and Pensions,Corporate,07-Jun-12,BANKING AND ENCASHMENT COSTS,F&C,HSBC BANK PLC,2025610732,"1,061,854"
Department for Work and Pensions,Corporate,21-Jun-12,OTHER GOODS AND SERVICES,COO,VALUATION OFFICE AGENCY,2003283,"1,058,333"
Department for Work and Pensions,Corporate,01-Jun-12,COMPUTER SERVICES,COO,XEROX UK LTD 3W,2025548059,"1,045,475"
Department for Work and Pensions,Corporate,28-Jun-12,TELEPHONE AND POSTAGE,COO,ROYAL MAIL GROUP PLC,2025852501,"1,031,987"
Department for Work and Pensions,Corporate,07-Jun-12,Consultancy Fee,COO,HM REVENUE & CUSTOMS,2025610722,"1,004,316"
Department for Work and Pensions,Housing Benefits,14-Jun-12,Housing Benefit Admin,COO,BIRMINGHAM CITY COUNCIL,2025692043,"998,076"
Department for Work and Pensions,Corporate,08-Jun-12,APPS DEV,COO,HP ENTERPRISE SERVICES UK LTD,2025615786,"981,764"
Department for Work and Pensions,Corporate,11-Jun-12,COMPUTER SERVICES,COO,ACCENTURE UK LTD,2025618467,"981,471"
Department for Work and Pensions,Corporate,29-Jun-12,TRADE DEBTORS,Excluded,TELEREAL TRILLIUM,2025857001,"968,682"
Department for Work and Pensions,Corporate,15-Jun-12,COMPUTER SERVICES,CIT,IBM UNITED KINGDOM LTD,2025694237,"963,793"
Department for Work and Pensions,Corporate,12-Jun-12,APPS DEV,COO,HP ENTERPRISE SERVICES UK LTD,2025624506,"941,042"
Department for Work and Pensions,Corporate,13-Jun-12,CONTRACTED OUT SERVICES,COO,XEROX UK LTD 3W,2025682858,"919,976"
Department for Work and Pensions,Corporate,15-Jun-12,COMPUTER SERVICES,COO,BT GLOBAL SERVICES,2025692685,"883,858"
Department for Work and Pensions,Corporate,15-Jun-12,ACCOMMODATION,COO,TELEREAL TRILLIUM,2025695554,"767,738"
Department for Work and Pensions,Corporate,28-Jun-12,Accommodation Costs,COO,CORONA ENERGY RETAIL 4 LTD SCC UTILITIES ONLY,1005296,"728,878"
Department for Work and Pensions,Housing Benefits,14-Jun-12,Housing Benefit Admin,COO,CITY OF GLASGOW,2025692091,"713,066"
Department for Work and Pensions,Corporate,29-Jun-12,ACCOMMODATION,COO,TELEREAL TRILLIUM,2025857000,"707,131"
Department for Work and Pensions,Corporate,26-Jun-12,OTHER MAJOR CONTRACTS,COO,SANTANDER,1005291,"687,704"
Department for Work and Pensions,Corporate,11-Jun-12,COMPUTER SERVICES,COO,HP ENTERPRISE SERVICES UK LTD,2025620165,"674,781"
Department for Work and Pensions,Corporate,15-Jun-12,COMPUTER SERVICES,COO,HP ENTERPRISE SERVICES UK LTD,2025694207,"660,752"
Department for Work and Pensions,Corporate,12-Jun-12,OTHER EXPENDITURE,COO,SPECIALIST COMPUTER CENTRES PLC,2025626383,"634,225"
Department for Work and Pensions,Employment Programmes,29-Jun-12,EP PROVIDER PAYMENT - NON-WORK PROGRAMME,COO,SHAW TRUST,2025856943,"630,922"
Department for Work and Pensions,Corporate,18-Jun-12,COMPUTER SERVICES,COO,BT GLOBAL SERVICES,2025697149,"614,155"
Department for Work and Pensions,Corporate,22-Jun-12,COMPUTER SERVICES,COO,ATOS ORIGIN IT SERVICES UK LTD,2025772996,"583,384"
Department for Work and Pensions,Housing Benefits,14-Jun-12,Housing Benefit Admin,COO,LIVERPOOL CITY COUNCIL,2025692192,"564,545"
Department for Work and Pensions,Corporate,29-Jun-12,ACCOMMODATION,COO,TELEREAL TRILLIUM,2025857000,"546,727"
Department for Work and Pensions,Corporate,07-Jun-12,COMPUTER SERVICES,COO,HP ENTERPRISE SERVICES UK LTD,2025610730,"542,601"
Department for Work and Pensions,Corporate,15-Jun-12,COMPUTER SERVICES,COO,BT GLOBAL SERVICES,2025692685,"538,065"
Department for Work and Pensions,Housing Benefits,14-Jun-12,Housing Benefit Admin,COO,LEEDS CITY COUNCIL,2025692187,"535,800"
Department for Work and Pensions,Corporate,29-Jun-12,ACCOMMODATION,COO,TELEREAL TRILLIUM,2025857000,"524,559"
Department for Work and Pensions,Corporate,12-Jun-12,COMPUTER SERVICES,COO,HP ENTERPRISE SERVICES UK LTD,2025624506,"516,033"
Department for Work and Pensions,Housing Benefits,14-Jun-12,Housing Benefit Admin,COO,MANCHESTER CITY COUNCIL,2025692225,"507,919"
Department for Work and Pensions,Corporate,12-Jun-12,COMPUTER SERVICES,COO,IBM UNITED KINGDOM LTD,2025624548,"504,407"
Department for Work and Pensions,Corporate,13-Jun-12,AOS CONTRACTED OUT SERVICES,COO,CAPITA CUSTOMER MANAGEMENT LTD,2025637097,"494,021"
Department for Work and Pensions,Corporate,12-Jun-12,ACCOMMODATION,COO,DEPARTMENT OF HEALTH,5029075,"432,092"
Department for Work and Pensions,Corporate,14-Jun-12,AOS CONTRACTED OUT SERVICES,My Civil Seevice Pension,CAPITA BUSINESS SERVICES LTD,2025686288,"419,250"
Department for Work and Pensions,Housing Benefits,14-Jun-12,Housing Benefit Admin,COO,BRADFORD METROPOLITAN BOROUGH COUNCIL,2025692056,"417,430"
Department for Work and Pensions,Corporate,26-Jun-12,COMPUTER SERVICES,COO,ATOS ORIGIN IT SERVICES UK LTD,2025782459,"416,117"
Department for Work and Pensions,Corporate,22-Jun-12,COMPUTER SERVICES,COO,ATOS ORIGIN IT SERVICES UK LTD,2025772996,"405,658"
Department for Work and Pensions,Housing Benefits,14-Jun-12,Housing Benefit Admin,COO,DURHAM COUNCIL,2025692120,"403,465"
Department for Work and Pensions,Corporate,18-Jun-12,CONTRACTED OUT SERVICES,COO,CAPITA BUSINESS SERVICES LTD,2025697322,"397,573"
Department for Work and Pensions,Corporate,13-Jun-12,IS/IT,CIT,SPECIALIST COMPUTER CENTRES PLC,2025679164,"391,248"
Department for Work and Pensions,Corporate,29-Jun-12,ACCOMMODATION,COO,TELEREAL TRILLIUM,2025857001,"390,342"
Department for Work and Pensions,Employment Programmes,13-Jun-12,EP PROVIDER PAYMENT - NON-WORK PROGRAMME,COO,A4E LTD,2025631918,"388,862"
Department for Work and Pensions,Housing Benefits,14-Jun-12,Housing Benefit Admin,COO,LONDON BOROUGH OF TOWER HAMLETS,2025692218,"387,971"
Department for Work and Pensions,Corporate,20-Jun-12,HOSTING,COO,HP ENTERPRISE SERVICES UK LTD,2025729755,"377,955"
Department for Work and Pensions,Corporate,12-Jun-12,COMPUTER SERVICES,COO,ACCENTURE UK LTD,2025623383,"374,373"
Department for Work and Pensions,Housing Benefits,14-Jun-12,Housing Benefit Admin,COO,SHEFFIELD CITY COUNCIL,2025692309,"372,954"
Department for Work and Pensions,Housing Benefits,14-Jun-12,Housing Benefit Admin,COO,LONDON BOROUGH OF LAMBETH,2025692210,"369,806"
Department for Work and Pensions,Housing Benefits,14-Jun-12,Housing Benefit Admin,COO,LONDON BOROUGH OF LEWISHAM,2025692211,"365,854"
Department for Work and Pensions,Employment Programmes,29-Jun-12,EP PROVIDER PAYMENT - NON-WORK PROGRAMME,COO,SHAW TRUST,2025856943,"365,364"
Department for Work and Pensions,Housing Benefits,14-Jun-12,Housing Benefit Admin,COO,HACKNEY LBC,2025692159,"364,264"
Department for Work and Pensions,Corporate,25-Jun-12,Accommodation Costs,COO,HMRC,2025779839,"362,845"
Department for Work and Pensions,Housing Benefits,14-Jun-12,Housing Benefit Admin,COO,CORNWALL COUNCIL,2025692100,"354,246"
Department for Work and Pensions,Corporate,29-Jun-12,ACCOMMODATION,COO,TELEREAL TRILLIUM,2025857002,"353,532"
Department for Work and Pensions,Housing Benefits,14-Jun-12,Housing Benefit Admin,COO,BRISTOL CITY COUNCIL,2025692062,"353,494"
Department for Work and Pensions,Housing Benefits,14-Jun-12,Housing Benefit Admin,COO,LONDON BOROUGH OF SOUTHWARK,2025692216,"352,875"
Department for Work and Pensions,Corporate,12-Jun-12,COMPUTER SERVICES,COO,ACCENTURE UK LTD,2025623383,"352,656"
Department for Work and Pensions,Corporate,12-Jun-12,COMPUTER SERVICES,COO,ACCENTURE UK LTD,2025623383,"348,839"
Department for Work and Pensions,Corporate,22-Jun-12,MEDICAL SERVICES,COO,ATOS HEALTHCARE,2025772995,"348,431"
Department for Work and Pensions,Corporate,15-Jun-12,COMPUTER SERVICES,COO,HP ENTERPRISE SERVICES UK LTD,2025694207,"337,833"
Department for Work and Pensions,Corporate,22-Jun-12,Accommodation Costs,COO,HMRC,2025775720,"333,910"
Department for Work and Pensions,Corporate,18-Jun-12,HOSTING,COO,HP ENTERPRISE SERVICES UK LTD,2025699333,"333,168"
Department for Work and Pensions,Corporate,18-Jun-12,CONTRACTED OUT SERVICES,COO,CAPITA BUSINESS SERVICES LTD,2025697322,"329,871"
Department for Work and Pensions,Housing Benefits,14-Jun-12,Housing Benefit Admin,COO,EDINBURGH DISTRICT COUNCIL,2025692137,"326,872"
Department for Work and Pensions,Corporate,13-Jun-12,COMPUTER SERVICES,COO,SPECIALIST COMPUTER CENTRES PLC,2025679164,"317,962"
Department for Work and Pensions,Housing Benefits,14-Jun-12,Housing Benefit Admin,COO,LONDON BOROUGH OF NEWHAM,2025692213,"307,497"
Department for Work and Pensions,Corporate,29-Jun-12,ACCOMMODATION,COO,TELEREAL TRILLIUM,2025857000,"306,273"
Department for Work and Pensions,Housing Benefits,14-Jun-12,Housing Benefit Admin,COO,LONDON BOROUGH OF BRENT,2025692196,"304,136"
Department for Work and Pensions,Housing Benefits,14-Jun-12,Housing Benefit Admin,COO,CROYDON PEO%,2025692107,"294,989"
Department for Work and Pensions,Employment Programmes,29-Jun-12,EP PROVIDER PAYMENT - NON-WORK PROGRAMME,COO,WORKING LINKS,2025857068,"291,249"
Department for Work and Pensions,Housing Benefits,14-Jun-12,Housing Benefit Admin,COO,SANDWELL BOROUGH COUNCIL,2025692301,"289,864"
Department for Work and Pensions,Corporate,15-Jun-12,COMPUTER SERVICES,CIT,ACCENTURE UK LTD,2025692593,"288,206"
Department for Work and Pensions,Housing Benefits,14-Jun-12,Housing Benefit Admin,COO,LONDON BOROUGH OF ENFIELD,2025692200,"287,280"
Department for Work and Pensions,Corporate,29-Jun-12,ACCOMMODATION,COO,TELEREAL TRILLIUM,2025857000,"285,150"
Department for Work and Pensions,Corporate,29-Jun-12,ACCOMMODATION,COO,TELEREAL TRILLIUM,2025857001,"280,636"
Department for Work and Pensions,Housing Benefits,14-Jun-12,Housing Benefit Admin,COO,KIRKLEES METROPOLITAN BOROUGH COUNCIL,2025692184,"280,071"
Department for Work and Pensions,Housing Benefits,14-Jun-12,Housing Benefit Admin,COO,LONDON BOROUGH OF HARINGEY,2025692203,"278,903"
Department for Work and Pensions,Corporate,29-Jun-12,ACCOMMODATION,COO,TELEREAL TRILLIUM,2025857001,"277,804"
Department for Work and Pensions,Housing Benefits,14-Jun-12,Housing Benefit Admin,COO,LONDON BOROUGH OF ISLINGTON,2025692208,"276,636"
Department for Work and Pensions,Housing Benefits,14-Jun-12,Housing Benefit Admin,COO,LONDON BOROUGH OF EALING,2025692199,"274,156"
Department for Work and Pensions,Housing Benefits,14-Jun-12,Housing Benefit Admin,COO,NOTTINGHAM CITY COUNCIL,2025692263,"272,395"
Department for Work and Pensions,Housing Benefits,14-Jun-12,Housing Benefit Admin,COO,LEICESTER CITY COUNCIL,2025692188,"267,299"
Department for Work and Pensions,Corporate,11-Jun-12,AOS CONTRACTED OUT SERVICES,COO,BALFOUR BEATTY WORKPLACE LTD,2025618546,"264,442"
Department for Work and Pensions,Housing Benefits,14-Jun-12,Housing Benefit Admin,COO,SUNDERLAND CITY COUNCIL,2025692349,"263,528"
Department for Work and Pensions,Employment Programmes,29-Jun-12,EP PROVIDER PAYMENT - NON-WORK PROGRAMME,COO,SEETEC BUSINESS TECHNOLOGY CENTRE LTD,2025856939,"262,824"
Department for Work and Pensions,Housing Benefits,14-Jun-12,Housing Benefit Admin,COO,COVENTRY CITY COUNCIL,2025692104,"262,571"
Department for Work and Pensions,Housing Benefits,14-Jun-12,Housing Benefit Admin,COO,WALSALL BOROUGH COUNCIL,2025692376,"260,889"
Department for Work and Pensions,Housing Benefits,14-Jun-12,Housing Benefit Admin,COO,NORTH LANARKSHIRE COUNCIL,2025692253,"260,527"
Department for Work and Pensions,Housing Benefits,14-Jun-12,Housing Benefit Admin,COO,LONDON BOROUGH OF GREENWICH,2025692201,"260,388"
Department for Work and Pensions,Employment Programmes,29-Jun-12,EP PROVIDER PAYMENT - NON-WORK PROGRAMME,COO,THE PLUSS ORGANISATION,2025857007,"258,611"
Department for Work and Pensions,Employment Programmes,29-Jun-12,EP PROVIDER PAYMENT - NON-WORK PROGRAMME,COO,SHAW TRUST,2025856943,"258,268"
Department for Work and Pensions,Housing Benefits,14-Jun-12,Housing Benefit Admin,COO,WAKEFIELD METROPOLITAN DISTRICT COUNCIL,2025692375,"256,594"
Department for Work and Pensions,Housing Benefits,14-Jun-12,Housing Benefit Admin,COO,WIRRAL BOROUGH COUNCIL,2025692400,"255,116"
Department for Work and Pensions,Housing Benefits,14-Jun-12,Housing Benefit Admin,COO,LONDON BOROUGH OF WANDSWORTH,2025692220,"254,126"
Department for Work and Pensions,Corporate,12-Jun-12,COMPUTER SERVICES,COO,HP ENTERPRISE SERVICES UK LTD,2025624506,"253,660"
Department for Work and Pensions,Corporate,27-Jun-12,IS/IT,COO,SPECIALIST COMPUTER CENTRES PLC,2025844901,"250,844"
Department for Work and Pensions,SHARED SERVICES,18-Jun-12,COMPUTER SERVICES,COO,FUJITSU SERVICES LTD,2025699170,"250,553"
Department for Work and Pensions,Housing Benefits,14-Jun-12,Housing Benefit Admin,COO,BRIGHTON & HOVE COUNCIL,2025692061,"249,874"
Department for Work and Pensions,Housing Benefits,14-Jun-12,Housing Benefit Admin,COO,CARDIFF CITY COUNCIL,2025692074,"249,187"
Department for Work and Pensions,Housing Benefits,14-Jun-12,Housing Benefit Admin,COO,KINGSTON UPON HULL CITY COUNCIL,2025692183,"249,070"
Department for Work and Pensions,Housing Benefits,14-Jun-12,Housing Benefit Admin,COO,FIFE COUNCIL,2025692146,"242,250"
Department for Work and Pensions,Employment Programmes,29-Jun-12,EP PROVIDER PAYMENT - NON-WORK PROGRAMME,COO,SHAW TRUST,2025856943,"242,051"
Department for Work and Pensions,Housing Benefits,14-Jun-12,Housing Benefit Admin,COO,LONDON BOROUGH OF CAMDEN,2025692198,"241,619"
Department for Work and Pensions,Employment Programmes,14-Jun-12,RESIDENTIAL TRAINING,COO,QUEEN ELIZABETHS FOUNDATION TRAINING COLLEGE,2025689567,"241,335"
Department for Work and Pensions,Corporate,06-Jun-12,NETWORK,COO,AIRWAVE SOLUTIONS LTD,2025553586,"241,270"
Department for Work and Pensions,Housing Benefits,14-Jun-12,Housing Benefit Admin,COO,SALFORD CITY COUNCIL,2025692300,"239,018"
Department for Work and Pensions,Employment Programmes,29-Jun-12,EP PROVIDER PAYMENT - NON-WORK PROGRAMME,COO,SHAW TRUST,2025856943,"238,856"
Department for Work and Pensions,Employment Programmes,14-Jun-12,RESIDENTIAL TRAINING,COO,FINCHALE TRAINING COLLEGE,2025687743,"238,145"
Department for Work and Pensions,Housing Benefits,14-Jun-12,Housing Benefit Admin,COO,WOLVERHAMPTON CITY COUNCIL,2025692403,"237,951"
Department for Work and Pensions,European Social Fund,28-Jun-12,ESF Expenditure,STR,NATIONAL INSTITUTE OF ADULT CONTINUING EDUCATION NIACE,5000001062,"237,298"
Department for Work and Pensions,Housing Benefits,14-Jun-12,Housing Benefit Admin,COO,DONCASTER METROPOLITAN BOROUGH COUNCIL,2025692115,"236,669"
Department for Work and Pensions,Corporate,07-Jun-12,COMPUTER SERVICES,COO,HP ENTERPRISE SERVICES UK LTD,2025610730,"236,203"
Department for Work and Pensions,Housing Benefits,14-Jun-12,Housing Benefit Admin,COO,CITY OF WESTMINSTER,2025692092,"235,200"
Department for Work and Pensions,Corporate,19-Jun-12,BANKING AND ENCASHMENT COSTS,COO,HSBC BANK PLC,2025705481,"234,767"
Department for Work and Pensions,Housing Benefits,14-Jun-12,Housing Benefit Admin,COO,LONDON BOROUGH OF BARNET,2025692194,"234,401"
Department for Work and Pensions,Corporate,22-Jun-12,COMPUTER SERVICES,COO,ATOS ORIGIN IT SERVICES UK LTD,2025772996,"234,031"
Department for Work and Pensions,Housing Benefits,14-Jun-12,Housing Benefit Admin,COO,NEWCASTLE CITY COUNCIL,2025692242,"233,580"
Department for Work and Pensions,Corporate,11-Jun-12,ACCOMMODATION COSTS,COO,TELEREAL TRILLIUM,2025621608,"232,067"
Department for Work and Pensions,Employment Programmes,29-Jun-12,EP PROVIDER PAYMENT - NON-WORK PROGRAMME,COO,THE PLUSS ORGANISATION,2025857007,"228,053"
Department for Work and Pensions,Corporate,01-Jun-12,APPS DEV,CIT,HP ENTERPRISE SERVICES UK LTD,2025545986,"224,720"
Department for Work and Pensions,Housing Benefits,14-Jun-12,Housing Benefit Admin,COO,WIGAN BOROUGH COUNCIL,2025692396,"223,621"
Department for Work and Pensions,Housing Benefits,14-Jun-12,Housing Benefit Admin,COO,LONDON BOROUGH OF WALTHAM FOREST,2025692219,"222,537"
Department for Work and Pensions,Corporate,15-Jun-12,COMPUTER SERVICES,COO,ACCENTURE UK LTD,2025692593,"222,484"
Department for Work and Pensions,Corporate,26-Jun-12,IS/IT,COO,SPECIALIST COMPUTER CENTRES PLC,2025790523,"218,026"
Department for Work and Pensions,Housing Benefits,14-Jun-12,Housing Benefit Admin,COO,BOLTON METROPOLITAN BOROUGH COUNCIL,2025692049,"217,867"
Department for Work and Pensions,Housing Benefits,14-Jun-12,Housing Benefit Admin,COO,SOUTH LANARKSHIRE COUNCIL,2025692324,"215,286"
Department for Work and Pensions,Corporate,12-Jun-12,CONTRACTED OUT OFFICE SERVICES,COO,BALFOUR BEATTY WORKPLACE LTD,2025623465,"214,855"
Department for Work and Pensions,Employment Programmes,29-Jun-12,EP PROVIDER PAYMENT - NON-WORK PROGRAMME,COO,SHAW TRUST,2025856943,"214,665"
Department for Work and Pensions,Housing Benefits,14-Jun-12,Housing Benefit Admin,COO,WILTSHIRE COUNCIL,2025692397,"214,362"
Department for Work and Pensions,Employment Programmes,29-Jun-12,EP PROVIDER PAYMENT - NON-WORK PROGRAMME,COO,SHAW TRUST,2025856943,"213,808"
Department for Work and Pensions,Employment Programmes,29-Jun-12,EP PROVIDER PAYMENT - NON-WORK PROGRAMME,COO,WORKING LINKS,2025857068,"213,059"
Department for Work and Pensions,Employment Programmes,29-Jun-12,EP PROVIDER PAYMENT - NON-WORK PROGRAMME,COO,ADVANCE HOUSING & SUPPORT LTD,2025854468,"212,902"
Department for Work and Pensions,Corporate,12-Jun-12,OTHER EXPENDITURE,COO,ACCENTURE UK LTD,2025623383,"211,997"
Department for Work and Pensions,Housing Benefits,14-Jun-12,Housing Benefit Admin,COO,DUDLEY METROPOLITAN BOROUGH COUNCIL,2025692117,"210,568"
Department for Work and Pensions,Housing Benefits,14-Jun-12,Housing Benefit Admin,COO,STOKE ON TRENT CITY COUNCIL,2025692344,"209,942"
Department for Work and Pensions,Housing Benefits,14-Jun-12,Housing Benefit Admin,COO,NORTHUMBERLAND COUNCIL,2025692261,"204,167"
Department for Work and Pensions,Employment Programmes,29-Jun-12,EP PROVIDER PAYMENT - NON-WORK PROGRAMME,COO,SHAW TRUST,2025856943,"203,713"
Department for Work and Pensions,Employment Programmes,14-Jun-12,RESIDENTIAL TRAINING,COO,ST LOYES COLLEGE FOUNDATION,2025690205,"203,209"
Department for Work and Pensions,Corporate,13-Jun-12,APPS DEV,COO,HP ENTERPRISE SERVICES UK LTD,2025647383,"203,156"
Department for Work and Pensions,Corporate,06-Jun-12,IS/IT,COO,SPECIALIST COMPUTER CENTRES PLC,2025601823,"200,736"
Department for Work and Pensions,Housing Benefits,14-Jun-12,Housing Benefit Admin,COO,PLYMOUTH CITY COUNCIL,2025692273,"198,080"
Department for Work and Pensions,Housing Benefits,14-Jun-12,Housing Benefit Admin,COO,SEFTON METROPOLITAN BOROUGH COUNCIL,2025692305,"195,940"
Department for Work and Pensions,European Social Fund,20-Jun-12,ESF Expenditure,STR,GOVERNMENT OF GIBRALTAR DEPARTMENT OF EDUCATION & TRAINING,5000001057,"195,506"
Department for Work and Pensions,Corporate,13-Jun-12,APPS DEV,COO,HP ENTERPRISE SERVICES UK LTD,2025647383,"190,693"
Department for Work and Pensions,Employment Programmes,29-Jun-12,EP PROVIDER PAYMENT - NON-WORK PROGRAMME,COO,SHAW TRUST,2025856943,"190,504"
Department for Work and Pensions,Corporate,07-Jun-12,COMPUTER SERVICES,COO,ACCENTURE UK LTD,2025608686,"189,937"
Department for Work and Pensions,Housing Benefits,14-Jun-12,Housing Benefit Admin,COO,LONDON BOROUGH OF HOUNSLOW,2025692207,"188,853"
Department for Work and Pensions,Housing Benefits,14-Jun-12,Housing Benefit Admin,COO,LONDON BOROUGH OF HILLINGDON,2025692206,"188,783"
Department for Work and Pensions,Corporate,13-Jun-12,BANKING AND ENCASHMENT COSTS,COO,POST OFFICE LTD,1005275,"188,222"
Department for Work and Pensions,Corporate,07-Jun-12,ACCOMMODATION COSTS,COO,TELEREAL TRILLIUM,2025612999,"186,115"
Department for Work and Pensions,Employment Programmes,29-Jun-12,EP PROVIDER PAYMENT - NON-WORK PROGRAMME,COO,SHAW TRUST,2025856943,"185,731"
Department for Work and Pensions,Housing Benefits,14-Jun-12,Housing Benefit Admin,COO,CHESHIRE WEST & CHESTER COUNCIL,2025692084,"185,303"
Department for Work and Pensions,Housing Benefits,14-Jun-12,Housing Benefit Admin,COO,LONDON BOROUGH OF HAMMERSMITH & FULHAM,2025692202,"184,565"
Department for Work and Pensions,Housing Benefits,14-Jun-12,Housing Benefit Admin,COO,TAMESIDE BOROUGH COUNCIL,2025692354,"183,274"
Department for Work and Pensions,Employment Programmes,29-Jun-12,EP PROVIDER PAYMENT - NON-WORK PROGRAMME,COO,MOMENTUM SCOTLAND,2025856561,"181,939"
Department for Work and Pensions,Employment Programmes,29-Jun-12,EP PROVIDER PAYMENT - NON-WORK PROGRAMME,COO,SHAW TRUST,2025856943,"181,873"
Department for Work and Pensions,Housing Benefits,14-Jun-12,Housing Benefit Admin,COO,EAST RIDING OF YORKSHIRE BOROUGH COUNCIL,2025692132,"181,749"
Department for Work and Pensions,Housing Benefits,14-Jun-12,Housing Benefit Admin,COO,RHONDDA CYNON TAFF COUNTY BOROUGH COUNCIL,2025692283,"180,953"
Department for Work and Pensions,Housing Benefits,14-Jun-12,Housing Benefit Admin,COO,SOUTHAMPTON CITY COUNCIL,2025692332,"179,659"
Department for Work and Pensions,Housing Benefits,14-Jun-12,Housing Benefit Admin,COO,ROTHERHAM BOROUGH COUNCIL,2025692292,"179,165"
Department for Work and Pensions,Employment Programmes,29-Jun-12,EP PROVIDER PAYMENT - NON-WORK PROGRAMME,COO,CDG WISE ABILITY LTD,2025854615,"178,801"
Department for Work and Pensions,Housing Benefits,14-Jun-12,Housing Benefit Admin,COO,MEDWAY TOWNS COUNCIL,2025692227,"178,216"
Department for Work and Pensions,Employment Programmes,29-Jun-12,EP PROVIDER PAYMENT - NON-WORK PROGRAMME,COO,WORKING LINKS,2025857068,"177,389"
Department for Work and Pensions,Housing Benefits,14-Jun-12,Housing Benefit Admin,COO,PORTSMOUTH CITY COUNCIL,2025692275,"175,480"
Department for Work and Pensions,Housing Benefits,14-Jun-12,Housing Benefit Admin,COO,OLDHAM BOROUGH COUNCIL,2025692266,"175,035"
Department for Work and Pensions,Housing Benefits,14-Jun-12,Housing Benefit Admin,COO,CHESHIRE EAST BOROUGH COUNCIL,2025692083,"174,467"
Department for Work and Pensions,Housing Benefits,14-Jun-12,Housing Benefit Admin,COO,BARNSLEY BOROUGH COUNCIL,2025692036,"174,144"
Department for Work and Pensions,Corporate,15-Jun-12,ACCOMMODATION,COO,TELEREAL TRILLIUM,2025695554,"173,122"
Department for Work and Pensions,Corporate,12-Jun-12,APPS DEV,COO,HP ENTERPRISE SERVICES UK LTD,2025624506,"172,983"
Department for Work and Pensions,Housing Benefits,14-Jun-12,Housing Benefit Admin,COO,SWANSEA CITY COUNCIL,2025692352,"172,616"
Department for Work and Pensions,Employment Programmes,29-Jun-12,EP PROVIDER PAYMENT - NON-WORK PROGRAMME,COO,SHAW TRUST,2025856943,"171,910"
Department for Work and Pensions,Corporate,22-Jun-12,COMPUTER SERVICES,COO,ATOS ORIGIN IT SERVICES UK LTD,2025772996,"171,233"
Department for Work and Pensions,Housing Benefits,14-Jun-12,Housing Benefit Admin,COO,MILTON KEYNES BOROUGH COUNCIL,2025692236,"171,130"
Department for Work and Pensions,Employment Programmes,29-Jun-12,EP PROVIDER PAYMENT - NON-WORK PROGRAMME,COO,SHAW TRUST,2025856943,"170,232"
Department for Work and Pensions,Corporate,11-Jun-12,COMPUTER SERVICES,COO,VODAFONE LTD,2025621684,"169,721"
Department for Work and Pensions,Housing Benefits,14-Jun-12,Housing Benefit Admin,COO,DERBY CITY COUNCIL,2025692113,"169,196"
Department for Work and Pensions,Corporate,27-Jun-12,COMPUTER SERVICES,COO,VODAFONE LTD,2025848161,"168,211"
Department for Work and Pensions,Housing Benefits,14-Jun-12,Housing Benefit Admin,COO,LONDON BOROUGH OF HARROW,2025692204,"168,129"
Department for Work and Pensions,Housing Benefits,14-Jun-12,Housing Benefit Admin,COO,STOCKPORT BOROUGH COUNCIL,2025692342,"167,151"
Department for Work and Pensions,Housing Benefits,14-Jun-12,Housing Benefit Admin,COO,ROCHDALE BOROUGH COUNCIL,2025692287,"166,956"
Department for Work and Pensions,Housing Benefits,14-Jun-12,Housing Benefit Admin,COO,SHROPSHIRE COUNCIL,2025692312,"164,946"
Department for Work and Pensions,Corporate,15-Jun-12,TRADE DEBTORS,Excluded,TELEREAL TRILLIUM,2025695554,"164,008"
Department for Work and Pensions,Housing Benefits,14-Jun-12,Housing Benefit Admin,COO,LONDON BOROUGH OF BARKING & DAGENHAM,2025692193,"163,752"
Department for Work and Pensions,Employment Programmes,29-Jun-12,EP PROVIDER PAYMENT - NON-WORK PROGRAMME,COO,INGEUS UK LTD,2025856186,"162,777"
Department for Work and Pensions,Corporate,26-Jun-12,Accommodation Costs,COO,FORESTRY COMMISSION,2025787153,"161,420"
Department for Work and Pensions,Housing Benefits,14-Jun-12,Housing Benefit Admin,COO,BLACKPOOL BOROUGH COUNCIL,2025692046,"161,381"
Department for Work and Pensions,Housing Benefits,14-Jun-12,Housing Benefit Admin,COO,LONDON BOROUGH OF BROMLEY,2025692197,"161,252"
Department for Work and Pensions,Corporate,12-Jun-12,COMPUTER SERVICES,CIT,ACCENTURE,2025623380,"160,056"
Department for Work and Pensions,Corporate,25-Jun-12,Accommodation Costs,COO,HMRC,2025779839,"157,868"
Department for Work and Pensions,Housing Benefits,14-Jun-12,Housing Benefit Admin,COO,LONDON BOROUGH OF REDBRIDGE,2025692214,"157,315"
Department for Work and Pensions,Corporate,27-Jun-12,COMPUTER SERVICES,COO,CAPGEMINI UK PLC,2025802708,"157,163"
Department for Work and Pensions,Housing Benefits,14-Jun-12,Housing Benefit Admin,COO,KNOWSLEY BOROUGH COUNCIL,2025692185,"156,577"
Department for Work and Pensions,Housing Benefits,14-Jun-12,Housing Benefit Admin,COO,LONDON BOROUGH OF KENSINGTON & CHELSEA,2025692209,"156,446"
Department for Work and Pensions,Corporate,26-Jun-12,COMPUTER SERVICES,COO,ATOS ORIGIN IT SERVICES UK LTD,2025782459,"156,425"
Department for Work and Pensions,Employment Programmes,29-Jun-12,EP PROVIDER PAYMENT - NON-WORK PROGRAMME,COO,SHAW TRUST,2025856943,"155,142"
Department for Work and Pensions,Housing Benefits,14-Jun-12,Housing Benefit Admin,COO,GATESHEAD BOROUGH COUNCIL,2025692151,"154,556"
Department for Work and Pensions,Corporate,19-Jun-12,APPS DEV,COO,HP ENTERPRISE SERVICES UK LTD,2025705480,"153,953"
Department for Work and Pensions,Corporate,19-Jun-12,EMPLOYMENT ZONES,COO,PINNACLE PEOPLE,2025707368,"153,823"
Department for Work and Pensions,Corporate,28-Jun-12,TELEPHONE AND POSTAGE,COO,ROYAL MAIL GROUP PLC,2025852501,"152,190"
Department for Work and Pensions,Employment Programmes,06-Jun-12,EP PROVIDER PAYMENT - WORK PROGRAMME,COO,INGEUS UK LTD,2025570452,"151,886"
Department for Work and Pensions,Housing Benefits,14-Jun-12,Housing Benefit Admin,COO,BOURNEMOUTH BOROUGH COUNCIL,2025692054,"151,683"
Department for Work and Pensions,Housing Benefits,14-Jun-12,Housing Benefit Admin,COO,MIDDLESBROUGH COUNCIL,2025692234,"150,974"
Department for Work and Pensions,Housing Benefits,14-Jun-12,Housing Benefit Admin,COO,CALDERDALE BOROUGH COUNCIL,2025692070,"150,307"
Department for Work and Pensions,Housing Benefits,14-Jun-12,Housing Benefit Admin,COO,NORTH TYNESIDE BOROUGH COUNCIL,2025692257,"148,109"
Department for Work and Pensions,Housing Benefits,14-Jun-12,Housing Benefit Admin,COO,DUNDEE CITY COUNCIL,2025692119,"147,948"
Department for Work and Pensions,Housing Benefits,14-Jun-12,Housing Benefit Admin,COO,STOCKTON  BOROUGH COUNCIL,2025692343,"146,778"
Department for Work and Pensions,Housing Benefits,14-Jun-12,Housing Benefit Admin,COO,RENFREWSHIRE COUNCIL,2025692282,"146,021"
Department for Work and Pensions,Corporate,25-Jun-12,PUBLICITY,PS,M4C,2025780462,"145,776"
Department for Work and Pensions,Housing Benefits,14-Jun-12,Housing Benefit Admin,COO,NORTH EAST LINCOLNSHIRE COUNCIL,2025692250,"145,742"
Department for Work and Pensions,Corporate,25-Jun-12,COMPUTER SERVICES,COO,ATOS ORIGIN IT SERVICES UK LTD,2025778910,"145,280"
Department for Work and Pensions,Housing Benefits,14-Jun-12,Housing Benefit Admin,COO,ST HELENS BOROUGH COUNCIL,2025692337,"144,584"
Department for Work and Pensions,Housing Benefits,14-Jun-12,Housing Benefit Admin,COO,NORTHAMPTON BOROUGH COUNCIL,2025692260,"144,481"
Department for Work and Pensions,Corporate,12-Jun-12,EMPLOYMENT ZONES,COO,INGEUS UK LTD,2025624552,"143,192"
Department for Work and Pensions,Corporate,06-Jun-12,PROFESSIONAL FEES,COO,FIELD FISHER WATERHOUSE LLP,2025567057,"143,095"
Department for Work and Pensions,Employment Programmes,29-Jun-12,EP PROVIDER PAYMENT - NON-WORK PROGRAMME,COO,SHAW TRUST,2025856943,"142,683"
Department for Work and Pensions,Housing Benefits,14-Jun-12,Housing Benefit Admin,COO,PETERBOROUGH CITY COUNCIL,2025692272,"141,458"
Department for Work and Pensions,Corporate,11-Jun-12,PRINTING STATIONERY IT CONSUMABLES,F&C,XEROX UK LTD 3W,2025621722,"141,240"
Department for Work and Pensions,Housing Benefits,14-Jun-12,Housing Benefit Admin,COO,HIGHLAND COUNCIL,2025692172,"140,741"
Department for Work and Pensions,Corporate,29-Jun-12,PAYMENTS TO CSAS,COO,ATOS ORIGIN IT SERVICES UK LTD,2025854478,"140,653"
Department for Work and Pensions,Employment Programmes,06-Jun-12,EP PROVIDER PAYMENT - WORK PROGRAMME,COO,INGEUS UK LTD,2025570452,"140,400"
Department for Work and Pensions,Housing Benefits,14-Jun-12,Housing Benefit Admin,COO,LUTON BOROUGH COUNCIL,2025692221,"138,731"
Department for Work and Pensions,Employment Programmes,29-Jun-12,EP PROVIDER PAYMENT - NON-WORK PROGRAMME,COO,WORKING LINKS,2025857068,"137,155"
Department for Work and Pensions,Housing Benefits,14-Jun-12,Housing Benefit Admin,COO,NORTH SOMERSET COUNCIL,2025692256,"137,030"
Department for Work and Pensions,Housing Benefits,14-Jun-12,Housing Benefit Admin,COO,SOUTH GLOUCESTERSHIRE COUNCIL,2025692319,"136,417"
Department for Work and Pensions,Housing Benefits,14-Jun-12,Housing Benefit Admin,COO,SOUTHEND ON SEA BOROUGH COUNCIL,2025692333,"136,269"
Department for Work and Pensions,Housing Benefits,14-Jun-12,Housing Benefit Admin,COO,TORBAY  COUNCIL,2025692367,"135,811"
Department for Work and Pensions,Employment Programmes,29-Jun-12,EP PROVIDER PAYMENT - NON-WORK PROGRAMME,COO,SHAW TRUST,2025856943,"134,900"
Department for Work and Pensions,Housing Benefits,14-Jun-12,Housing Benefit Admin,COO,LONDON BOROUGH OF HAVERING,2025692205,"133,218"
Department for Work and Pensions,Corporate,06-Jun-12,COMPUTER SERVICES,F&C,FUJITSU SERVICES LTD,2025567066,"133,209"
Department for Work and Pensions,Housing Benefits,14-Jun-12,Housing Benefit Admin,COO,LONDON BOROUGH OF BEXLEY,2025692195,"132,523"
Department for Work and Pensions,Housing Benefits,14-Jun-12,Housing Benefit Admin,COO,THANET DISTRICT COUNCIL,2025692362,"132,147"
Department for Work and Pensions,Housing Benefits,14-Jun-12,Housing Benefit Admin,COO,SOUTH TYNESIDE METROPOLITAN BOROUGH COUNCIL,2025692331,"131,006"
Department for Work and Pensions,Housing Benefits,14-Jun-12,Housing Benefit Admin,COO,TRAFFORD BOROUGH COUNCIL,2025692370,"130,692"
Department for Work and Pensions,Employment Programmes,29-Jun-12,EP PROVIDER PAYMENT - NON-WORK PROGRAMME,COO,WORKING LINKS,2025857068,"130,681"
Department for Work and Pensions,Corporate,20-Jun-12,POSTAGE,COO,TNT UK LTD,2025764425,"130,360"
Department for Work and Pensions,Corporate,11-Jun-12,STAFF COSTS,COO,RIGHT CORECARE,2025621270,"130,222"
Department for Work and Pensions,Employment Programmes,15-Jun-12,RESIDENTIAL TRAINING,COO,RNCB ROYAL NATIONAL COLLEGE FOR BLIND,2025695201,"130,163"
Department for Work and Pensions,Corporate,15-Jun-12,COMPUTER SERVICES,COO,ACCENTURE UK LTD,2025692593,"130,051"
Department for Work and Pensions,Housing Benefits,14-Jun-12,Housing Benefit Admin,COO,SWINDON BOROUGH COUNCIL,2025692353,"129,872"
Department for Work and Pensions,Employment Programmes,06-Jun-12,EP PROVIDER PAYMENT - WORK PROGRAMME,COO,INGEUS UK LTD,2025570452,"129,600"
Department for Work and Pensions,Corporate,11-Jun-12,AOS CONTRACTED OUT SERVICES,COO,BALFOUR BEATTY WORKPLACE LTD,2025618546,"129,011"
Department for Work and Pensions,Housing Benefits,14-Jun-12,Housing Benefit Admin,COO,LONDON BOROUGH OF MERTON,2025692212,"128,747"
Department for Work and Pensions,Housing Benefits,14-Jun-12,Housing Benefit Admin,COO,NORTH AYRSHIRE COUNCIL,2025692245,"127,368"
Department for Work and Pensions,Corporate,29-Jun-12,COMPUTER SERVICES,COO,ACCENTURE UK LTD,2025854463,"126,203"
Department for Work and Pensions,Housing Benefits,14-Jun-12,Housing Benefit Admin,COO,BOROUGH OF TELFORD & WREKIN COUNCIL,2025692051,"125,219"
Department for Work and Pensions,Corporate,29-Jun-12,ACCOMMODATION,COO,TELEREAL TRILLIUM,2025857001,"124,699"
Department for Work and Pensions,Housing Benefits,14-Jun-12,Housing Benefit Admin,COO,BURY METROPOLITAN BOROUGH COUNCIL,2025692068,"124,347"
Department for Work and Pensions,Housing Benefits,14-Jun-12,Housing Benefit Admin,COO,REDCAR & CLEVELAND BOROUGH  COUNCIL,2025692280,"124,007"
Department for Work and Pensions,Housing Benefits,14-Jun-12,Housing Benefit Admin,COO,BASILDON DISTRICT COUNCIL,2025692038,"123,749"
Department for Work and Pensions,Employment Programmes,13-Jun-12,EP PROVIDER PAYMENT - NON-WORK PROGRAMME,COO,SEETEC BUSINESS TECHNOLOGY CENTRE LTD,2025679147,"123,678"
Department for Work and Pensions,Corporate,07-Jun-12,APPS DEV,COO,HP ENTERPRISE SERVICES UK LTD,2025610730,"123,578"
Department for Work and Pensions,Housing Benefits,14-Jun-12,Housing Benefit Admin,COO,CAERPHILLY COUNTY BOROUGH COUNCIL,2025692069,"123,102"
Department for Work and Pensions,Corporate,29-Jun-12,ACCOMMODATION,COO,TELEREAL TRILLIUM,2025857000,"122,983"
Department for Work and Pensions,Employment Programmes,13-Jun-12,EP PROVIDER PAYMENT - NON-WORK PROGRAMME,COO,TNG LTD,2025681398,"122,951"
Department for Work and Pensions,Corporate,15-Jun-12,APPS DEV,COO,HP ENTERPRISE SERVICES UK LTD,2025694207,"122,759"
Department for Work and Pensions,Housing Benefits,14-Jun-12,Housing Benefit Admin,COO,BLACKBURN BOROUGH COUNCIL,2025692045,"122,591"
Department for Work and Pensions,Housing Benefits,14-Jun-12,Housing Benefit Admin,COO,CENTRAL BEDFORDSHIRE DISTRICT COUNCIL,2025692077,"122,530"
Department for Work and Pensions,Corporate,29-Jun-12,Accommodation Costs,COO,COMPANIES HOUSE,2025857090,"122,284"
Department for Work and Pensions,Corporate,15-Jun-12,COMPUTER SERVICES,COO,BT GLOBAL SERVICES,2025692685,"121,709"
Department for Work and Pensions,Corporate,25-Jun-12,PAYMENTS TO CSAS,COO,ATOS ORIGIN IT SERVICES UK LTD,2025778910,"121,060"
Department for Work and Pensions,Corporate,22-Jun-12,Accommodation Costs,COO,HMRC,2025775718,"120,789"
Department for Work and Pensions,Housing Benefits,14-Jun-12,Housing Benefit Admin,COO,WEST LOTHIAN COUNCIL,2025692391,"119,653"
Department for Work and Pensions,Corporate,08-Jun-12,APPS DEV,COO,HP ENTERPRISE SERVICES UK LTD,2025615786,"118,692"
Department for Work and Pensions,Housing Benefits,14-Jun-12,Housing Benefit Admin,COO,TENDRING DISTRICT COUNCIL,2025692359,"118,679"
Department for Work and Pensions,Housing Benefits,14-Jun-12,Housing Benefit Admin,COO,NORWICH CITY COUNCIL,2025692262,"118,229"
Department for Work and Pensions,Corporate,12-Jun-12,AMS,COO,HP ENTERPRISE SERVICES UK LTD,2025624506,"116,998"
Department for Work and Pensions,Employment Programmes,13-Jun-12,EP PROVIDER PAYMENT - NON-WORK PROGRAMME,COO,PINNACLE PEOPLE,2025670038,"116,545"
Department for Work and Pensions,Housing Benefits,14-Jun-12,Housing Benefit Admin,COO,LONDON BOROUGH OF SUTTON,2025692217,"116,527"
Department for Work and Pensions,Housing Benefits,14-Jun-12,Housing Benefit Admin,COO,CARMARTHENSHIRE COUNTY COUNCIL,2025692075,"116,072"
Department for Work and Pensions,Housing Benefits,14-Jun-12,Housing Benefit Admin,COO,NORTH LINCOLNSHIRE COUNCIL,2025692254,"115,657"
Department for Work and Pensions,Corporate,12-Jun-12,COMPUTER SERVICES,CIT,IBM UNITED KINGDOM LTD,2025624548,"115,528"
Department for Work and Pensions,Corporate,15-Jun-12,COMPUTER SERVICES,CIT,BT GLOBAL SERVICES,2025692685,"115,198"
Department for Work and Pensions,Housing Benefits,14-Jun-12,Housing Benefit Admin,COO,ABERDEEN CITY COUNCIL,2025692024,"114,670"
Department for Work and Pensions,Housing Benefits,14-Jun-12,Housing Benefit Admin,COO,WARRINGTON BOROUGH COUNCIL,2025692377,"114,511"
Department for Work and Pensions,Housing Benefits,14-Jun-12,Housing Benefit Admin,COO,ISLE OF WIGHT COUNTY COUNCIL,2025692180,"113,563"
Department for Work and Pensions,Corporate,29-Jun-12,ACCOMMODATION,COO,TELEREAL TRILLIUM,2025857000,"113,349"
Department for Work and Pensions,Housing Benefits,14-Jun-12,Housing Benefit Admin,COO,DUMFRIES & GALLOWAY COUNCIL,2025692118,"113,117"
Department for Work and Pensions,Corporate,29-Jun-12,ACCOMMODATION,COO,TELEREAL TRILLIUM,2025857000,"113,056"
Department for Work and Pensions,Housing Benefits,14-Jun-12,Housing Benefit Admin,COO,NEATH PORT TALBOT COUNTY BOROUGH COUNCIL,2025692239,"111,676"
Department for Work and Pensions,Housing Benefits,14-Jun-12,Housing Benefit Admin,COO,SOLIHULL METROPOLITAN BOROUGH COUNCIL,2025692314,"111,632"
Department for Work and Pensions,Housing Benefits,14-Jun-12,Housing Benefit Admin,COO,READING BOROUGH COUNCIL,2025692279,"111,543"
Department for Work and Pensions,European Social Fund,28-Jun-12,ESF Expenditure,STR,YORKSHIRE & HUMBER DWP,5000001065,"111,113"
Department for Work and Pensions,Employment Programmes,20-Jun-12,JSP ESF DEL P COSTS,COO,WORKING LINKS,2025765870,"109,340"
Department for Work and Pensions,Housing Benefits,14-Jun-12,Housing Benefit Admin,COO,ABERDEENSHIRE COUNCIL,2025692025,"108,085"
Department for Work and Pensions,Employment Programmes,06-Jun-12,EP PROVIDER PAYMENT - WORK PROGRAMME,COO,INGEUS UK LTD,2025570452,"108,000"
Department for Work and Pensions,Employment Programmes,13-Jun-12,EP PROVIDER PAYMENT - NON-WORK PROGRAMME,COO,REED IN PARTNERSHIP LTD,2025672396,"107,713"
Department for Work and Pensions,Housing Benefits,14-Jun-12,Housing Benefit Admin,COO,BEDFORD BOROUGH COUNCIL,2025692042,"107,035"
Department for Work and Pensions,Housing Benefits,14-Jun-12,Housing Benefit Admin,COO,NEWPORT CITY COUNCIL,2025692244,"106,980"
Department for Work and Pensions,Housing Benefits,14-Jun-12,Housing Benefit Admin,COO,HALTON BOROUGH COUNCIL,2025692160,"106,975"
Department for Work and Pensions,Corporate,29-Jun-12,ACCOMMODATION,COO,TELEREAL TRILLIUM,2025857000,"106,524"
Department for Work and Pensions,Housing Benefits,14-Jun-12,Housing Benefit Admin,COO,FALKIRK DISTRICT COUNCIL,2025692143,"105,438"
Department for Work and Pensions,Housing Benefits,14-Jun-12,Housing Benefit Admin,COO,EAST LINDSEY DISTRICT COUNCIL,2025692128,"105,351"
Department for Work and Pensions,Housing Benefits,14-Jun-12,Housing Benefit Admin,COO,SLOUGH BOROUGH COUNCIL,2025692313,"104,922"
Department for Work and Pensions,Housing Benefits,14-Jun-12,Housing Benefit Admin,COO,THURROCK BOROUGH COUNCIL,2025692365,"104,548"
Department for Work and Pensions,"Pension, Disability Carers Services",19-Jun-12,MEDICAL SERVICES,COO,ATOS HEALTHCARE,2025702528,"104,301"
Department for Work and Pensions,Housing Benefits,14-Jun-12,Housing Benefit Admin,COO,BRIDGEND COUNTY BOROUGH COUNCIL,2025692060,"101,555"
Department for Work and Pensions,Corporate,12-Jun-12,APPS DEV,COO,HP ENTERPRISE SERVICES UK LTD,2025624506,"101,551"
Department for Work and Pensions,Corporate,22-Jun-12,Accommodation Costs,COO,HMRC,2025775720,"101,503"
Department for Work and Pensions,Corporate,28-Jun-12,Accommodation Costs,COO,BRITISH GAS BUSINESS SCC UTILITIES ONLY,1005295,"101,009"
Department for Work and Pensions,Housing Benefits,14-Jun-12,Housing Benefit Admin,COO,HASTINGS BOROUGH COUNCIL,2025692167,"100,966"
Department for Work and Pensions,Employment Programmes,13-Jun-12,EP PROVIDER PAYMENT - NON-WORK PROGRAMME,COO,STANDGUIDE LTD,2025679178,"100,612"
Department for Work and Pensions,European Social Fund,28-Jun-12,ESF Expenditure,STR,SKILLS FUNDING AGENCY,5000001063,"100,430"
Department for Work and Pensions,Jobcentre Plus,01-Jun-12,APPS DEV,Change PMU,HP ENTERPRISE SERVICES UK LTD,2025545986,"100,138"
Department for Work and Pensions,Employment Programmes,13-Jun-12,EP PROVIDER PAYMENT - NON-WORK PROGRAMME,COO,PINNACLE PEOPLE,2025670038,"100,021"
Department for Work and Pensions,Corporate,07-Jun-12,MANAGEMENT CONSULTANCY,F&C,PRICE WATERHOUSE COOPER LLP,2025612229,"99,795"
Department for Work and Pensions,Employment Programmes,15-Jun-12,RESIDENTIAL TRAINING,COO,PORTLAND COLLEGE,2025695078,"98,694"
Department for Work and Pensions,Housing Benefits,14-Jun-12,Housing Benefit Admin,COO,HARTLEPOOL BOROUGH COUNCIL,2025692166,"98,183"
Department for Work and Pensions,Housing Benefits,14-Jun-12,Housing Benefit Admin,COO,HEREFORDSHIRE COUNCIL,2025692169,"98,125"
Department for Work and Pensions,Housing Benefits,14-Jun-12,Housing Benefit Admin,COO,PRESTON BOROUGH COUNCIL,2025692277,"97,991"
Department for Work and Pensions,Housing Benefits,14-Jun-12,Housing Benefit Admin,COO,EAST AYRSHIRE COUNCIL FINANCE DEPARTMENT,2025692121,"97,853"
Department for Work and Pensions,Employment Programmes,14-Jun-12,RESIDENTIAL TRAINING,COO,DONCASTER DEAF TRUST,2025686561,"96,760"
Department for Work and Pensions,Housing Benefits,14-Jun-12,Housing Benefit Admin,COO,CITY OF YORK COUNCIL,2025692093,"96,173"
Department for Work and Pensions,Corporate,29-Jun-12,TRADE DEBTORS,Excluded,TELEREAL TRILLIUM,2025857002,"95,681"
Department for Work and Pensions,Housing Benefits,14-Jun-12,Housing Benefit Admin,COO,BATH & NORTH EAST SOMERSET COUNCIL,2025692041,"95,471"
Department for Work and Pensions,Corporate,06-Jun-12,IS/IT,COO,SPECIALIST COMPUTER CENTRES PLC,2025601823,"95,213"
Department for Work and Pensions,Corporate,22-Jun-12,TOTAL SUPPLIES & SERVICES,COO,SPECIALIST COMPUTER CENTRES PLC,2025777353,"94,966"
Department for Work and Pensions,Corporate,26-Jun-12,Accommodation Costs,COO,HMRC,2025787488,"94,028"
Department for Work and Pensions,Housing Benefits,14-Jun-12,Housing Benefit Admin,COO,SCARBOROUGH BOROUGH COUNCIL,2025692302,"93,492"
Department for Work and Pensions,Employment Programmes,13-Jun-12,EP PROVIDER PAYMENT - NON-WORK PROGRAMME,COO,PERTEMPS,2025670037,"93,270"
Department for Work and Pensions,Employment Programmes,13-Jun-12,EP PROVIDER PAYMENT - NON-WORK PROGRAMME,COO,A4E LTD,2025631918,"93,043"
Department for Work and Pensions,Housing Benefits,14-Jun-12,Housing Benefit Admin,COO,WEST DUNBARTONSHIRE COUNCIL,2025692387,"92,845"
Department for Work and Pensions,Employment Programmes,08-Jun-12,EP PROVIDER PAYMENT - WORK PROGRAMME,COO,A4E LTD,2025614518,"92,736"
Department for Work and Pensions,Corporate,15-Jun-12,COMPUTER SERVICES,CIT,BT GLOBAL SERVICES,2025692685,"92,355"
Department for Work and Pensions,Corporate,08-Jun-12,APPS DEV,COO,HP ENTERPRISE SERVICES UK LTD,2025615786,"92,268"
Department for Work and Pensions,Housing Benefits,14-Jun-12,Housing Benefit Admin,COO,COLCHESTER BOROUGH COUNCIL,2025692095,"92,150"
Department for Work and Pensions,Housing Benefits,14-Jun-12,Housing Benefit Admin,COO,KINGS LYNN & WEST NORFOLK BOROUGH COUNCIL,2025692182,"92,095"
Department for Work and Pensions,Housing Benefits,14-Jun-12,Housing Benefit Admin,COO,ARUN DISTRICT COUNCIL,2025692031,"91,811"
Department for Work and Pensions,Housing Benefits,14-Jun-12,Housing Benefit Admin,COO,LONDON BOROUGH OF RICHMOND UPON THAMES,2025692215,"91,702"
Department for Work and Pensions,Employment Programmes,13-Jun-12,EP PROVIDER PAYMENT - NON-WORK PROGRAMME,COO,A4E LTD,2025631918,"90,807"
Department for Work and Pensions,Housing Benefits,14-Jun-12,Housing Benefit Admin,COO,SOUTH SOMERSET DISTRICT COUNCIL,2025692329,"90,487"
Department for Work and Pensions,Housing Benefits,14-Jun-12,Housing Benefit Admin,COO,IPSWICH BOROUGH COUNCIL,2025692178,"90,002"
Department for Work and Pensions,Employment Programmes,06-Jun-12,EP PROVIDER PAYMENT - WORK PROGRAMME,COO,INGEUS UK LTD,2025570452,"90,000"
Department for Work and Pensions,Housing Benefits,14-Jun-12,Housing Benefit Admin,COO,SWALE BOROUGH COUNCIL,2025692351,"89,049"
Department for Work and Pensions,Employment Programmes,11-Jun-12,RESIDENTIAL TRAINING,COO,QUEEN ALEXANDRA COLLEGE,2025621144,"89,038"
Department for Work and Pensions,Corporate,15-Jun-12,COMPUTER SERVICES,COO,ATOS ORIGIN IT SERVICES UK LTD,2025692621,"88,181"
Department for Work and Pensions,Housing Benefits,14-Jun-12,Housing Benefit Admin,COO,GREAT YARMOUTH COUNCIL,2025692156,"87,626"
Department for Work and Pensions,Corporate,18-Jun-12,EMPLOYMENT ZONES,COO,STANDGUIDE LTD,2025700900,"86,843"
Department for Work and Pensions,Housing Benefits,14-Jun-12,Housing Benefit Admin,COO,BRAINTREE DISTRICT COUNCIL,2025692057,"86,769"
Department for Work and Pensions,Corporate,29-Jun-12,ACCOMMODATION,COO,TELEREAL TRILLIUM,2025857000,"86,731"
Department for Work and Pensions,European Social Fund,14-Jun-12,ESF Expenditure,STR,BARNSLEY METROPOLITAN BOROUGH COUNCIL,5000001050,"86,587"
Department for Work and Pensions,Corporate,13-Jun-12,IS/IT,COO,SPECIALIST COMPUTER CENTRE PLC,2025679163,"86,472"
Department for Work and Pensions,Corporate,11-Jun-12,APPS DEV,COO,HP ENTERPRISE SERVICES UK LTD,2025620165,"85,964"
Department for Work and Pensions,Housing Benefits,14-Jun-12,Housing Benefit Admin,COO,WAVENEY DISTRICT COUNCIL,2025692380,"85,909"
Department for Work and Pensions,Corporate,29-Jun-12,ACCOMMODATION,COO,TELEREAL TRILLIUM,2025857000,"85,538"
Department for Work and Pensions,Housing Benefits,14-Jun-12,Housing Benefit Admin,COO,ROYAL BOROUGH OF KINGSTON UPON THAMES,2025692293,"85,315"
Department for Work and Pensions,Housing Benefits,14-Jun-12,Housing Benefit Admin,COO,OXFORD CITY COUNCIL,2025692268,"85,086"
Department for Work and Pensions,Housing Benefits,14-Jun-12,Housing Benefit Admin,COO,LANCASTER CITY COUNCIL,2025692186,"85,084"
Department for Work and Pensions,Housing Benefits,14-Jun-12,Housing Benefit Admin,COO,GLOUCESTER CITY COUNCIL,2025692153,"85,060"
Department for Work and Pensions,Corporate,26-Jun-12,PROFESSIONAL FEES,PS,ORC INTERNATIONAL LTD,2025789339,"85,045"
Department for Work and Pensions,Corporate,29-Jun-12,ACCOMMODATION,COO,TELEREAL TRILLIUM,2025857000,"84,710"
Department for Work and Pensions,Employment Programmes,13-Jun-12,EP PROVIDER PAYMENT - NON-WORK PROGRAMME,COO,A4E LTD,2025631918,"84,600"
Department for Work and Pensions,Corporate,22-Jun-12,OTHER EXPENDITURE,COO,ATOS ORIGIN IT SERVICES UK LTD,2025772996,"83,688"
Department for Work and Pensions,Corporate,29-Jun-12,ACCOMMODATION,COO,TELEREAL TRILLIUM,2025857000,"83,359"
Department for Work and Pensions,Corporate,18-Jun-12,UNALLOCATED BUDGET GROUP,COO,MOTABILITY,1005281,"83,330"
Department for Work and Pensions,Housing Benefits,14-Jun-12,Housing Benefit Admin,COO,INVERCLYDE DISTRICT COUNCIL,2025692177,"83,142"
Department for Work and Pensions,Housing Benefits,14-Jun-12,Housing Benefit Admin,COO,EASTBOURNE BOROUGH COUNCIL,2025692134,"83,128"
Department for Work and Pensions,Corporate,26-Jun-12,OTHER EXPENDITURE,COO,SPECIALIST COMPUTER CENTRES PLC,2025790523,"82,683"
Department for Work and Pensions,Corporate,15-Jun-12,STAFF COSTS,COO,RIGHT CORECARE,2025695199,"82,500"
Department for Work and Pensions,Corporate,29-Jun-12,ACCOMMODATION,COO,TELEREAL TRILLIUM,2025857000,"82,345"
Department for Work and Pensions,Housing Benefits,14-Jun-12,Housing Benefit Admin,COO,FLINTSHIRE COUNTY COUNCIL,2025692147,"82,272"
Department for Work and Pensions,Housing Benefits,14-Jun-12,Housing Benefit Admin,COO,POOLE BOROUGH COUNCIL,2025692274,"82,218"
Department for Work and Pensions,Housing Benefits,14-Jun-12,Housing Benefit Admin,COO,SOUTH AYRSHIRE COUNCIL,2025692315,"82,044"
Department for Work and Pensions,Housing Benefits,14-Jun-12,Housing Benefit Admin,COO,PERTH & KINROSS COUNCIL,2025692271,"81,863"
Department for Work and Pensions,Housing Benefits,14-Jun-12,Housing Benefit Admin,COO,BASINGSTOKE DISTRICT COUNCIL,2025692039,"81,796"
Department for Work and Pensions,Housing Benefits,14-Jun-12,Housing Benefit Admin,COO,BURNLEY BOROUGH COUNCIL,2025692067,"81,560"
Department for Work and Pensions,Employment Programmes,13-Jun-12,EP PROVIDER PAYMENT - NON-WORK PROGRAMME,COO,INGEUS UK LTD,2025647757,"81,483"
Department for Work and Pensions,Corporate,21-Jun-12,IS/IT,COO,SPECIALIST COMPUTER CENTRES PLC,2025771251,"81,296"
Department for Work and Pensions,Employment Programmes,13-Jun-12,EP PROVIDER PAYMENT - NON-WORK PROGRAMME,COO,JHP GROUP LTD,2025652764,"81,209"
Department for Work and Pensions,Corporate,18-Jun-12,EMPLOYMENT ZONES,COO,PINNACLE PEOPLE,2025700439,"80,599"
Department for Work and Pensions,Housing Benefits,14-Jun-12,Housing Benefit Admin,COO,ASHFIELD DISTRICT COUNCIL,2025692032,"80,364"
Department for Work and Pensions,Employment Programmes,07-Jun-12,Hepl for unemployed people,COO,SKILLS FUNDING AGENCY,1005271,"80,207"
Department for Work and Pensions,Housing Benefits,14-Jun-12,Housing Benefit Admin,COO,DARLINGTON BOROUGH COUNCIL,2025692109,"79,957"
Department for Work and Pensions,Housing Benefits,14-Jun-12,Housing Benefit Admin,COO,WREXHAM COUNTY BOROUGH COUNCIL,2025692406,"79,492"
Department for Work and Pensions,Housing Benefits,14-Jun-12,Housing Benefit Admin,COO,NUNEATON BOROUGH COUNCIL,2025692264,"79,355"
Department for Work and Pensions,Housing Benefits,14-Jun-12,Housing Benefit Admin,COO,AYLESBURY VALE DISTRICT COUNCIL,2025692034,"79,059"
Department for Work and Pensions,Housing Benefits,14-Jun-12,Housing Benefit Admin,COO,CONWY COUNTY BOROUGH  COUNCIL,2025692097,"78,775"
Department for Work and Pensions,Housing Benefits,14-Jun-12,Housing Benefit Admin,COO,NEW FOREST DISTRICT COUNCIL,2025692240,"78,394"
Department for Work and Pensions,Housing Benefits,14-Jun-12,Housing Benefit Admin,COO,HUNTINGDON DISTRICT COUNCIL,2025692175,"78,248"
Department for Work and Pensions,Housing Benefits,14-Jun-12,Housing Benefit Admin,COO,WYCOMBE DISTRICT COUNCIL,2025692408,"78,208"
Department for Work and Pensions,Housing Benefits,14-Jun-12,Housing Benefit Admin,COO,MANSFIELD DISTRICT COUNCIL,2025692226,"78,067"
Department for Work and Pensions,Employment Programmes,06-Jun-12,EP PROVIDER PAYMENT - WORK PROGRAMME,COO,A4E LTD,2025553565,"77,520"
Department for Work and Pensions,Housing Benefits,14-Jun-12,Housing Benefit Admin,COO,CANTERBURY CITY COUNCIL,2025692073,"77,500"
Department for Work and Pensions,Corporate,06-Jun-12,COMPUTER SERVICES,F&C,FUJITSU SERVICES LTD,2025567067,"77,470"
Department for Work and Pensions,Housing Benefits,14-Jun-12,Housing Benefit Admin,COO,CRAWLEY BOROUGH COUNCIL,2025692106,"77,143"
Department for Work and Pensions,Housing Benefits,14-Jun-12,Housing Benefit Admin,COO,SCOTTISH BORDERS COUNCIL,2025692303,"76,727"
Department for Work and Pensions,Housing Benefits,14-Jun-12,Housing Benefit Admin,COO,SHEPWAY DISTRICT COUNCIL,2025692310,"76,614"
Department for Work and Pensions,Housing Benefits,14-Jun-12,Housing Benefit Admin,COO,CHESTERFIELD BOROUGH COUNCIL,2025692085,"76,446"
Department for Work and Pensions,Corporate,29-Jun-12,ACCOMMODATION,COO,TELEREAL TRILLIUM,2025857000,"76,257"
Department for Work and Pensions,Corporate,29-Jun-12,COMPUTER SERVICES,COO,STERIA,2025856958,"76,248"
Department for Work and Pensions,Housing Benefits,14-Jun-12,Housing Benefit Admin,COO,HAVANT BOROUGH COUNCIL,2025692168,"76,124"
Department for Work and Pensions,Housing Benefits,14-Jun-12,Housing Benefit Admin,COO,DACORUM BOROUGH COUNCIL,2025692108,"75,825"
Department for Work and Pensions,Housing Benefits,14-Jun-12,Housing Benefit Admin,COO,BRECKLAND DISTRICT COUNCIL,2025692058,"75,773"
Department for Work and Pensions,European Social Fund,11-Jun-12,ESF Expenditure,STR,LIVERPOOL CHAMBER OF COMMERCE,5000001048,"75,704"
Department for Work and Pensions,Housing Benefits,14-Jun-12,Housing Benefit Admin,COO,CHELMSFORD BOROUGH COUNCIL,2025692080,"75,471"
Department for Work and Pensions,SHARED SERVICES,11-Jun-12,AOS CONTRACTED OUT SERVICES,COO,BALFOUR BEATTY WORKPLACE LTD,2025618546,"75,281"
Department for Work and Pensions,Corporate,11-Jun-12,COMPUTER SERVICES,COO,HP ENTERPRISE SERVICES UK LTD,2025620165,"75,132"
Department for Work and Pensions,Housing Benefits,14-Jun-12,Housing Benefit Admin,COO,WYRE BOROUGH COUNCIL,2025692409,"74,962"
Department for Work and Pensions,Housing Benefits,14-Jun-12,Housing Benefit Admin,COO,GWYNEDD COUNCIL,2025692158,"74,334"
Department for Work and Pensions,Housing Benefits,14-Jun-12,Housing Benefit Admin,COO,MAIDSTONE BOROUGH COUNCIL,2025692222,"74,298"
Department for Work and Pensions,Corporate,26-Jun-12,APPS DEV,COO,HP ENTERPRISE SERVICES UK LTD,2025787493,"74,238"
Department for Work and Pensions,Housing Benefits,14-Jun-12,Housing Benefit Admin,COO,TORFAEN BOROUGH COUNCIL,2025692368,"74,129"
Department for Work and Pensions,Corporate,11-Jun-12,APPS DEV,COO,HP ENTERPRISE SERVICES UK LTD,2025620165,"73,840"
Department for Work and Pensions,Corporate,22-Jun-12,COMPUTER SERVICES,COO,STERIA,2025777370,"73,813"
Department for Work and Pensions,Housing Benefits,14-Jun-12,Housing Benefit Admin,COO,CHARNWOOD BOROUGH COUNCIL,2025692079,"73,389"
Department for Work and Pensions,Housing Benefits,14-Jun-12,Housing Benefit Admin,COO,CHERWELL DISTRICT COUNCIL,2025692082,"73,329"
Department for Work and Pensions,Housing Benefits,14-Jun-12,Housing Benefit Admin,COO,PENDLE BOROUGH COUNCIL,2025692270,"73,287"
Department for Work and Pensions,Housing Benefits,14-Jun-12,Housing Benefit Admin,COO,DOVER DISTRICT COUNCIL,2025692116,"73,275"
Department for Work and Pensions,Housing Benefits,14-Jun-12,Housing Benefit Admin,COO,VALE OF GLAMORGAN COUNCIL,2025692373,"73,225"
Department for Work and Pensions,Corporate,20-Jun-12,STAFF COSTS,COO,ASE CORPORATE EYECARE LTD,2025714230,"73,181"
Department for Work and Pensions,Housing Benefits,14-Jun-12,Housing Benefit Admin,COO,PEMBROKESHIRE COUNTY COUNCIL,2025692269,"73,133"
Department for Work and Pensions,Housing Benefits,14-Jun-12,Housing Benefit Admin,COO,TEIGNBRIDGE DISTRICT COUNCIL,2025692358,"72,287"
Department for Work and Pensions,Employment Programmes,22-Jun-12,EP PROVIDER PAYMENT - WORK PROGRAMME,COO,A4E LTD,2025772962,"71,760"
Department for Work and Pensions,Housing Benefits,14-Jun-12,Housing Benefit Admin,COO,LINCOLN CITY COUNCIL,2025692191,"71,372"
Department for Work and Pensions,Housing Benefits,14-Jun-12,Housing Benefit Admin,COO,WEST BERKSHIRE COUNCIL,2025692384,"71,224"
Department for Work and Pensions,Employment Programmes,13-Jun-12,EP PROVIDER PAYMENT - NON-WORK PROGRAMME,COO,JHP GROUP LTD,2025652764,"71,121"
Department for Work and Pensions,Housing Benefits,14-Jun-12,Housing Benefit Admin,COO,HYNDBURN BOROUGH COUNCIL,2025692176,"70,995"
Department for Work and Pensions,Housing Benefits,14-Jun-12,Housing Benefit Admin,COO,SEDGEMOOR DISTRICT COUNCIL,2025692304,"70,950"
Department for Work and Pensions,Housing Benefits,14-Jun-12,Housing Benefit Admin,COO,EXETER CITY COUNCIL,2025692142,"70,768"
Department for Work and Pensions,Housing Benefits,14-Jun-12,Housing Benefit Admin,COO,EREWASH BOROUGH COUNCIL,2025692141,"70,614"
Department for Work and Pensions,Corporate,15-Jun-12,EMPLOYMENT ZONES,COO,PINNACLE PEOPLE,2025695075,"70,464"
Department for Work and Pensions,Corporate,08-Jun-12,EMPLOYMENT ZONES,COO,PINNACLE PEOPLE,2025616408,"70,464"
Department for Work and Pensions,Corporate,29-Jun-12,ACCOMMODATION,COO,TELEREAL TRILLIUM,2025857000,"70,362"
Department for Work and Pensions,Housing Benefits,14-Jun-12,Housing Benefit Admin,COO,NORTH HERTFORDSHIRE DISTRICT COUNCIL,2025692251,"69,960"
Department for Work and Pensions,Employment Programmes,13-Jun-12,EP PROVIDER PAYMENT - NON-WORK PROGRAMME,COO,JHP GROUP LTD,2025652764,"69,918"
Department for Work and Pensions,Housing Benefits,14-Jun-12,Housing Benefit Admin,COO,AMBER VALLEY BOROUGH COUNCIL,2025692028,"69,682"
Department for Work and Pensions,Corporate,14-Jun-12,APPS DEV,COO,HP ENTERPRISE SERVICES UK LTD,2025687982,"69,610"
Department for Work and Pensions,Housing Benefits,14-Jun-12,Housing Benefit Admin,COO,ANGUS COUNCIL,2025692029,"69,523"
Department for Work and Pensions,Housing Benefits,14-Jun-12,Housing Benefit Admin,COO,HARROGATE BOROUGH COUNCIL,2025692164,"69,476"
Department for Work and Pensions,Housing Benefits,14-Jun-12,Housing Benefit Admin,COO,NEWCASTLE UNDER LYME BOROUGH COUNCIL,2025692243,"69,072"
Department for Work and Pensions,Housing Benefits,14-Jun-12,Housing Benefit Admin,COO,FENLAND DISTRICT COUNCIL,2025692145,"68,796"
Department for Work and Pensions,Corporate,11-Jun-12,EMPLOYMENT ZONES,COO,VEDAS RECRUITMENT & TRAINING LTD,2025621681,"68,702"
Department for Work and Pensions,Housing Benefits,14-Jun-12,Housing Benefit Admin,COO,POWYS COUNTY COUNCIL,2025692276,"68,266"
Department for Work and Pensions,Housing Benefits,14-Jun-12,Housing Benefit Admin,COO,BASSETLAW DISTRICT COUNCIL,2025692040,"67,921"
Department for Work and Pensions,Housing Benefits,14-Jun-12,Housing Benefit Admin,COO,WYRE FOREST DISTRICT COUNCIL,2025692410,"67,842"
Department for Work and Pensions,Housing Benefits,14-Jun-12,Housing Benefit Admin,COO,SOUTH KESTEVEN DISTRICT COUNCIL,2025692322,"67,354"
Department for Work and Pensions,Corporate,18-Jun-12,COMPUTER SERVICES,COO,TESCO MOBILE LTD,2025700993,"66,624"
Department for Work and Pensions,Housing Benefits,14-Jun-12,Housing Benefit Admin,COO,DENBIGHSHIRE COUNTY COUNCIL,2025692112,"66,454"
Department for Work and Pensions,Housing Benefits,14-Jun-12,Housing Benefit Admin,COO,EAST STAFFORDSHIRE DISTRICT COUNCIL,2025692133,"65,671"
Department for Work and Pensions,Housing Benefits,14-Jun-12,Housing Benefit Admin,COO,CHELTENHAM BOROUGH COUNCIL,2025692081,"65,235"
Department for Work and Pensions,Housing Benefits,14-Jun-12,Housing Benefit Admin,COO,WORTHING BOROUGH COUNCIL,2025692405,"65,147"
Department for Work and Pensions,Housing Benefits,14-Jun-12,Housing Benefit Admin,COO,HARLOW DISTRICT COUNCIL,2025692163,"64,662"
Department for Work and Pensions,Housing Benefits,14-Jun-12,Housing Benefit Admin,COO,GEDLING BOROUGH COUNCIL,2025692152,"64,177"
Department for Work and Pensions,Housing Benefits,14-Jun-12,Housing Benefit Admin,COO,BLAENAU GWENT COUNTY BOROUGH COUNCIL,2025692047,"63,646"
Department for Work and Pensions,Housing Benefits,14-Jun-12,Housing Benefit Admin,COO,EAST DEVON DISTRICT COUNCIL,2025692123,"63,560"
Department for Work and Pensions,Corporate,15-Jun-12,MISCELLANEOUS EXPENDITURE,COO,TNS BMRB,2025695571,"63,538"
Department for Work and Pensions,Housing Benefits,14-Jun-12,Housing Benefit Admin,COO,CAMBRIDGE CITY COUNCIL,2025692071,"63,309"
Department for Work and Pensions,Housing Benefits,14-Jun-12,Housing Benefit Admin,COO,NORTH DEVON DISTRICT COUNCIL,2025692247,"63,245"
Department for Work and Pensions,Housing Benefits,14-Jun-12,Housing Benefit Admin,COO,GRAVESHAM BOROUGH COUNCIL,2025692155,"63,174"
Department for Work and Pensions,Housing Benefits,14-Jun-12,Housing Benefit Admin,COO,WORCESTER CITY COUNCIL,2025692404,"63,132"
Department for Work and Pensions,Housing Benefits,14-Jun-12,Housing Benefit Admin,COO,WARWICK DISTRICT COUNCIL,2025692378,"62,924"
Department for Work and Pensions,Housing Benefits,14-Jun-12,Housing Benefit Admin,COO,CANNOCK CHASE DISTRICT COUNCIL,2025692072,"62,431"
Department for Work and Pensions,Employment Programmes,13-Jun-12,EP PROVIDER PAYMENT - NON-WORK PROGRAMME,COO,A4E LTD,2025631918,"62,320"
Department for Work and Pensions,Housing Benefits,14-Jun-12,Housing Benefit Admin,COO,BROXBOURNE BOROUGH COUNCIL,2025692065,"62,245"
Department for Work and Pensions,Housing Benefits,14-Jun-12,Housing Benefit Admin,COO,WEST LANCASHIRE DISTRICT COUNCIL,2025692389,"62,200"
Department for Work and Pensions,Housing Benefits,14-Jun-12,Housing Benefit Admin,COO,ASHFORD BOROUGH COUNCIL,2025692033,"61,810"
Department for Work and Pensions,Housing Benefits,14-Jun-12,Housing Benefit Admin,COO,MENDIP DISTRICT COUNCIL,2025692229,"61,794"
Department for Work and Pensions,Employment Programmes,08-Jun-12,EP PROVIDER PAYMENT - WORK PROGRAMME,COO,CAREERS DEVELOPMENT GROUP,2025614741,"61,560"
Department for Work and Pensions,Corporate,29-Jun-12,BANKING AND ENCASHMENT COSTS,COO,HSBC BANK PLC,2025856168,"61,474"
Department for Work and Pensions,Housing Benefits,14-Jun-12,Housing Benefit Admin,COO,CITY OF CARLISLE DISTRICT COUNCIL,2025692090,"61,310"
Department for Work and Pensions,Housing Benefits,14-Jun-12,Housing Benefit Admin,COO,REIGATE & BANSTEAD BOROUGH COUNCIL,2025692281,"61,289"
Department for Work and Pensions,Housing Benefits,14-Jun-12,Housing Benefit Admin,COO,TAUNTON DEANE BOROUGH COUNCIL,2025692357,"61,067"
Department for Work and Pensions,Corporate,08-Jun-12,COMPUTER SERVICES,COO,HP ENTERPRISE SERVICES UK LTD,2025615786,"60,410"
Department for Work and Pensions,Housing Benefits,14-Jun-12,Housing Benefit Admin,COO,GUILDFORD BOROUGH COUNCIL,2025692157,"60,063"
Department for Work and Pensions,Employment Programmes,06-Jun-12,EP PROVIDER PAYMENT - WORK PROGRAMME,COO,MAXIMUS EMPLOYMENT UK LTD,2025588602,"59,940"
Department for Work and Pensions,Corporate,08-Jun-12,APPS DEV,COO,HP ENTERPRISE SERVICES UK LTD,2025615786,"59,927"
Department for Work and Pensions,Housing Benefits,14-Jun-12,Housing Benefit Admin,COO,NEWARK DISTRICT COUNCIL,2025692241,"59,902"
Department for Work and Pensions,Housing Benefits,14-Jun-12,Housing Benefit Admin,COO,NORTH NORFOLK DISTRICT COUNCIL,2025692255,"59,891"
Department for Work and Pensions,Housing Benefits,14-Jun-12,Housing Benefit Admin,COO,EPPING FOREST DISTRICT COUNCIL,2025692139,"59,847"
Department for Work and Pensions,Corporate,29-Jun-12,ACCOMMODATION,COO,TELEREAL TRILLIUM,2025857001,"59,275"
Department for Work and Pensions,Corporate,26-Jun-12,PUBLICITY,PS,M4C,2025789076,"59,260"
Department for Work and Pensions,Housing Benefits,14-Jun-12,Housing Benefit Admin,COO,WELWYN HATFIELD DISTRICT COUNCIL,2025692383,"59,247"
Department for Work and Pensions,Housing Benefits,14-Jun-12,Housing Benefit Admin,COO,SOUTH NORFOLK DISTRICT COUNCIL,2025692325,"59,012"
Department for Work and Pensions,Housing Benefits,14-Jun-12,Housing Benefit Admin,COO,ARGYLL & BUTE COUNCIL,2025692030,"58,710"
Department for Work and Pensions,Housing Benefits,14-Jun-12,Housing Benefit Admin,COO,WEALDEN DISTRICT COUNCIL,2025692382,"58,526"
Department for Work and Pensions,Housing Benefits,14-Jun-12,Housing Benefit Admin,COO,CHICHESTER DISTRICT COUNCIL,2025692086,"58,509"
Department for Work and Pensions,Employment Programmes,19-Jun-12,EP PROVIDER PAYMENT - WORK PROGRAMME,COO,A4E LTD,2025702495,"58,140"
Department for Work and Pensions,Housing Benefits,14-Jun-12,Housing Benefit Admin,COO,WINDSOR & MAIDENHEAD BOROUGH COUNCIL,2025692399,"58,134"
Department for Work and Pensions,Housing Benefits,14-Jun-12,Housing Benefit Admin,COO,GOSPORT BOROUGH COUNCIL,2025692154,"57,962"
Department for Work and Pensions,Housing Benefits,14-Jun-12,Housing Benefit Admin,COO,BRACKNELL FOREST BOROUGH COUNCIL,2025692055,"57,845"
Department for Work and Pensions,Employment Programmes,13-Jun-12,EP PROVIDER PAYMENT - NON-WORK PROGRAMME,COO,JHP GROUP LTD,2025652764,"57,676"
Department for Work and Pensions,Corporate,29-Jun-12,ACCOMMODATION,COO,TELEREAL TRILLIUM,2025857002,"57,561"
Department for Work and Pensions,Corporate,27-Jun-12,TELEPHONE AND POSTAGE,COO,HMRC,2003297,"57,230"
Department for Work and Pensions,Housing Benefits,14-Jun-12,Housing Benefit Admin,COO,HERTSMERE BOROUGH COUNCIL,2025692170,"57,098"
Department for Work and Pensions,Employment Programmes,06-Jun-12,EP PROVIDER PAYMENT - WORK PROGRAMME,COO,SEETEC BUSINESS TECHNOLOGY CENTRE LTD,2025601793,"56,940"
Department for Work and Pensions,Corporate,12-Jun-12,AOS CONTRACTED OUT SERVICES,COO,XEROX UK LTD 3W,2025626571,"56,897"
Department for Work and Pensions,Housing Benefits,14-Jun-12,Housing Benefit Admin,COO,STRATFORD ON AVON DISTRICT COUNCIL,2025692345,"56,842"
Department for Work and Pensions,Housing Benefits,14-Jun-12,Housing Benefit Admin,COO,EAST LOTHIAN DISTRICT COUNCIL,2025692129,"56,678"
Department for Work and Pensions,Housing Benefits,14-Jun-12,Housing Benefit Admin,COO,WATFORD BOROUGH COUNCIL,2025692379,"56,664"
Department for Work and Pensions,Housing Benefits,14-Jun-12,Housing Benefit Admin,COO,STEVENAGE BOROUGH COUNCIL,2025692340,"56,463"
Department for Work and Pensions,Housing Benefits,14-Jun-12,Housing Benefit Admin,COO,RUGBY BOROUGH COUNCIL,2025692294,"56,410"
Department for Work and Pensions,Employment Programmes,13-Jun-12,EP PROVIDER PAYMENT - NON-WORK PROGRAMME,COO,A4E LTD,2025631918,"56,174"
Department for Work and Pensions,Housing Benefits,14-Jun-12,Housing Benefit Admin,COO,EAST HERTFORDSHIRE DISTRICT COUNCIL,2025692127,"56,153"
Department for Work and Pensions,Housing Benefits,14-Jun-12,Housing Benefit Admin,COO,TONBRIDGE & MALLING DISTRICT COUNCIL,2025692366,"56,129"
Department for Work and Pensions,Corporate,01-Jun-12,APPS DEV,COO,HP ENTERPRISE SERVICES UK LTD,2025545986,"56,054"
Department for Work and Pensions,Housing Benefits,14-Jun-12,Housing Benefit Admin,COO,ALLERDALE DISTRICT COUNCIL,2025692027,"55,986"
Department for Work and Pensions,Corporate,29-Jun-12,ACCOMMODATION,COO,TELEREAL TRILLIUM,2025857000,"55,981"
Department for Work and Pensions,Housing Benefits,14-Jun-12,Housing Benefit Admin,COO,SUFFOLK COASTAL DISTRICT COUNCIL,2025692347,"55,789"
Department for Work and Pensions,Housing Benefits,14-Jun-12,Housing Benefit Admin,COO,RUSHMOOR BOROUGH COUNCIL,2025692297,"55,721"
Department for Work and Pensions,Housing Benefits,14-Jun-12,Housing Benefit Admin,COO,BOROUGH OF REDDITCH,2025692050,"55,674"
Department for Work and Pensions,Corporate,01-Jun-12,FLEXIBLE SUPPORT FUND,COO,A4E LTD,2025544919,"55,650"
Department for Work and Pensions,Housing Benefits,14-Jun-12,Housing Benefit Admin,COO,BROXTOWE BOROUGH COUNCIL,2025692066,"55,343"
Department for Work and Pensions,Jobcentre Plus,08-Jun-12,COMPUTER SERVICES,COO,HP ENTERPRISE SERVICES UK LTD,2025615786,"54,696"
Department for Work and Pensions,Corporate,08-Jun-12,APPS DEV,Change PMU,HP ENTERPRISE SERVICES UK LTD,2025615786,"54,346"
Department for Work and Pensions,European Social Fund,14-Jun-12,ESF Expenditure,STR,NEWHAVEN COMMUNITY DEVELOPMENT ASSOCIATION,5000001055,"54,224"
Department for Work and Pensions,Corporate,27-Jun-12,COMPUTER SERVICES,COO,ATOS ORIGIN IT SERVICES UK LTD,2025797524,"54,156"
Department for Work and Pensions,Housing Benefits,14-Jun-12,Housing Benefit Admin,COO,CHORLEY BOROUGH COUNCIL,2025692088,"53,774"
Department for Work and Pensions,Corporate,22-Jun-12,IS/IT,COO,SPECIALIST COMPUTER CENTRES PLC,2025777353,"53,769"
Department for Work and Pensions,Housing Benefits,14-Jun-12,Housing Benefit Admin,COO,ST EDMUNDSBURY BOROUGH COUNCIL,2025692336,"53,711"
Department for Work and Pensions,Housing Benefits,14-Jun-12,Housing Benefit Admin,COO,ROTHER DISTRICT COUNCIL,2025692290,"53,653"
Department for Work and Pensions,Housing Benefits,14-Jun-12,Housing Benefit Admin,COO,STAFFORD BOROUGH COUNCIL,2025692338,"53,489"
Department for Work and Pensions,Corporate,11-Jun-12,STAFF COSTS,COO,PREMIER PARTNERSHIP,2025621138,"53,411"
Department for Work and Pensions,Housing Benefits,14-Jun-12,Housing Benefit Admin,COO,WEST LINDSEY DISTRICT COUNCIL,2025692390,"53,356"
Department for Work and Pensions,Housing Benefits,14-Jun-12,Housing Benefit Admin,COO,TUNBRIDGE WELLS BOROUGH COUNCIL,2025692371,"53,252"
Department for Work and Pensions,Corporate,29-Jun-12,ACCOMMODATION,COO,TELEREAL TRILLIUM,2025857001,"53,183"
Department for Work and Pensions,Housing Benefits,14-Jun-12,Housing Benefit Admin,COO,SOUTH RIBBLE BOROUGH COUNCIL C,2025692328,"52,827"
Department for Work and Pensions,Employment Programmes,06-Jun-12,EP PROVIDER PAYMENT - WORK PROGRAMME,COO,MAXIMUS EMPLOYMENT UK LTD,2025588602,"52,800"
Department for Work and Pensions,Housing Benefits,14-Jun-12,Housing Benefit Admin,COO,KETTERING BOROUGH COUNCIL,2025692181,"52,602"
Department for Work and Pensions,Housing Benefits,14-Jun-12,Housing Benefit Admin,COO,EASTLEIGH BOROUGH COUNCIL,2025692135,"52,502"
Department for Work and Pensions,Housing Benefits,14-Jun-12,Housing Benefit Admin,COO,LEWES DISTRICT COUNCIL,2025692189,"52,490"
Department for Work and Pensions,Corporate,08-Jun-12,EU PROGRAMMES,COO,BLUE ORCHID SUPPORT SERVICES,2025614637,"52,440"
Department for Work and Pensions,Housing Benefits,14-Jun-12,Housing Benefit Admin,COO,WYCHAVON DISTRICT COUNCIL,2025692407,"52,350"
Department for Work and Pensions,Corporate,15-Jun-12,ACCOMMODATION,COO,TELEREAL TRILLIUM,2025695554,"52,120"
Department for Work and Pensions,Corporate,29-Jun-12,COMPUTER SERVICES,COO,ACCENTURE UK LTD,2025854463,"52,082"
Department for Work and Pensions,Corporate,12-Jun-12,COMPUTER SERVICES,COO,HP ENTERPRISE SERVICES UK LTD,2025624506,"51,986"
Department for Work and Pensions,Corporate,12-Jun-12,APPS DEV,COO,HP ENTERPRISE SERVICES UK LTD,2025624506,"51,982"
Department for Work and Pensions,Housing Benefits,14-Jun-12,Housing Benefit Admin,COO,BOROUGH OF WELLINGBOROUGH,2025692052,"51,753"
Department for Work and Pensions,Housing Benefits,14-Jun-12,Housing Benefit Admin,COO,TEST VALLEY BOROUGH COUNCIL,2025692360,"51,681"
Department for Work and Pensions,Housing Benefits,14-Jun-12,Housing Benefit Admin,COO,ELMBRIDGE BOROUGH COUNCIL,2025692138,"51,651"
Department for Work and Pensions,Corporate,18-Jun-12,TELEPHONE AND POSTAGE,COO,UK MAIL,2025701035,"51,634"
Department for Work and Pensions,Housing Benefits,14-Jun-12,Housing Benefit Admin,COO,BARROW BOROUGH COUNCIL,2025692037,"51,498"
Department for Work and Pensions,Housing Benefits,14-Jun-12,Housing Benefit Admin,COO,MIDLOTHIAN COUNCIL,2025692235,"51,422"
Department for Work and Pensions,Corporate,18-Jun-12,COMPUTER SERVICES,COO,HUTCHISON 3G UK LTD,2025699335,"51,384"
Department for Work and Pensions,Employment Programmes,07-Jun-12,EP PROVIDER PAYMENT - WORK PROGRAMME,COO,CAREERS DEVELOPMENT GROUP,2025609071,"51,300"
Department for Work and Pensions,Corporate,07-Jun-12,PROFESSIONAL FEES,STR,TNS BMRB,2025613022,"51,155"
Department for Work and Pensions,Employment Programmes,13-Jun-12,EP PROVIDER PAYMENT - NON-WORK PROGRAMME,COO,INGEUS UK LTD,2025647757,"50,998"
Department for Work and Pensions,Corporate,27-Jun-12,COMPUTER SERVICES,COO,ACCENTURE UK LTD,2025797497,"50,912"
Department for Work and Pensions,Employment Programmes,06-Jun-12,ACCESS TO WORK,COO,SCOUT ENTERPRISES WESTERN LTD,2025601788,"50,857"
Department for Work and Pensions,Corporate,01-Jun-12,EU PROGRAMMES,COO,WYEA LTD,2025548058,"50,760"
Department for Work and Pensions,Corporate,29-Jun-12,ACCOMMODATION,COO,TELEREAL TRILLIUM,2025857002,"50,713"
Department for Work and Pensions,Housing Benefits,14-Jun-12,Housing Benefit Admin,COO,DARTFORD BOROUGH COUNCIL,2025692110,"50,651"
Department for Work and Pensions,Corporate,12-Jun-12,APPS DEV,COO,HP ENTERPRISE SERVICES UK LTD,2025624506,"50,580"
Department for Work and Pensions,Corporate,28-Jun-12,COMPUTER SERVICES,COO,CAPGEMINI UK PLC,2025850934,"50,527"
Department for Work and Pensions,Corporate,07-Jun-12,COMPUTER SERVICES,COO,CAPGEMINI UK PLC,2025609070,"50,527"
Department for Work and Pensions,Housing Benefits,14-Jun-12,Housing Benefit Admin,COO,HIGH PEAK BOROUGH COUNCIL,2025692171,"50,418"
Department for Work and Pensions,Employment Programmes,22-Jun-12,EP PROVIDER PAYMENT - WORK PROGRAMME,COO,G4S REGIONAL MANAGEMENT UK & I LTD,2025775615,"50,400"
Department for Work and Pensions,Housing Benefits,14-Jun-12,Housing Benefit Admin,COO,MERTHYR TYDFIL BOROUGH COUNCIL,2025692230,"50,309"
Department for Work and Pensions,Corporate,15-Jun-12,APPS DEV,COO,HP ENTERPRISE SERVICES UK LTD,2025694207,"50,288"
Department for Work and Pensions,Corporate,28-Jun-12,TELEPHONE AND POSTAGE,COO,ROYAL MAIL GROUP PLC,2025852501,"50,220"
Department for Work and Pensions,Housing Benefits,14-Jun-12,Housing Benefit Admin,COO,WEYMOUTH & PORTLAND BOROUGH COUNCIL,2025692395,"50,220"
Department for Work and Pensions,Housing Benefits,14-Jun-12,Housing Benefit Admin,COO,STROUD DISTRICT COUNCIL,2025692346,"49,998"
Department for Work and Pensions,Housing Benefits,14-Jun-12,Housing Benefit Admin,COO,WEST DORSET DISTRICT COUNCIL,2025692386,"49,977"
Department for Work and Pensions,Housing Benefits,14-Jun-12,Housing Benefit Admin,COO,NORTH EAST DERBYSHIRE DISTRICT COUNCIL,2025692249,"49,905"
Department for Work and Pensions,Corporate,22-Jun-12,PRINTING STATIONERY IT CONSUMABLES,COO,XEROX UK LTD 3W,2025777631,"49,886"
Department for Work and Pensions,Housing Benefits,14-Jun-12,Housing Benefit Admin,COO,SEVENOAKS DISTRICT COUNCIL,2025692307,"49,450"
Department for Work and Pensions,Housing Benefits,14-Jun-12,Housing Benefit Admin,COO,MID SUSSEX DISTRICT COUNCIL,2025692233,"49,336"
Department for Work and Pensions,Housing Benefits,14-Jun-12,Housing Benefit Admin,COO,BROADLAND DISTRICT COUNCIL,2025692063,"49,174"
Department for Work and Pensions,Corporate,29-Jun-12,ACCOMMODATION,COO,TELEREAL TRILLIUM,2025857000,"48,972"
Department for Work and Pensions,Jobcentre Plus,15-Jun-12,IS/IT,CIT,SPECIALIST COMPUTER CENTRES PLC,2025695480,"48,936"
Department for Work and Pensions,Housing Benefits,14-Jun-12,Housing Benefit Admin,COO,BOLSOVER DISTRICT COUNCIL,2025692048,"48,827"
Department for Work and Pensions,Housing Benefits,14-Jun-12,Housing Benefit Admin,COO,CASTLE POINT DISTRICT COUNCIL,2025692076,"48,812"
Department for Work and Pensions,Housing Benefits,14-Jun-12,Housing Benefit Admin,COO,CORBY BOROUGH COUNCIL,2025692099,"48,758"
Department for Work and Pensions,European Social Fund,20-Jun-12,ESF Expenditure,STR,WEST MIDLANDS LEARNING & SKILLS COUNCIL,5000001060,"48,405"
Department for Work and Pensions,Housing Benefits,14-Jun-12,Housing Benefit Admin,COO,SOUTH STAFFORDSHIRE DISTRICT COUNCIL,2025692330,"48,234"
Department for Work and Pensions,Corporate,28-Jun-12,TELEPHONE AND POSTAGE,COO,ROYAL MAIL GROUP PLC,2025852501,"48,123"
Department for Work and Pensions,Housing Benefits,14-Jun-12,Housing Benefit Admin,COO,ST ALBANS DISTRICT COUNCIL,2025692335,"48,096"
Department for Work and Pensions,Corporate,08-Jun-12,EMPLOYMENT ZONES,COO,NEATH PORT TALBOT COUNTY BOROUGH COUNCIL,2025616279,"47,963"
Department for Work and Pensions,Housing Benefits,14-Jun-12,Housing Benefit Admin,COO,ROSSENDALE BOROUGH COUNCIL,2025692289,"47,921"
Department for Work and Pensions,Housing Benefits,14-Jun-12,Housing Benefit Admin,COO,SOUTH HOLLAND DISTRICT COUNCIL,2025692321,"47,918"
Department for Work and Pensions,Employment Programmes,13-Jun-12,EP PROVIDER PAYMENT - NON-WORK PROGRAMME,COO,CAPITAL TRAINING GROUP LTD,2025637101,"47,730"
Department for Work and Pensions,Employment Programmes,11-Jun-12,EP PROVIDER PAYMENT - WORK PROGRAMME,COO,MAXIMUS EMPLOYMENT UK LTD,2025620908,"47,730"
Department for Work and Pensions,Corporate,08-Jun-12,COMPUTER SERVICES,COO,XEROX UK LTD 3W,2025616898,"47,591"
Department for Work and Pensions,Corporate,07-Jun-12,IS/IT,COO,SPECIALIST COMPUTER CENTRES PLC,2025612862,"47,482"
Department for Work and Pensions,Housing Benefits,14-Jun-12,Housing Benefit Admin,COO,VALE OF WHITE HORSE DISTRICT COUNCIL,2025692374,"47,330"
Department for Work and Pensions,Housing Benefits,14-Jun-12,Housing Benefit Admin,COO,EAST HAMPSHIRE DISTRICT COUNCIL,2025692126,"47,117"
Department for Work and Pensions,Housing Benefits,14-Jun-12,Housing Benefit Admin,COO,HORSHAM DISTRICT COUNCIL,2025692174,"46,865"
Department for Work and Pensions,Housing Benefits,14-Jun-12,Housing Benefit Admin,COO,FOREST OF DEAN DISTRICT COUNCIL,2025692149,"46,610"
Department for Work and Pensions,Corporate,14-Jun-12,AOS CONTRACTED OUT SERVICES,COO,AON HEWITT,2025685914,"46,520"
Department for Work and Pensions,Housing Benefits,14-Jun-12,Housing Benefit Admin,COO,SOUTH CAMBRIDGESHIRE DISTRICT COUNCIL,2025692317,"46,370"
Department for Work and Pensions,Housing Benefits,14-Jun-12,Housing Benefit Admin,COO,NORTH KESTEVEN DISTRICT COUNCIL,2025692252,"46,213"
Department for Work and Pensions,Employment Programmes,08-Jun-12,EP PROVIDER PAYMENT - NON-WORK PROGRAMME,COO,JHP GROUP LTD,2025615933,"46,185"
Department for Work and Pensions,Corporate,29-Jun-12,ACCOMMODATION,COO,TELEREAL TRILLIUM,2025857000,"45,942"
Department for Work and Pensions,Housing Benefits,14-Jun-12,Housing Benefit Admin,COO,THE MORAY COUNCIL,2025692363,"45,822"
Department for Work and Pensions,Corporate,07-Jun-12,IS/IT,COO,HP ENTERPRISE SERVICES UK LTD,2025610730,"45,737"
Department for Work and Pensions,Employment Programmes,11-Jun-12,EP PROVIDER PAYMENT - WORK PROGRAMME,COO,MAXIMUS EMPLOYMENT UK LTD,2025620908,"45,600"
Department for Work and Pensions,Employment Programmes,07-Jun-12,EP PROVIDER PAYMENT - WORK PROGRAMME,COO,WORKING LINKS,2025613156,"45,600"
Department for Work and Pensions,Housing Benefits,14-Jun-12,Housing Benefit Admin,COO,SOUTH OXFORDSHIRE DISTRICT COUNCIL,2025692327,"45,320"
Department for Work and Pensions,Housing Benefits,14-Jun-12,Housing Benefit Admin,COO,HINCKLEY & BOSWORTH BOROUGH COUNCIL,2025692173,"45,113"
Department for Work and Pensions,Housing Benefits,14-Jun-12,Housing Benefit Admin,COO,NORTH WEST LEICESTER DISTRICT COUNCIL,2025692259,"45,046"
Department for Work and Pensions,Corporate,26-Jun-12,PRINTING STATIONERY IT CONSUMABLES,COO,XEROX UK LTD 3W,2025790917,"45,012"
Department for Work and Pensions,Housing Benefits,14-Jun-12,Housing Benefit Admin,COO,WAVERLEY BOROUGH COUNCIL,2025692381,"44,903"
Department for Work and Pensions,Housing Benefits,14-Jun-12,Housing Benefit Admin,COO,LICHFIELD DISTRICT COUNCIL,2025692190,"44,719"
Department for Work and Pensions,Housing Benefits,14-Jun-12,Housing Benefit Admin,COO,MONMOUTHSHIRE COUNTY  COUNCIL,2025692238,"44,693"
Department for Work and Pensions,Employment Programmes,13-Jun-12,EP PROVIDER PAYMENT - NON-WORK PROGRAMME,COO,WORKING LINKS,2025682843,"44,410"
Department for Work and Pensions,Employment Programmes,22-Jun-12,EP PROVIDER PAYMENT - WORK PROGRAMME,COO,G4S REGIONAL MANAGEMENT UK & I LTD,2025775615,"44,400"
Department for Work and Pensions,Employment Programmes,26-Jun-12,EP PROVIDER PAYMENT - WORK PROGRAMME,COO,G4S REGIONAL MANAGEMENT UK & I LTD,2025787322,"44,400"
Department for Work and Pensions,Housing Benefits,14-Jun-12,Housing Benefit Admin,COO,SOUTH HAMS DISTRICT COUNCIL,2025692320,"44,367"
Department for Work and Pensions,Housing Benefits,14-Jun-12,Housing Benefit Admin,COO,SPELTHORNE BOROUGH COUNCIL,2025692334,"44,270"
Department for Work and Pensions,Corporate,29-Jun-12,ACCOMMODATION,COO,TELEREAL TRILLIUM,2025857000,"44,167"
Department for Work and Pensions,Housing Benefits,14-Jun-12,Housing Benefit Admin,COO,EAST DUNBARTONSHIRE COUNCIL,2025692125,"44,113"
Department for Work and Pensions,Corporate,07-Jun-12,FLEXIBLE SUPPORT FUND,COO,A4E LTD,2025608678,"43,860"
Department for Work and Pensions,Housing Benefits,14-Jun-12,Housing Benefit Admin,COO,STIRLING COUNCIL,2025692341,"43,811"
Department for Work and Pensions,Housing Benefits,14-Jun-12,Housing Benefit Admin,COO,WINCHESTER CITY COUNCIL,2025692398,"43,634"
Department for Work and Pensions,Housing Benefits,14-Jun-12,Housing Benefit Admin,COO,COPELAND BOROUGH COUNCIL,2025692098,"43,522"
Department for Work and Pensions,Housing Benefits,14-Jun-12,Housing Benefit Admin,COO,WOKINGHAM DISTRICT COUNCIL,2025692402,"43,489"
Department for Work and Pensions,Corporate,28-Jun-12,TELEPHONE AND POSTAGE,COO,ROYAL MAIL GROUP PLC,2025852501,"43,470"
Department for Work and Pensions,Housing Benefits,14-Jun-12,Housing Benefit Admin,COO,WEST OXFORDSHIRE DISTRICT COUNCIL,2025692393,"43,287"
Department for Work and Pensions,Housing Benefits,14-Jun-12,Housing Benefit Admin,COO,ISLE OF ANGLESEY COUNTY COUNCIL,2025692179,"43,263"
Department for Work and Pensions,Employment Programmes,06-Jun-12,EP PROVIDER PAYMENT - WORK PROGRAMME,COO,INGEUS UK LTD,2025570452,"43,200"
Department for Work and Pensions,Corporate,19-Jun-12,EMPLOYMENT ZONES,COO,NEWPORT CITY COUNCIL,2025709647,"43,000"
Department for Work and Pensions,Housing Benefits,14-Jun-12,Housing Benefit Admin,COO,BOSTON BOROUGH COUNCIL,2025692053,"42,980"
Department for Work and Pensions,Corporate,15-Jun-12,PROFESSIONAL FEES,COO,LOVELLS,2025694692,"42,973"
Department for Work and Pensions,SHARED SERVICES,06-Jun-12,NETWORK,COO,CABINET OFFICE,2025558766,"42,903"
Department for Work and Pensions,Housing Benefits,14-Jun-12,Housing Benefit Admin,COO,WOKING BOROUGH COUNCIL,2025692401,"42,862"
Department for Work and Pensions,Corporate,29-Jun-12,EMPLOYMENT ZONES,COO,BTCV ENTERPRISES LTD,2025854531,"42,833"
Department for Work and Pensions,Housing Benefits,14-Jun-12,Housing Benefit Admin,COO,TAMWORTH BOROUGH COUNCIL,2025692355,"42,671"
Department for Work and Pensions,Corporate,22-Jun-12,PRINCES YOUTH TRUST,COO,MANCHESTER CITY COUNCIL,1005287,"42,500"
Department for Work and Pensions,Corporate,29-Jun-12,Accommodation Costs,COO,COPELAND BOROUGH COUNCIL,2025854627,"42,430"
Department for Work and Pensions,Employment Programmes,28-Jun-12,EP PROVIDER PAYMENT - WORK PROGRAMME,COO,REED IN PARTNERSHIP LTD,2025852495,"42,180"
Department for Work and Pensions,Housing Benefits,14-Jun-12,Housing Benefit Admin,COO,EAST NORTHANTS DISTRICT COUNCIL,2025692130,"42,116"
Department for Work and Pensions,Corporate,07-Jun-12,TEMPORARY (TEMP) STAFF COSTS,COO,IBM UNITED KINGDOM LTD,2025610776,"42,046"
Department for Work and Pensions,Employment Programmes,08-Jun-12,EP PROVIDER PAYMENT - WORK PROGRAMME,COO,WORKING LINKS,2025616894,"42,000"
Department for Work and Pensions,Employment Programmes,11-Jun-12,EP PROVIDER PAYMENT - WORK PROGRAMME,COO,WORKING LINKS,2025621719,"42,000"
Department for Work and Pensions,Housing Benefits,14-Jun-12,Housing Benefit Admin,COO,BABERGH DISTRICT COUNCIL,2025692035,"41,433"
Department for Work and Pensions,Employment Programmes,11-Jun-12,ACCESS TO WORK,COO,REMARK,2025621267,"41,225"
Department for Work and Pensions,Employment Programmes,06-Jun-12,EP PROVIDER PAYMENT - WORK PROGRAMME,COO,INGEUS UK LTD,2025570452,"41,112"
Department for Work and Pensions,Corporate,06-Jun-12,PRINTING STATIONERY IT CONSUMABLES,My Civil Seevice Pension,ST IVES DIRECT LTD,2025601824,"40,753"
Department for Work and Pensions,Housing Benefits,14-Jun-12,Housing Benefit Admin,COO,STAFFORDSHIRE MOORLANDS DISTRICT COUNCIL,2025692339,"40,751"
Department for Work and Pensions,Housing Benefits,14-Jun-12,Housing Benefit Admin,COO,CEREDIGION COUNTY COUNCIL,2025692078,"40,737"
Department for Work and Pensions,Corporate,08-Jun-12,APPS DEV,CIT,HP ENTERPRISE SERVICES UK LTD,2025615786,"40,429"
Department for Work and Pensions,Housing Benefits,14-Jun-12,Housing Benefit Admin,COO,TORRIDGE DISTRICT COUNCIL,2025692369,"40,415"
Department for Work and Pensions,Housing Benefits,14-Jun-12,Housing Benefit Admin,COO,FAREHAM BOROUGH COUNCIL,2025692144,"40,282"
Department for Work and Pensions,Housing Benefits,14-Jun-12,Housing Benefit Admin,COO,RUNNYMEDE BOROUGH COUNCIL,2025692295,"40,250"
Department for Work and Pensions,Corporate,21-Jun-12,EMPLOYMENT ZONES,COO,URBAN FUTURES LONDON LTD,2025771348,"40,245"
Department for Work and Pensions,Employment Programmes,13-Jun-12,EP PROVIDER PAYMENT - NON-WORK PROGRAMME,COO,INGEUS UK LTD,2025647757,"40,087"
Department for Work and Pensions,Corporate,18-Jun-12,COMPUTER SERVICES,COO,HP ENTERPRISE SERVICES UK LTD,2025699333,"39,883"
Department for Work and Pensions,Corporate,22-Jun-12,COMPUTER SERVICES,COO,ATOS ORIGIN IT SERVICES UK LTD,2025772996,"39,622"
Department for Work and Pensions,Employment Programmes,26-Jun-12,EP PROVIDER PAYMENT - WORK PROGRAMME,COO,G4S REGIONAL MANAGEMENT UK & I LTD,2025787322,"39,600"
Department for Work and Pensions,Corporate,22-Jun-12,AOS CONTRACTED OUT SERVICES,COO,COMMERCIAL COLLECTION SERVICES LTD,2025773340,"39,414"
Department for Work and Pensions,Employment Programmes,28-Jun-12,EP PROVIDER PAYMENT - NON-WORK PROGRAMME,COO,JHP GROUP LTD,2025851743,"39,406"
Department for Work and Pensions,Housing Benefits,14-Jun-12,Housing Benefit Admin,COO,THREE RIVERS DISTRICT COUNCIL,2025692364,"39,377"
Department for Work and Pensions,Housing Benefits,14-Jun-12,Housing Benefit Admin,COO,MID DEVON DISTRICT COUNCIL,2025692231,"39,036"
Department for Work and Pensions,Corporate,22-Jun-12,AOS CONTRACTED OUT SERVICES,COO,PROMOTIONAL LOGISTICS LTD,2025776855,"38,769"
Department for Work and Pensions,Housing Benefits,14-Jun-12,Housing Benefit Admin,COO,COTSWOLD DISTRICT COUNCIL,2025692102,"38,748"
Department for Work and Pensions,Housing Benefits,14-Jun-12,Housing Benefit Admin,COO,HAMBLETON DISTRICT COUNCIL,2025692161,"38,598"
Department for Work and Pensions,Housing Benefits,14-Jun-12,Housing Benefit Admin,COO,EAST CAMBRIDGESHIRE DISTRICT COUNCIL,2025692122,"38,521"
Department for Work and Pensions,Housing Benefits,14-Jun-12,Housing Benefit Admin,COO,RUSHCLIFFE BOROUGH COUNCIL,2025692296,"38,483"
Department for Work and Pensions,Employment Programmes,06-Jun-12,EP PROVIDER PAYMENT - WORK PROGRAMME,COO,WORKING LINKS,2025605516,"38,400"
Department for Work and Pensions,Corporate,25-Jun-12,PROFESSIONAL FEES,COO,SHARPE PRITCHARD,2025780970,"38,317"
Department for Work and Pensions,Housing Benefits,14-Jun-12,Housing Benefit Admin,COO,SOUTH DERBYSHIRE DISTRICT COUNCIL,2025692318,"38,315"
Department for Work and Pensions,Housing Benefits,14-Jun-12,Housing Benefit Admin,COO,SOUTH LAKELAND DISTRICT COUNCIL,2025692323,"38,232"
Department for Work and Pensions,Employment Programmes,29-Jun-12,EP PROVIDER PAYMENT - WORK PROGRAMME,COO,SEETEC BUSINESS TECHNOLOGY CENTRE LTD,2025856939,"38,220"
Department for Work and Pensions,Housing Benefits,14-Jun-12,Housing Benefit Admin,COO,TEWKESBURY BOROUGH COUNCIL,2025692361,"38,007"
Department for Work and Pensions,Employment Programmes,20-Jun-12,RESIDENTIAL TRAINING,COO,RNIB ROYAL NATIONAL INSTITUTE FOR THE BLIND,2025755269,"37,893"
Department for Work and Pensions,Corporate,20-Jun-12,EU PROGRAMMES,COO,A4E LTD,2025714174,"37,745"
Department for Work and Pensions,Housing Benefits,14-Jun-12,Housing Benefit Admin,COO,CLACKMANNANSHIRE COUNCIL,2025692094,"37,639"
Department for Work and Pensions,Employment Programmes,20-Jun-12,EP PROVIDER PAYMENT - WORK PROGRAMME,COO,A4E LTD,2025714172,"37,536"
Department for Work and Pensions,Housing Benefits,14-Jun-12,Housing Benefit Admin,COO,SELBY DISTRICT COUNCIL,2025692306,"37,280"
Department for Work and Pensions,Employment Programmes,28-Jun-12,EP PROVIDER PAYMENT - NON-WORK PROGRAMME,COO,SHAW TRUST,2025852729,"37,242"
Department for Work and Pensions,Housing Benefits,14-Jun-12,Housing Benefit Admin,COO,FYLDE BOROUGH COUNCIL,2025692150,"37,224"
Department for Work and Pensions,Employment Programmes,26-Jun-12,EP PROVIDER PAYMENT - WORK PROGRAMME,COO,G4S REGIONAL MANAGEMENT UK & I LTD,2025787322,"37,200"
Department for Work and Pensions,Employment Programmes,06-Jun-12,EP PROVIDER PAYMENT - WORK PROGRAMME,COO,INGEUS UK LTD,2025570453,"37,200"
Department for Work and Pensions,Corporate,20-Jun-12,EMPLOYMENT ZONES,COO,SOUTH STAFFORDSHIRE & SHROPSHIRE NHS,2025762123,"36,755"
Department for Work and Pensions,Corporate,11-Jun-12,EMPLOYMENT ZONES,COO,JHP GROUP LTD,2025620414,"36,118"
Department for Work and Pensions,Housing Benefits,14-Jun-12,Housing Benefit Admin,COO,BLABY DISTRICT COUNCIL,2025692044,"36,051"
Department for Work and Pensions,Corporate,07-Jun-12,STAFF COSTS,F&C,CIPFA BUSINESS LTD,2025609078,"35,996"
Department for Work and Pensions,Housing Benefits,14-Jun-12,Housing Benefit Admin,COO,MID SUFFOLK DISTRICT COUNCIL,2025692232,"35,692"
Department for Work and Pensions,Corporate,22-Jun-12,Accommodation Costs,COO,DEPARTMENT OF EDUCATION SKILLS,2025773531,"35,644"
Department for Work and Pensions,Corporate,22-Jun-12,JOBCENTRE PLUS PATHWAYS TO WORK,COO,SEETEC,2025777302,"35,516"
Department for Work and Pensions,Corporate,29-Jun-12,ACCOMMODATION,COO,TELEREAL TRILLIUM,2025857000,"35,398"
Department for Work and Pensions,Housing Benefits,14-Jun-12,Housing Benefit Admin,COO,MALVERN HILLS DISTRICT COUNCIL,2025692224,"35,375"
Department for Work and Pensions,Housing Benefits,14-Jun-12,Housing Benefit Admin,COO,EAST DORSET DISTRICT COUNCIL,2025692124,"35,366"
Department for Work and Pensions,Housing Benefits,22-Jun-12,COMPUTER SERVICES,COO,ACCENTURE UK LTD,2025772970,"35,354"
Department for Work and Pensions,Employment Programmes,06-Jun-12,EP PROVIDER PAYMENT - WORK PROGRAMME,COO,AVANTA ENTERPRISE LTD,2025553622,"35,340"
Department for Work and Pensions,Employment Programmes,20-Jun-12,EP PROVIDER PAYMENT - WORK PROGRAMME,COO,A4E LTD,2025714172,"35,328"
Department for Work and Pensions,Corporate,22-Jun-12,EMPLOYMENT ZONES,COO,MAKING SPACE,2025776550,"35,042"
Department for Work and Pensions,Employment Programmes,26-Jun-12,EP PROVIDER PAYMENT - WORK PROGRAMME,COO,G4S REGIONAL MANAGEMENT UK & I LTD,2025787322,"34,800"
Department for Work and Pensions,Housing Benefits,14-Jun-12,Housing Benefit Admin,COO,BROMSGROVE DISTRICT COUNCIL,2025692064,"34,771"
Department for Work and Pensions,Housing Benefits,14-Jun-12,Housing Benefit Admin,COO,ROCHFORD DISTRICT COUNCIL,2025692288,"34,763"
Department for Work and Pensions,Employment Programmes,11-Jun-12,EP PROVIDER PAYMENT - NON-WORK PROGRAMME,COO,SEETEC BUSINESS TECHNOLOGY CENTRE LTD,2025621510,"34,593"
Department for Work and Pensions,Corporate,12-Jun-12,APPS DEV,COO,HP ENTERPRISE SERVICES UK LTD,2025624506,"34,592"
Department for Work and Pensions,Employment Programmes,28-Jun-12,EP PROVIDER PAYMENT - WORK PROGRAMME,COO,G4S REGIONAL MANAGEMENT UK & I LTD,2025851450,"34,500"
Department for Work and Pensions,Employment Programmes,26-Jun-12,EP PROVIDER PAYMENT - WORK PROGRAMME,COO,INGEUS UK LTD,2025787563,"34,500"
Department for Work and Pensions,Corporate,12-Jun-12,MISCELLANEOUS EXPENDITURE,PS,INSTITUTE FOR EMPLOYMENT STUDIES,2025624553,"34,000"
Department for Work and Pensions,Corporate,29-Jun-12,ACCOMMODATION,COO,TELEREAL TRILLIUM,2025857000,"33,771"
Department for Work and Pensions,Housing Benefits,14-Jun-12,Housing Benefit Admin,COO,ADUR DISTRICT COUNCIL,2025692026,"33,752"
Department for Work and Pensions,Corporate,19-Jun-12,EMPLOYMENT ZONES,COO,A4E LTD,2025702496,"33,684"
Department for Work and Pensions,Corporate,12-Jun-12,EMPLOYMENT ZONES,COO,A4ENTERPRISE LTD,2025623376,"33,684"
Department for Work and Pensions,Employment Programmes,22-Jun-12,EP PROVIDER PAYMENT - WORK PROGRAMME,COO,G4S REGIONAL MANAGEMENT UK & I LTD,2025775615,"33,600"
Department for Work and Pensions,Employment Programmes,11-Jun-12,EP PROVIDER PAYMENT - WORK PROGRAMME,COO,SEETEC BUSINESS TECHNOLOGY CENTRE LTD,2025621510,"33,600"
Department for Work and Pensions,Employment Programmes,18-Jun-12,EP PROVIDER PAYMENT - WORK PROGRAMME,COO,WORKING LINKS,2025701120,"33,600"
Department for Work and Pensions,Corporate,28-Jun-12,COMPUTER SERVICES,COO,BT GLOBAL SERVICES,2025850789,"33,573"
Department for Work and Pensions,Housing Benefits,14-Jun-12,Housing Benefit Admin,COO,CHILTERN DISTRICT COUNCIL,2025692087,"33,462"
Department for Work and Pensions,"Pension, Disability Carers Services",08-Jun-12,APPS DEV,Change PMU,HP ENTERPRISE SERVICES UK LTD,2025615786,"33,438"
Department for Work and Pensions,Housing Benefits,14-Jun-12,Housing Benefit Admin,COO,FOREST HEATH DISTRICT COUNCIL,2025692148,"33,394"
Department for Work and Pensions,Employment Programmes,07-Jun-12,EP PROVIDER PAYMENT - WORK PROGRAMME,COO,MAXIMUS EMPLOYMENT UK LTD,2025611874,"33,300"
Department for Work and Pensions,Corporate,13-Jun-12,AOS CONTRACTED OUT SERVICES,F&C,IQOR RECOVERY SERVICES LTD,2025647762,"33,133"
Department for Work and Pensions,Housing Benefits,14-Jun-12,Housing Benefit Admin,COO,DAVENTRY DISTRICT COUNCIL,2025692111,"33,096"
Department for Work and Pensions,SHARED SERVICES,29-Jun-12,COMPUTER SERVICES,COO,FUJITSU SERVICES LTD,2025856075,"33,072"
Department for Work and Pensions,Corporate,29-Jun-12,COMPUTER SERVICES,COO,ACCENTURE UK LTD,2025854463,"33,023"
Department for Work and Pensions,Employment Programmes,06-Jun-12,EP PROVIDER PAYMENT - WORK PROGRAMME,COO,REHAB JOBFIT,2025595094,"33,000"
Department for Work and Pensions,Corporate,29-Jun-12,FLEXIBLE SUPPORT FUND,COO,SEQOL,2025856941,"33,000"
Department for Work and Pensions,Housing Benefits,14-Jun-12,Housing Benefit Admin,COO,NORTH WARWICKSHIRE DISTRICT COUNCIL,2025692258,"32,479"
Department for Work and Pensions,Corporate,22-Jun-12,PROFESSIONAL FEES,COO,XEROX UK LTD 3W,2025777631,"32,292"
Department for Work and Pensions,Corporate,29-Jun-12,ACCOMMODATION,COO,TELEREAL TRILLIUM,2025857001,"32,060"
Department for Work and Pensions,Corporate,12-Jun-12,APPS DEV,COO,HP ENTERPRISE SERVICES UK LTD,2025624506,"31,928"
Department for Work and Pensions,Housing Benefits,14-Jun-12,Housing Benefit Admin,COO,EAST RENFREWSHIRE COUNCIL,2025692131,"31,881"
Department for Work and Pensions,Housing Benefits,14-Jun-12,Housing Benefit Admin,COO,TANDRIDGE DISTRICT COUNCIL,2025692356,"31,811"
Department for Work and Pensions,Employment Programmes,26-Jun-12,EP PROVIDER PAYMENT - WORK PROGRAMME,COO,INGEUS UK LTD,2025787563,"31,800"
Department for Work and Pensions,Corporate,01-Jun-12,OTHER GOODS AND SERVICES,COO,MINERVA SOCIAL ENTERPRISE,2025547019,"31,676"
Department for Work and Pensions,Corporate,12-Jun-12,APPS DEV,COO,HP ENTERPRISE SERVICES UK LTD,2025624506,"31,656"
Department for Work and Pensions,Housing Benefits,14-Jun-12,Housing Benefit Admin,COO,MOLE VALLEY DISTRICT COUNCIL,2025692237,"31,651"
Department for Work and Pensions,Housing Benefits,14-Jun-12,Housing Benefit Admin,COO,SURREY HEATH BOROUGH COUNCIL,2025692350,"31,427"
Department for Work and Pensions,Employment Programmes,06-Jun-12,EP PROVIDER PAYMENT - WORK PROGRAMME,COO,INGEUS UK LTD,2025570452,"31,390"
Department for Work and Pensions,Employment Programmes,26-Jun-12,ACCESS TO WORK,COO,GENERATE,2025787326,"31,329"
Department for Work and Pensions,Employment Programmes,26-Jun-12,EP PROVIDER PAYMENT - WORK PROGRAMME,COO,G4S REGIONAL MANAGEMENT UK & I LTD,2025787322,"31,250"
Department for Work and Pensions,Employment Programmes,13-Jun-12,EP PROVIDER PAYMENT - NON-WORK PROGRAMME,COO,REED IN PARTNERSHIP LTD,2025672396,"31,164"
Department for Work and Pensions,Employment Programmes,06-Jun-12,ACCESS TO WORK,COO,UNIVERSITY OF BRISTOL,2025604147,"31,134"
Department for Work and Pensions,Corporate,20-Jun-12,EU PROGRAMMES,COO,NORTH EAST ENTERPRISE AGENCIES LTD,2025751240,"31,086"
Department for Work and Pensions,Corporate,22-Jun-12,EU PROGRAMMES,COO,GATESHEAD COUNCIL,2025775620,"30,831"
Department for Work and Pensions,Corporate,06-Jun-12,EU PROGRAMMES,COO,GATESHEAD COUNCIL,2025568547,"30,831"
Department for Work and Pensions,Employment Programmes,06-Jun-12,EP PROVIDER PAYMENT - WORK PROGRAMME,COO,AVANTA ENTERPRISE LTD,2025553622,"30,780"
Department for Work and Pensions,Corporate,12-Jun-12,EU PROGRAMMES,COO,BLACK COUNTRY CHAMBER OF COMMERCE,2025623473,"30,678"
Department for Work and Pensions,Employment Programmes,11-Jun-12,EP PROVIDER PAYMENT - WORK PROGRAMME,COO,INGEUS UK LTD,2025620202,"30,600"
Department for Work and Pensions,Corporate,06-Jun-12,STAFF COSTS,COO,AMA ASSOCIATES LTD,2025553601,"30,524"
Department for Work and Pensions,Corporate,11-Jun-12,APPS DEV,COO,HP ENTERPRISE SERVICES UK LTD,2025620165,"30,301"
Department for Work and Pensions,Employment Programmes,11-Jun-12,EP PROVIDER PAYMENT - WORK PROGRAMME,COO,WORKING LINKS,2025621719,"30,250"
Department for Work and Pensions,Corporate,07-Jun-12,TELEPHONE AND POSTAGE,COO,POST OFFICE LTD,2025612226,"30,200"
Department for Work and Pensions,Corporate,11-Jun-12,TELEPHONE AND POSTAGE,COO,POST OFFICE LTD,2025621136,"30,200"
Department for Work and Pensions,Employment Programmes,27-Jun-12,ACCESS TO WORK,COO,ROYAL BRITISH LEGION INDUSTRIES,2025838085,"30,192"
Department for Work and Pensions,Corporate,12-Jun-12,MISCELLANEOUS EXPENDITURE,PS,GHK CONSULTING LTD,2025624429,"30,000"
Department for Work and Pensions,Housing Benefits,14-Jun-12,Housing Benefit Admin,COO,NORTH DORSET DISTRICT COUNCIL,2025692248,"29,975"
Department for Work and Pensions,Employment Programmes,25-Jun-12,Help for unemployed people,COO,GREATER LONDON ENTERPRISE,2025779795,"29,899"
Department for Work and Pensions,Corporate,18-Jun-12,STATIONERY/ PUBLICATIONS/IT CONSUMABLES,COO,XEROX UK LTD 3W,2025701122,"29,705"
Department for Work and Pensions,Housing Benefits,14-Jun-12,Housing Benefit Admin,COO,BRENTWOOD DISTRICT COUNCIL,2025692059,"29,689"
Department for Work and Pensions,Corporate,13-Jun-12,AOS CONTRACTED OUT SERVICES,COO,IQOR RECOVERY SERVICES LTD,2025647762,"29,677"
Department for Work and Pensions,Employment Programmes,21-Jun-12,EP PROVIDER PAYMENT - WORK PROGRAMME,COO,A4E LTD,2025768982,"29,640"
Department for Work and Pensions,Employment Programmes,28-Jun-12,EP PROVIDER PAYMENT - WORK PROGRAMME,COO,WORKING LINKS,2025852870,"29,600"
Department for Work and Pensions,Housing Benefits,14-Jun-12,Housing Benefit Admin,COO,EPSOM & EWELL BOROUGH COUNCIL,2025692140,"29,563"
Department for Work and Pensions,Housing Benefits,14-Jun-12,Housing Benefit Admin,COO,MALDON DISTRICT COUNCIL,2025692223,"29,403"
Department for Work and Pensions,Employment Programmes,28-Jun-12,EP PROVIDER PAYMENT - NON-WORK PROGRAMME,COO,A4E LTD,2025850729,"29,333"
Department for Work and Pensions,Employment Programmes,26-Jun-12,EP PROVIDER PAYMENT - WORK PROGRAMME,COO,G4S REGIONAL MANAGEMENT UK & I LTD,2025787322,"29,000"
Department for Work and Pensions,Employment Programmes,08-Jun-12,EP PROVIDER PAYMENT - WORK PROGRAMME,COO,WORKING LINKS,2025616894,"28,810"
Department for Work and Pensions,Employment Programmes,26-Jun-12,EP PROVIDER PAYMENT - WORK PROGRAMME,COO,G4S REGIONAL MANAGEMENT UK & I LTD,2025787322,"28,800"
Department for Work and Pensions,Employment Programmes,07-Jun-12,EP PROVIDER PAYMENT - WORK PROGRAMME,COO,MAXIMUS EMPLOYMENT UK LTD,2025611874,"28,800"
Department for Work and Pensions,Corporate,19-Jun-12,MEDICAL SERVICES,COO,PENDRAGON,2025707362,"28,800"
Department for Work and Pensions,Employment Programmes,22-Jun-12,RESIDENTIAL TRAINING,COO,ENHAM,2025775460,"28,717"
Department for Work and Pensions,Corporate,20-Jun-12,OTHER GOODS AND SERVICES,COO,LEARN & GROW COMMUNITY INVESTMENT CO,2025744527,"28,650"
Department for Work and Pensions,Corporate,28-Jun-12,TELEPHONE AND POSTAGE,COO,ROYAL MAIL GROUP PLC,2025852501,"28,590"
Department for Work and Pensions,Corporate,19-Jun-12,TEMPORARY (TEMP) STAFF COSTS,COO,CAPITA RESOURCING LTD,2025702992,"28,477"
Department for Work and Pensions,Corporate,29-Jun-12,STAFF COSTS,COO,AMA ASSOCIATES LTD,2025854469,"28,427"
Department for Work and Pensions,Corporate,29-Jun-12,Consultancy Fee,COO,FIELD FISHER WATERHOUSE LLP,2025856074,"28,418"
Department for Work and Pensions,Employment Programmes,06-Jun-12,EP PROVIDER PAYMENT - WORK PROGRAMME,COO,INGEUS UK LTD,2025570452,"28,380"
Department for Work and Pensions,Employment Programmes,06-Jun-12,ACCESS TO WORK,COO,SOUTH WEST LONDON & ST GEORGES NHS TRUST,2025601819,"28,228"
Department for Work and Pensions,Employment Programmes,28-Jun-12,EP PROVIDER PAYMENT - NON-WORK PROGRAMME,COO,SHAW TRUST,2025852729,"28,187"
Department for Work and Pensions,Housing Benefits,14-Jun-12,Housing Benefit Admin,COO,HARBOROUGH DISTRICT COUNCIL,2025692162,"28,174"
Department for Work and Pensions,Corporate,12-Jun-12,APPS DEV,COO,HP ENTERPRISE SERVICES UK LTD,2025624506,"27,797"
Department for Work and Pensions,Corporate,29-Jun-12,ACCOMMODATION,COO,TELEREAL TRILLIUM,2025857000,"27,755"
Department for Work and Pensions,Housing Benefits,14-Jun-12,Housing Benefit Admin,COO,WEST DEVON BOROUGH COUNCIL,2025692385,"27,749"
Department for Work and Pensions,Corporate,27-Jun-12,COMPUTER SERVICES,COO,ATOS ORIGIN IT SERVICES UK LTD,2025797524,"27,737"
Department for Work and Pensions,Employment Programmes,28-Jun-12,EP PROVIDER PAYMENT - NON-WORK PROGRAMME,COO,SHAW TRUST,2025852729,"27,606"
Department for Work and Pensions,Employment Programmes,28-Jun-12,EP PROVIDER PAYMENT - WORK PROGRAMME,COO,WORKING LINKS,2025852870,"27,600"
Department for Work and Pensions,Employment Programmes,26-Jun-12,EP PROVIDER PAYMENT - WORK PROGRAMME,COO,WORKING LINKS,2025790909,"27,500"
Department for Work and Pensions,Corporate,13-Jun-12,TEMPORARY (TEMP) STAFF COSTS,CIT,CAPITA RESOURCING LTD,2025637098,"27,457"
Department for Work and Pensions,Corporate,08-Jun-12,EU PROGRAMMES,COO,NORTH LONDON LTD,2025616298,"27,432"
Department for Work and Pensions,Housing Benefits,14-Jun-12,Housing Benefit Admin,COO,DERBYSHIRE DALES DISTRICT COUNCIL,2025692114,"27,378"
Department for Work and Pensions,Housing Benefits,14-Jun-12,Housing Benefit Admin,COO,UTTLESFORD DISTRICT COUNCIL,2025692372,"27,348"
Department for Work and Pensions,Employment Programmes,22-Jun-12,EP PROVIDER PAYMENT - WORK PROGRAMME,COO,INGEUS UK LTD,2025775762,"27,300"
Department for Work and Pensions,Employment Programmes,06-Jun-12,EP PROVIDER PAYMENT - WORK PROGRAMME,COO,WORKING LINKS,2025605516,"27,100"
Department for Work and Pensions,European Social Fund,20-Jun-12,ESF Expenditure,STR,SOUTH WEST FORUM,5000001059,"27,049"
Department for Work and Pensions,Employment Programmes,11-Jun-12,EP PROVIDER PAYMENT - WORK PROGRAMME,COO,PROSPECTS SERVICES LTD,2025621141,"27,000"
Department for Work and Pensions,Employment Programmes,26-Jun-12,EP PROVIDER PAYMENT - WORK PROGRAMME,COO,A4E LTD,2025782397,"26,700"
Department for Work and Pensions,Housing Benefits,14-Jun-12,Housing Benefit Admin,COO,CHRISTCHURCH BOROUGH COUNCIL,2025692089,"26,629"
Department for Work and Pensions,Corporate,01-Jun-12,EMPLOYMENT ZONES,COO,REMPLOY LTD,2025547526,"26,612"
Department for Work and Pensions,Corporate,19-Jun-12,Office Supplies printing and publicity,COO,NLA NEWS PAPER LICENSING AGENCY,2025707100,"26,532"
Department for Work and Pensions,Corporate,12-Jun-12,APPS DEV,COO,HP ENTERPRISE SERVICES UK LTD,2025624506,"26,491"
Department for Work and Pensions,Corporate,18-Jun-12,EU PROGRAMMES,COO,BLUE ORCHID SUPPORT SERVICES,2025697128,"26,450"
Department for Work and Pensions,Housing Benefits,14-Jun-12,Housing Benefit Admin,COO,SOUTH NORTHANTS COUNCIL,2025692326,"26,356"
Department for Work and Pensions,Corporate,29-Jun-12,ACCOMMODATION,COO,TELEREAL TRILLIUM,2025857001,"26,335"
Department for Work and Pensions,Corporate,13-Jun-12,EMPLOYMENT ZONES,COO,SFEDI LTD,2025679149,"26,300"
Department for Work and Pensions,Employment Programmes,26-Jun-12,EP PROVIDER PAYMENT - WORK PROGRAMME,COO,G4S REGIONAL MANAGEMENT UK & I LTD,2025787322,"26,250"
Department for Work and Pensions,Corporate,01-Jun-12,APPS DEV,CIT,HP ENTERPRISE SERVICES UK LTD,2025545986,"26,176"
Department for Work and Pensions,Corporate,29-Jun-12,ACCOMMODATION,COO,TELEREAL TRILLIUM,2025857001,"26,106"
Department for Work and Pensions,Employment Programmes,11-Jun-12,EP PROVIDER PAYMENT - WORK PROGRAMME,COO,WORKING LINKS,2025621719,"26,100"
Department for Work and Pensions,Employment Programmes,06-Jun-12,EP PROVIDER PAYMENT - WORK PROGRAMME,COO,INGEUS UK LTD,2025570452,"26,000"
Department for Work and Pensions,Corporate,22-Jun-12,Accommodation Costs,COO,WYCHAVON DISTRICT COUNCIL,2025777623,"25,988"
Department for Work and Pensions,Corporate,27-Jun-12,CONFERENCES AND MEETINGS,COO,NYS CORPORATE LTD,2025834191,"25,878"
Department for Work and Pensions,Corporate,19-Jun-12,EU PROGRAMMES,COO,DBIC,2025703342,"25,831"
Department for Work and Pensions,Corporate,07-Jun-12,EU PROGRAMMES,COO,DBIC,2025609324,"25,831"
Department for Work and Pensions,Employment Programmes,22-Jun-12,EP PROVIDER PAYMENT - WORK PROGRAMME,COO,INGEUS UK LTD,2025775762,"25,800"
Department for Work and Pensions,Corporate,22-Jun-12,EMPLOYMENT PROGRAMMES,Excluded,M PARLE,3006539,"25,790"
Department for Work and Pensions,Corporate,15-Jun-12,EU PROGRAMMES,COO,NOTTINGHAMSHIRE BUSINESS VENTURE,2025694948,"25,718"
Department for Work and Pensions,Employment Programmes,11-Jun-12,EP PROVIDER PAYMENT - WORK PROGRAMME,COO,CAREERS DEVELOPMENT GROUP,2025618707,"25,600"
Department for Work and Pensions,Corporate,08-Jun-12,EU PROGRAMMES,COO,BLUE ORCHID SUPPORT SERVICES,2025614637,"25,556"
Department for Work and Pensions,Housing Benefits,14-Jun-12,Housing Benefit Admin,COO,WEST SOMERSET DISTRICT COUNCIL,2025692394,"25,533"
Department for Work and Pensions,Employment Programmes,07-Jun-12,EP PROVIDER PAYMENT - NON-WORK PROGRAMME,COO,JHP GROUP LTD,2025611139,"25,425"
Department for Work and Pensions,Employment Programmes,14-Jun-12,EP PROVIDER PAYMENT - WORK PROGRAMME,COO,WORKING LINKS,2025690503,"25,400"
Department for Work and Pensions,Employment Programmes,14-Jun-12,EP PROVIDER PAYMENT - WORK PROGRAMME,COO,A4E LTD,2025685884,"25,392"
Department for Work and Pensions,Employment Programmes,08-Jun-12,EP PROVIDER PAYMENT - WORK PROGRAMME,COO,A4E LTD,2025614518,"25,392"
Department for Work and Pensions,Housing Benefits,14-Jun-12,Housing Benefit Admin,COO,RYEDALE DISTRICT COUNCIL,2025692299,"25,235"
Department for Work and Pensions,Employment Programmes,22-Jun-12,EP PROVIDER PAYMENT - WORK PROGRAMME,COO,INGEUS UK LTD,2025775762,"25,200"
Department for Work and Pensions,Employment Programmes,11-Jun-12,EP PROVIDER PAYMENT - WORK PROGRAMME,COO,WORKING LINKS,2025621719,"25,200"
Department for Work and Pensions,Employment Programmes,26-Jun-12,EP PROVIDER PAYMENT - WORK PROGRAMME,COO,WORKING LINKS,2025790909,"25,200"
Department for Work and Pensions,Employment Programmes,29-Jun-12,EP PROVIDER PAYMENT - WORK PROGRAMME,COO,WORKING LINKS,2025857068,"25,200"
Department for Work and Pensions,Corporate,28-Jun-12,TELEPHONE AND POSTAGE,COO,ROYAL MAIL GROUP PLC,2025852501,"25,070"
Department for Work and Pensions,Corporate,22-Jun-12,MEDICAL SERVICES,COO,ATOS HEALTHCARE,2025772995,"24,950"
Department for Work and Pensions,Employment Programmes,11-Jun-12,EP PROVIDER PAYMENT - WORK PROGRAMME,COO,INGEUS UK LTD,2025620202,"24,900"
Department for Work and Pensions,Corporate,06-Jun-12,AOS CONTRACTED OUT SERVICES,COO,CREDIT SOLUTIONS LTD,2025558835,"24,880"
Department for Work and Pensions,Housing Benefits,14-Jun-12,Housing Benefit Admin,COO,HART DISTRICT COUNCIL,2025692165,"24,304"
Department for Work and Pensions,Employment Programmes,28-Jun-12,EP PROVIDER PAYMENT - WORK PROGRAMME,COO,A4E LTD,2025850729,"24,288"
Department for Work and Pensions,Employment Programmes,28-Jun-12,EP PROVIDER PAYMENT - NON-WORK PROGRAMME,COO,SHAW TRUST,2025852729,"24,159"
Department for Work and Pensions,Corporate,22-Jun-12,OTHER OPERATING LEASES,COO,INCHCAPE FLEET SOLUTIONS LTD,2025775759,"24,105"
Department for Work and Pensions,Corporate,06-Jun-12,EMPLOYMENT ZONES,COO,A4E LTD,2025553566,"24,060"
Department for Work and Pensions,Housing Benefits,14-Jun-12,Housing Benefit Admin,COO,CRAVEN DISTRICT COUNCIL,2025692105,"24,016"
Department for Work and Pensions,Employment Programmes,14-Jun-12,EP PROVIDER PAYMENT - WORK PROGRAMME,COO,INGEUS UK LTD,2025688031,"24,000"
Department for Work and Pensions,Employment Programmes,14-Jun-12,EP PROVIDER PAYMENT - WORK PROGRAMME,COO,INGEUS UK LTD,2025688031,"24,000"
Department for Work and Pensions,Jobcentre Plus,15-Jun-12,COMPUTER SERVICES,COO,HP ENTERPRISE SERVICES UK LTD,2025694207,"23,807"
Department for Work and Pensions,Jobcentre Plus,07-Jun-12,COMPUTER SERVICES,COO,HP ENTERPRISE SERVICES UK LTD,2025610730,"23,807"
Department for Work and Pensions,Housing Benefits,14-Jun-12,Housing Benefit Admin,COO,SOUTH BUCKS DISTRICT COUNCIL,2025692316,"23,756"
Department for Work and Pensions,Corporate,13-Jun-12,AOS CONTRACTED OUT SERVICES,COO,DRYDENS LTD,2025641707,"23,751"
Department for Work and Pensions,Corporate,18-Jun-12,IS/IT,COO,HP ENTERPRISE SERVICES UK LTD,2025699333,"23,641"
Department for Work and Pensions,Employment Programmes,22-Jun-12,EP PROVIDER PAYMENT - WORK PROGRAMME,COO,WORKING LINKS,2025777619,"23,600"
Department for Work and Pensions,Corporate,28-Jun-12,TELEPHONE AND POSTAGE,COO,ROYAL MAIL GROUP PLC,2025852501,"23,569"
Department for Work and Pensions,Corporate,18-Jun-12,CONTRACTED OUT SERVICES,COO,CAPITA BUSINESS SERVICES LTD,2025697322,"23,485"
Department for Work and Pensions,Corporate,18-Jun-12,PROFESSIONAL FEES,COO,SHARPE PRITCHARD,2025700868,"23,477"
Department for Work and Pensions,Corporate,29-Jun-12,PUBLICITY,PS,M4C,2025856549,"23,414"
Department for Work and Pensions,Corporate,29-Jun-12,ACCOMMODATION,COO,TELEREAL TRILLIUM,2025857001,"23,358"
Department for Work and Pensions,Corporate,08-Jun-12,APPS DEV,COO,HP ENTERPRISE SERVICES UK LTD,2025615786,"23,254"
Department for Work and Pensions,Employment Programmes,11-Jun-12,EP PROVIDER PAYMENT - WORK PROGRAMME,COO,AVANTA ENTERPRISE LTD,2025618494,"23,250"
Department for Work and Pensions,Employment Programmes,06-Jun-12,EP PROVIDER PAYMENT - WORK PROGRAMME,COO,A4E LTD,2025553565,"23,184"
Department for Work and Pensions,Corporate,19-Jun-12,JOBCENTRE PLUS PATHWAYS TO WORK,COO,SEETEC,2025708166,"23,171"
Department for Work and Pensions,Employment Programmes,26-Jun-12,EP PROVIDER PAYMENT - WORK PROGRAMME,COO,A4E LTD,2025782397,"23,100"
Department for Work and Pensions,Employment Programmes,14-Jun-12,EP PROVIDER PAYMENT - WORK PROGRAMME,COO,INGEUS UK LTD,2025688031,"23,100"
Department for Work and Pensions,Housing Benefits,14-Jun-12,Housing Benefit Admin,COO,PURBECK DISTRICT COUNCIL,2025692278,"23,016"
Department for Work and Pensions,Corporate,18-Jun-12,AOS CONTRACTED OUT SERVICES,COO,DRYDENS LTD,2025699051,"22,982"
Department for Work and Pensions,Employment Programmes,06-Jun-12,EP PROVIDER PAYMENT - NON-WORK PROGRAMME,COO,WORKING LINKS,2025605516,"22,900"
Department for Work and Pensions,Employment Programmes,06-Jun-12,EP PROVIDER PAYMENT - WORK PROGRAMME,COO,AVANTA ENTERPRISE LTD,2025553622,"22,800"
Department for Work and Pensions,Employment Programmes,26-Jun-12,EP PROVIDER PAYMENT - WORK PROGRAMME,COO,G4S REGIONAL MANAGEMENT UK & I LTD,2025787322,"22,800"
Department for Work and Pensions,Employment Programmes,28-Jun-12,EP PROVIDER PAYMENT - WORK PROGRAMME,COO,INGEUS UK LTD,2025851523,"22,800"
Department for Work and Pensions,Employment Programmes,06-Jun-12,EP PROVIDER PAYMENT - WORK PROGRAMME,COO,INGEUS UK LTD,2025570452,"22,800"
Department for Work and Pensions,Employment Programmes,06-Jun-12,EP PROVIDER PAYMENT - WORK PROGRAMME,COO,WORKING LINKS,2025605516,"22,800"
Department for Work and Pensions,Employment Programmes,06-Jun-12,EP PROVIDER PAYMENT - WORK PROGRAMME,COO,SEETEC BUSINESS TECHNOLOGY CENTRE LTD,2025601793,"22,790"
Department for Work and Pensions,Employment Programmes,11-Jun-12,EP PROVIDER PAYMENT - WORK PROGRAMME,COO,WORKING LINKS,2025621719,"22,790"
Department for Work and Pensions,Employment Programmes,28-Jun-12,EP PROVIDER PAYMENT - WORK PROGRAMME,COO,A4E LTD,2025850729,"22,700"
Department for Work and Pensions,Employment Programmes,26-Jun-12,EP PROVIDER PAYMENT - WORK PROGRAMME,COO,INGEUS UK LTD,2025787563,"22,575"
Department for Work and Pensions,Employment Programmes,06-Jun-12,EP PROVIDER PAYMENT - WORK PROGRAMME,COO,INGEUS UK LTD,2025570452,"22,575"
Department for Work and Pensions,Corporate,13-Jun-12,TEMPORARY (TEMP) STAFF COSTS,CIT,CAPITA RESOURCING LTD,2025637098,"22,512"
Department for Work and Pensions,Housing Benefits,14-Jun-12,Housing Benefit Admin,COO,OADBY & WIGSTON BOROUGH COUNCIL,2025692265,"22,509"
Department for Work and Pensions,Employment Programmes,14-Jun-12,EP PROVIDER PAYMENT - WORK PROGRAMME,COO,INTERSERVE WORKING FUTURES,2025688033,"22,440"
Department for Work and Pensions,Employment Programmes,06-Jun-12,EP PROVIDER PAYMENT - WORK PROGRAMME,COO,CAREERS DEVELOPMENT GROUP,2025558776,"22,300"
Department for Work and Pensions,Corporate,01-Jun-12,APPS DEV,COO,HP ENTERPRISE SERVICES UK LTD,2025545986,"22,284"
Department for Work and Pensions,Employment Programmes,26-Jun-12,EP PROVIDER PAYMENT - NON-WORK PROGRAMME,COO,ESG HOLDINGS LTD,2025787081,"22,205"
Department for Work and Pensions,Employment Programmes,28-Jun-12,EP PROVIDER PAYMENT - NON-WORK PROGRAMME,COO,SHAW TRUST,2025852729,"22,181"
Department for Work and Pensions,Employment Programmes,28-Jun-12,EP PROVIDER PAYMENT - WORK PROGRAMME,COO,A4E LTD,2025850729,"21,900"
Department for Work and Pensions,Employment Programmes,26-Jun-12,EP PROVIDER PAYMENT - WORK PROGRAMME,COO,A4E LTD,2025782397,"21,900"
Department for Work and Pensions,Employment Programmes,19-Jun-12,EP PROVIDER PAYMENT - WORK PROGRAMME,COO,CAREERS DEVELOPMENT GROUP,2025702997,"21,900"
Department for Work and Pensions,Corporate,29-Jun-12,ACCOMMODATION,COO,TELEREAL TRILLIUM,2025857001,"21,751"
Department for Work and Pensions,Employment Programmes,14-Jun-12,EP PROVIDER PAYMENT - WORK PROGRAMME,COO,INGEUS UK LTD,2025688031,"21,698"
Department for Work and Pensions,Employment Programmes,06-Jun-12,EP PROVIDER PAYMENT - WORK PROGRAMME,COO,A4E LTD,2025553565,"21,660"
Department for Work and Pensions,Corporate,29-Jun-12,ACCOMMODATION,COO,TELEREAL TRILLIUM,2025857001,"21,641"
Department for Work and Pensions,Employment Programmes,28-Jun-12,EP PROVIDER PAYMENT - WORK PROGRAMME,COO,A4E LTD,2025850729,"21,600"
Department for Work and Pensions,Employment Programmes,11-Jun-12,EP PROVIDER PAYMENT - WORK PROGRAMME,COO,PROSPECTS SERVICES LTD,2025621141,"21,600"
Department for Work and Pensions,Corporate,27-Jun-12,COMPUTER SERVICES,COO,ATOS ORIGIN IT SERVICES UK LTD,2025797524,"21,590"
Department for Work and Pensions,Employment Programmes,06-Jun-12,EP PROVIDER PAYMENT - WORK PROGRAMME,COO,INGEUS UK LTD,2025570453,"21,500"
Department for Work and Pensions,Corporate,29-Jun-12,ACCOMMODATION,COO,TELEREAL TRILLIUM,2025857000,"21,477"
Department for Work and Pensions,Employment Programmes,06-Jun-12,EP PROVIDER PAYMENT - WORK PROGRAMME,COO,AVANTA ENTERPRISE LTD,2025553622,"21,400"
Department for Work and Pensions,Corporate,26-Jun-12,PROFESSIONAL FEES,COO,STEPHANIE GRUNDY,2025790536,"21,350"
Department for Work and Pensions,Housing Benefits,14-Jun-12,Housing Benefit Admin,COO,MELTON BOROUGH COUNCIL,2025692228,"21,251"
Department for Work and Pensions,Corporate,14-Jun-12,TEMPORARY (TEMP) STAFF COSTS,CIT,CAPITA RESOURCING LTD,2025686290,"21,218"
Department for Work and Pensions,Employment Programmes,26-Jun-12,EP PROVIDER PAYMENT - WORK PROGRAMME,COO,A4E LTD,2025782397,"21,100"
Department for Work and Pensions,Employment Programmes,29-Jun-12,EP PROVIDER PAYMENT - WORK PROGRAMME,COO,SEETEC BUSINESS TECHNOLOGY CENTRE LTD,2025856939,"21,060"
Department for Work and Pensions,Corporate,28-Jun-12,TELEPHONE AND POSTAGE,COO,ROYAL MAIL GROUP PLC,2025852501,"21,039"
Department for Work and Pensions,Employment Programmes,28-Jun-12,EP PROVIDER PAYMENT - WORK PROGRAMME,COO,A4E LTD,2025850729,"21,000"
Department for Work and Pensions,Employment Programmes,11-Jun-12,EP PROVIDER PAYMENT - WORK PROGRAMME,COO,INGEUS UK LTD,2025620202,"21,000"
Department for Work and Pensions,Employment Programmes,28-Jun-12,EP PROVIDER PAYMENT - WORK PROGRAMME,COO,INGEUS UK LTD,2025851523,"20,700"
Department for Work and Pensions,Employment Programmes,28-Jun-12,EP PROVIDER PAYMENT - NON-WORK PROGRAMME,COO,SHAW TRUST,2025852729,"20,674"
Department for Work and Pensions,Employment Programmes,26-Jun-12,EP PROVIDER PAYMENT - WORK PROGRAMME,COO,G4S REGIONAL MANAGEMENT UK & I LTD,2025787322,"20,640"
Department for Work and Pensions,Employment Programmes,06-Jun-12,EP PROVIDER PAYMENT - WORK PROGRAMME,COO,SEETEC BUSINESS TECHNOLOGY CENTRE LTD,2025601793,"20,600"
Department for Work and Pensions,Employment Programmes,08-Jun-12,EP PROVIDER PAYMENT - WORK PROGRAMME,COO,CAREERS DEVELOPMENT GROUP,2025614741,"20,520"
Department for Work and Pensions,Employment Programmes,11-Jun-12,EP PROVIDER PAYMENT - WORK PROGRAMME,COO,A4E LTD,2025618460,"20,500"
Department for Work and Pensions,Employment Programmes,08-Jun-12,EP PROVIDER PAYMENT - WORK PROGRAMME,COO,WORKING LINKS,2025616894,"20,500"
Department for Work and Pensions,Employment Programmes,14-Jun-12,EP PROVIDER PAYMENT - WORK PROGRAMME,COO,INGEUS UK LTD,2025688031,"20,425"
Department for Work and Pensions,Employment Programmes,14-Jun-12,EP PROVIDER PAYMENT - WORK PROGRAMME,COO,INGEUS UK LTD,2025688031,"20,400"
Department for Work and Pensions,Employment Programmes,11-Jun-12,EP PROVIDER PAYMENT - WORK PROGRAMME,COO,INGEUS UK LTD,2025620202,"20,400"
Department for Work and Pensions,Employment Programmes,06-Jun-12,EP PROVIDER PAYMENT - WORK PROGRAMME,COO,INGEUS UK LTD,2025570453,"20,400"
Department for Work and Pensions,Corporate,28-Jun-12,TELEPHONE AND POSTAGE,COO,ROYAL MAIL GROUP PLC,2025852501,"20,247"
Department for Work and Pensions,Corporate,20-Jun-12,OTHER GOODS AND SERVICES,COO,ST HELENS CHAMBERS LTD,2025762137,"20,240"
Department for Work and Pensions,Jobcentre Plus,20-Jun-12,EMPLOYMENT ZONES,COO,ST HELENS CHAMBERS LTD,2025762137,"20,240"
Department for Work and Pensions,Housing Benefits,14-Jun-12,Housing Benefit Admin,COO,EDEN DISTRICT COUNCIL,2025692136,"20,150"
Department for Work and Pensions,Employment Programmes,26-Jun-12,EP PROVIDER PAYMENT - NON-WORK PROGRAMME,COO,INGEUS UK LTD,2025787563,"20,125"
Department for Work and Pensions,Corporate,28-Jun-12,TELEPHONE AND POSTAGE,COO,ROYAL MAIL GROUP PLC,2025852501,"20,107"
Department for Work and Pensions,Corporate,29-Jun-12,ACCOMMODATION,COO,TELEREAL TRILLIUM,2025857000,"20,101"
Department for Work and Pensions,Employment Programmes,11-Jun-12,EP PROVIDER PAYMENT - WORK PROGRAMME,COO,INTERSERVE WORKING FUTURES,2025620205,"20,100"
Department for Work and Pensions,Corporate,27-Jun-12,Accommodation Costs,COO,HMRC,2025812889,"20,073"
Department for Work and Pensions,Employment Programmes,25-Jun-12,EP PROVIDER PAYMENT - WORK PROGRAMME,COO,A4E LTD,2025778884,"20,000"
Department for Work and Pensions,Employment Programmes,06-Jun-12,EP PROVIDER PAYMENT - WORK PROGRAMME,COO,INGEUS UK LTD,2025570453,"20,000"
Department for Work and Pensions,Housing Benefits,14-Jun-12,Housing Benefit Admin,COO,COMHAIRLE NAN EILEAN SIAR COUNCIL,2025692096,"19,981"
Department for Work and Pensions,Employment Programmes,06-Jun-12,EP PROVIDER PAYMENT - WORK PROGRAMME,COO,MAXIMUS EMPLOYMENT UK LTD,2025588602,"19,980"
Department for Work and Pensions,Employment Programmes,26-Jun-12,EP PROVIDER PAYMENT - WORK PROGRAMME,COO,SEETEC BUSINESS TECHNOLOGY CENTRE LTD,2025790489,"19,900"
Department for Work and Pensions,Corporate,14-Jun-12,TEMPORARY (TEMP) STAFF COSTS,CIT,CAPITA RESOURCING LTD,2025686290,"19,876"
Department for Work and Pensions,Corporate,15-Jun-12,PRINTING STATIONERY IT CONSUMABLES,COO,XEROX UK LTD 3W,2025695660,"19,834"
Department for Work and Pensions,Employment Programmes,20-Jun-12,EP PROVIDER PAYMENT - NON-WORK PROGRAMME,COO,SEETEC BUSINESS TECHNOLOGY CENTRE LTD,2025762087,"19,833"
Department for Work and Pensions,Employment Programmes,26-Jun-12,EP PROVIDER PAYMENT - WORK PROGRAMME,COO,A4E LTD,2025782397,"19,800"
Department for Work and Pensions,Corporate,28-Jun-12,TELEPHONE AND POSTAGE,COO,ROYAL MAIL GROUP PLC,2025852501,"19,722"
Department for Work and Pensions,Employment Programmes,11-Jun-12,EP PROVIDER PAYMENT - WORK PROGRAMME,COO,INGEUS UK LTD,2025620202,"19,600"
Department for Work and Pensions,Employment Programmes,06-Jun-12,EP PROVIDER PAYMENT - WORK PROGRAMME,COO,INTERSERVE WORKING FUTURES,2025554478,"19,600"
Department for Work and Pensions,Employment Programmes,22-Jun-12,EP PROVIDER PAYMENT - WORK PROGRAMME,COO,SEETEC BUSINESS TECHNOLOGY CENTRE LTD,2025777303,"19,600"
Department for Work and Pensions,Corporate,28-Jun-12,TELEPHONE AND POSTAGE,COO,ROYAL MAIL GROUP PLC,2025852501,"19,582"
Department for Work and Pensions,Corporate,28-Jun-12,TELEPHONE AND POSTAGE,COO,ROYAL MAIL GROUP PLC,2025852501,"19,515"
Department for Work and Pensions,Employment Programmes,14-Jun-12,EP PROVIDER PAYMENT - WORK PROGRAMME,COO,INGEUS UK LTD,2025688031,"19,500"
Department for Work and Pensions,Housing Benefits,14-Jun-12,Housing Benefit Admin,COO,RIBBLE VALLEY BOROUGH COUNCIL,2025692285,"19,418"
Department for Work and Pensions,Employment Programmes,07-Jun-12,EP PROVIDER PAYMENT - WORK PROGRAMME,COO,INGEUS UK LTD,2025610781,"19,414"
Department for Work and Pensions,Employment Programmes,06-Jun-12,EP PROVIDER PAYMENT - WORK PROGRAMME,COO,A4E LTD,2025553565,"19,400"
Department for Work and Pensions,Employment Programmes,08-Jun-12,EP PROVIDER PAYMENT - WORK PROGRAMME,COO,INGEUS UK LTD,2025615810,"19,350"
Department for Work and Pensions,Employment Programmes,22-Jun-12,EP PROVIDER PAYMENT - WORK PROGRAMME,COO,INGEUS UK LTD,2025775762,"19,300"
Department for Work and Pensions,Corporate,07-Jun-12,IS/IT,COO,SPECIALIST COMPUTER CENTRES PLC,2025612862,"19,254"
Department for Work and Pensions,Employment Programmes,11-Jun-12,EP PROVIDER PAYMENT - WORK PROGRAMME,COO,EOS WORKS LTD,2025619965,"19,250"
Department for Work and Pensions,Corporate,13-Jun-12,OTHER EXPENDITURE,COO,CAPITA RESOURCING LTD,2025637098,"19,242"
Department for Work and Pensions,Employment Programmes,28-Jun-12,EP PROVIDER PAYMENT - WORK PROGRAMME,COO,A4E LTD,2025850729,"19,200"
Department for Work and Pensions,Employment Programmes,08-Jun-12,EP PROVIDER PAYMENT - WORK PROGRAMME,COO,INGEUS UK LTD,2025615810,"19,200"
Department for Work and Pensions,Employment Programmes,28-Jun-12,EP PROVIDER PAYMENT - WORK PROGRAMME,COO,SEETEC BUSINESS TECHNOLOGY CENTRE LTD,2025852727,"19,200"
Department for Work and Pensions,Employment Programmes,08-Jun-12,EP PROVIDER PAYMENT - WORK PROGRAMME,COO,WORKING LINKS,2025616894,"19,200"
Department for Work and Pensions,Corporate,22-Jun-12,JOBCENTRE PLUS PATHWAYS TO WORK,COO,PERTEMPS PEOPLE DEVELOPMENT GROUP,2025776837,"19,159"
Department for Work and Pensions,Corporate,29-Jun-12,ACCOMMODATION,COO,TELEREAL TRILLIUM,2025857001,"19,144"
Department for Work and Pensions,Corporate,14-Jun-12,APPS DEV,COO,HP ENTERPRISE SERVICES UK LTD,2025687982,"19,120"
Department for Work and Pensions,Employment Programmes,18-Jun-12,EP PROVIDER PAYMENT - WORK PROGRAMME,COO,CAREERS DEVELOPMENT GROUP,2025697327,"19,100"
Department for Work and Pensions,Corporate,15-Jun-12,ACCOMMODATION,COO,TELEREAL TRILLIUM,2025695554,"19,074"
Department for Work and Pensions,SHARED SERVICES,18-Jun-12,CONTRACTED OUT SERVICES,COO,CAPITA BUSINESS SERVICES LTD,2025697322,"18,953"
Department for Work and Pensions,Employment Programmes,19-Jun-12,EP PROVIDER PAYMENT - WORK PROGRAMME,COO,INGEUS UK LTD,2025705547,"18,920"
Department for Work and Pensions,Employment Programmes,06-Jun-12,EP PROVIDER PAYMENT - WORK PROGRAMME,COO,SEETEC BUSINESS TECHNOLOGY CENTRE LTD,2025601793,"18,920"
Department for Work and Pensions,Employment Programmes,26-Jun-12,EP PROVIDER PAYMENT - WORK PROGRAMME,COO,INGEUS UK LTD,2025787563,"18,900"
Department for Work and Pensions,Employment Programmes,27-Jun-12,ACCESS TO WORK,COO,ROYAL BRITISH LEGION INDUSTRIES,2025838085,"18,870"
Department for Work and Pensions,Employment Programmes,26-Jun-12,EP PROVIDER PAYMENT - WORK PROGRAMME,COO,AVANTA ENTERPRISE LTD,2025782460,"18,800"
Department for Work and Pensions,Employment Programmes,06-Jun-12,EP PROVIDER PAYMENT - WORK PROGRAMME,COO,INGEUS UK LTD,2025570452,"18,705"
Department for Work and Pensions,Employment Programmes,26-Jun-12,EP PROVIDER PAYMENT - WORK PROGRAMME,COO,SEETEC BUSINESS TECHNOLOGY CENTRE LTD,2025790489,"18,700"
Department for Work and Pensions,Corporate,29-Jun-12,ACCOMMODATION,COO,TELEREAL TRILLIUM,2025857000,"18,687"
Department for Work and Pensions,Employment Programmes,06-Jun-12,EP PROVIDER PAYMENT - WORK PROGRAMME,COO,A4E LTD,2025553565,"18,600"
Department for Work and Pensions,Employment Programmes,11-Jun-12,EP PROVIDER PAYMENT - WORK PROGRAMME,COO,INGEUS UK LTD,2025620202,"18,600"
Department for Work and Pensions,Housing Benefits,14-Jun-12,Housing Benefit Admin,COO,RICHMONDSHIRE DISTRICT COUNCIL,2025692286,"18,599"
Department for Work and Pensions,Corporate,27-Jun-12,Accommodation Costs,COO,HMRC,2025812889,"18,521"
Department for Work and Pensions,Employment Programmes,11-Jun-12,EP PROVIDER PAYMENT - WORK PROGRAMME,COO,A4E LTD,2025618460,"18,500"
Department for Work and Pensions,Employment Programmes,28-Jun-12,EP PROVIDER PAYMENT - WORK PROGRAMME,COO,MAXIMUS EMPLOYMENT UK LTD,2025852176,"18,300"
Department for Work and Pensions,Employment Programmes,26-Jun-12,EP PROVIDER PAYMENT - WORK PROGRAMME,COO,REED IN PARTNERSHIP LTD,2025789911,"18,240"
Department for Work and Pensions,Employment Programmes,11-Jun-12,EP PROVIDER PAYMENT - NON-WORK PROGRAMME,COO,JHP GROUP LTD,2025620415,"18,220"
Department for Work and Pensions,Employment Programmes,29-Jun-12,EP PROVIDER PAYMENT - WORK PROGRAMME,COO,INGEUS UK LTD,2025856186,"18,200"
Department for Work and Pensions,Employment Programmes,22-Jun-12,EP PROVIDER PAYMENT - WORK PROGRAMME,COO,INGEUS UK LTD,2025775762,"18,000"
Department for Work and Pensions,Employment Programmes,07-Jun-12,EP PROVIDER PAYMENT - WORK PROGRAMME,COO,INGEUS UK LTD,2025610781,"18,000"
Department for Work and Pensions,Employment Programmes,28-Jun-12,EP PROVIDER PAYMENT - WORK PROGRAMME,COO,WORKING LINKS,2025852870,"18,000"
Department for Work and Pensions,Employment Programmes,19-Jun-12,EP PROVIDER PAYMENT - WORK PROGRAMME,COO,WORKING LINKS,2025708549,"18,000"
Department for Work and Pensions,Employment Programmes,14-Jun-12,EP PROVIDER PAYMENT - WORK PROGRAMME,COO,A4E LTD,2025685884,"17,900"
Department for Work and Pensions,Employment Programmes,13-Jun-12,EP PROVIDER PAYMENT - WORK PROGRAMME,COO,INGEUS UK LTD,2025647757,"17,900"
Department for Work and Pensions,Corporate,22-Jun-12,PRINTING STATIONERY IT CONSUMABLES,COO,XEROX UK LTD 3W,2025777631,"17,875"
Department for Work and Pensions,Employment Programmes,28-Jun-12,EP PROVIDER PAYMENT - NON-WORK PROGRAMME,COO,WORKING LINKS,2025852870,"17,811"
Department for Work and Pensions,Employment Programmes,08-Jun-12,EP PROVIDER PAYMENT - NON-WORK PROGRAMME,COO,WORKING LINKS,2025616894,"17,811"
Department for Work and Pensions,Corporate,28-Jun-12,TELEPHONE AND POSTAGE,COO,ROYAL MAIL GROUP PLC,2025852501,"17,788"
Department for Work and Pensions,Employment Programmes,28-Jun-12,EP PROVIDER PAYMENT - NON-WORK PROGRAMME,COO,SEETEC BUSINESS TECHNOLOGY CENTRE LTD,2025852727,"17,707"
Department for Work and Pensions,Corporate,14-Jun-12,TEMPORARY (TEMP) STAFF COSTS,CIT,CAPITA RESOURCING LTD,2025686290,"17,703"
Department for Work and Pensions,Employment Programmes,25-Jun-12,EP PROVIDER PAYMENT - WORK PROGRAMME,COO,A4E LTD,2025778884,"17,700"
Department for Work and Pensions,Employment Programmes,06-Jun-12,EP PROVIDER PAYMENT - WORK PROGRAMME,COO,A4E LTD,2025553565,"17,664"
Department for Work and Pensions,Employment Programmes,22-Jun-12,EP PROVIDER PAYMENT - WORK PROGRAMME,COO,WORKING LINKS,2025777619,"17,600"
Department for Work and Pensions,Employment Programmes,25-Jun-12,EP PROVIDER PAYMENT - NON-WORK PROGRAMME,COO,SEETEC BUSINESS TECHNOLOGY CENTRE LTD,2025780967,"17,527"
Department for Work and Pensions,Corporate,29-Jun-12,ACCOMMODATION,COO,TELEREAL TRILLIUM,2025857001,"17,519"
Department for Work and Pensions,Corporate,29-Jun-12,COMPUTER SERVICES,COO,ACCENTURE UK LTD,2025854463,"17,518"
Department for Work and Pensions,Employment Programmes,06-Jun-12,EP PROVIDER PAYMENT - WORK PROGRAMME,COO,ESG HOLDINGS LIMITED,2025566357,"17,500"
Department for Work and Pensions,Employment Programmes,26-Jun-12,EP PROVIDER PAYMENT - WORK PROGRAMME,COO,INGEUS UK LTD,2025787563,"17,500"
Department for Work and Pensions,Corporate,29-Jun-12,ACCOMMODATION,COO,TELEREAL TRILLIUM,2025857000,"17,302"
Department for Work and Pensions,Employment Programmes,06-Jun-12,EP PROVIDER PAYMENT - WORK PROGRAMME,COO,INGEUS UK LTD,2025570453,"17,300"
Department for Work and Pensions,Employment Programmes,14-Jun-12,EP PROVIDER PAYMENT - NON-WORK PROGRAMME,COO,INGEUS UK LTD,2025688031,"17,250"
Department for Work and Pensions,Corporate,15-Jun-12,PRINTING STATIONERY IT CONSUMABLES,COO,XEROX UK LTD 3W,2025695660,"17,241"
Department for Work and Pensions,Employment Programmes,11-Jun-12,EP PROVIDER PAYMENT - WORK PROGRAMME,COO,MAXIMUS EMPLOYMENT UK LTD,2025620908,"17,200"
Department for Work and Pensions,Employment Programmes,21-Jun-12,EP PROVIDER PAYMENT - WORK PROGRAMME,COO,CAREERS DEVELOPMENT GROUP,2025769162,"17,100"
Department for Work and Pensions,Employment Programmes,11-Jun-12,EP PROVIDER PAYMENT - WORK PROGRAMME,COO,CAREERS DEVELOPMENT GROUP,2025618707,"17,100"
Department for Work and Pensions,Employment Programmes,11-Jun-12,EP PROVIDER PAYMENT - WORK PROGRAMME,COO,ESG HOLDINGS LIMITED,2025619967,"17,100"
Department for Work and Pensions,Employment Programmes,14-Jun-12,EP PROVIDER PAYMENT - WORK PROGRAMME,COO,PERTEMPS,2025689533,"17,088"
Department for Work and Pensions,Employment Programmes,06-Jun-12,EP PROVIDER PAYMENT - NON-WORK PROGRAMME,COO,SEETEC BUSINESS TECHNOLOGY CENTRE LTD,2025601793,"17,066"
Department for Work and Pensions,Corporate,28-Jun-12,TELEPHONE AND POSTAGE,COO,ROYAL MAIL GROUP PLC,2025852501,"17,055"
Department for Work and Pensions,Employment Programmes,26-Jun-12,EP PROVIDER PAYMENT - WORK PROGRAMME,COO,A4E LTD,2025782397,"17,000"
Department for Work and Pensions,Employment Programmes,11-Jun-12,EP PROVIDER PAYMENT - WORK PROGRAMME,COO,G4S REGIONAL MANAGEMENT UK & I LTD,2025620096,"17,000"
Department for Work and Pensions,Employment Programmes,20-Jun-12,ACCESS TO WORK,COO,COMMUNICATION ID,2025719542,"16,992"
Department for Work and Pensions,Employment Programmes,26-Jun-12,EP PROVIDER PAYMENT - WORK PROGRAMME,COO,A4E LTD,2025782397,"16,900"
Department for Work and Pensions,Employment Programmes,29-Jun-12,EP PROVIDER PAYMENT - WORK PROGRAMME,COO,INGEUS UK LTD,2025856186,"16,900"
Department for Work and Pensions,Corporate,01-Jun-12,EU PROGRAMMES,COO,A4E LTD,2025544920,"16,853"
Department for Work and Pensions,Employment Programmes,26-Jun-12,EP PROVIDER PAYMENT - WORK PROGRAMME,COO,INGEUS UK LTD,2025787563,"16,800"
Department for Work and Pensions,Employment Programmes,06-Jun-12,EP PROVIDER PAYMENT - WORK PROGRAMME,COO,MAXIMUS EMPLOYMENT UK LTD,2025588602,"16,800"
Department for Work and Pensions,Employment Programmes,18-Jun-12,EP PROVIDER PAYMENT - WORK PROGRAMME,COO,WORKING LINKS,2025701120,"16,800"
Department for Work and Pensions,Employment Programmes,22-Jun-12,EP PROVIDER PAYMENT - WORK PROGRAMME,COO,WORKING LINKS,2025777619,"16,800"
Department for Work and Pensions,Employment Programmes,08-Jun-12,EP PROVIDER PAYMENT - WORK PROGRAMME,COO,WORKING LINKS,2025616894,"16,800"
Department for Work and Pensions,Employment Programmes,26-Jun-12,EP PROVIDER PAYMENT - WORK PROGRAMME,COO,REHAB JOBFIT,2025789913,"16,700"
Department for Work and Pensions,Corporate,28-Jun-12,TELEPHONE AND POSTAGE,COO,ROYAL MAIL GROUP PLC,2025852501,"16,696"
Department for Work and Pensions,Employment Programmes,13-Jun-12,EP PROVIDER PAYMENT - NON-WORK PROGRAMME,COO,SEETEC BUSINESS TECHNOLOGY CENTRE LTD,2025679147,"16,605"
Department for Work and Pensions,Corporate,29-Jun-12,ACCOMMODATION,COO,TELEREAL TRILLIUM,2025857001,"16,603"
Department for Work and Pensions,Employment Programmes,11-Jun-12,EP PROVIDER PAYMENT - WORK PROGRAMME,COO,INGEUS UK LTD,2025620202,"16,600"
Department for Work and Pensions,Employment Programmes,28-Jun-12,EP PROVIDER PAYMENT - WORK PROGRAMME,COO,SEETEC BUSINESS TECHNOLOGY CENTRE LTD,2025852727,"16,600"
Department for Work and Pensions,Employment Programmes,06-Jun-12,EP PROVIDER PAYMENT - WORK PROGRAMME,COO,SEETEC BUSINESS TECHNOLOGY CENTRE LTD,2025601793,"16,600"
Department for Work and Pensions,Employment Programmes,14-Jun-12,EP PROVIDER PAYMENT - WORK PROGRAMME,COO,A4E LTD,2025685884,"16,560"
Department for Work and Pensions,Employment Programmes,21-Jun-12,EP PROVIDER PAYMENT - WORK PROGRAMME,COO,A4E LTD,2025768982,"16,560"
Department for Work and Pensions,Employment Programmes,11-Jun-12,EP PROVIDER PAYMENT - WORK PROGRAMME,COO,A4E LTD,2025618460,"16,560"
Department for Work and Pensions,Employment Programmes,14-Jun-12,EP PROVIDER PAYMENT - WORK PROGRAMME,COO,A4E LTD,2025685884,"16,500"
Department for Work and Pensions,Employment Programmes,06-Jun-12,EP PROVIDER PAYMENT - WORK PROGRAMME,COO,SEETEC BUSINESS TECHNOLOGY CENTRE LTD,2025601793,"16,380"
Department for Work and Pensions,Employment Programmes,11-Jun-12,EP PROVIDER PAYMENT - WORK PROGRAMME,COO,SEETEC BUSINESS TECHNOLOGY CENTRE LTD,2025621510,"16,380"
Department for Work and Pensions,Employment Programmes,11-Jun-12,EP PROVIDER PAYMENT - WORK PROGRAMME,COO,MAXIMUS EMPLOYMENT UK LTD,2025620908,"16,340"
Department for Work and Pensions,Employment Programmes,11-Jun-12,EP PROVIDER PAYMENT - WORK PROGRAMME,COO,INTERSERVE WORKING FUTURES,2025620205,"16,320"
Department for Work and Pensions,Employment Programmes,28-Jun-12,EP PROVIDER PAYMENT - WORK PROGRAMME,COO,SEETEC BUSINESS TECHNOLOGY CENTRE LTD,2025852727,"16,320"
Department for Work and Pensions,Employment Programmes,08-Jun-12,EP PROVIDER PAYMENT - NON-WORK PROGRAMME,COO,WORKING LINKS,2025616894,"16,301"
Department for Work and Pensions,Employment Programmes,14-Jun-12,EP PROVIDER PAYMENT - WORK PROGRAMME,COO,INGEUS UK LTD,2025688031,"16,300"
Department for Work and Pensions,Employment Programmes,11-Jun-12,EP PROVIDER PAYMENT - WORK PROGRAMME,COO,AVANTA ENTERPRISE LTD,2025618494,"16,200"
Department for Work and Pensions,Employment Programmes,28-Jun-12,EP PROVIDER PAYMENT - WORK PROGRAMME,COO,AVANTA ENTERPRISE LTD,2025850739,"16,200"
Department for Work and Pensions,Employment Programmes,13-Jun-12,EP PROVIDER PAYMENT - WORK PROGRAMME,COO,INGEUS UK LTD,2025647757,"16,200"
Department for Work and Pensions,Employment Programmes,14-Jun-12,EP PROVIDER PAYMENT - WORK PROGRAMME,COO,MAXIMUS EMPLOYMENT UK LTD,2025689184,"16,200"
Department for Work and Pensions,Employment Programmes,14-Jun-12,EP PROVIDER PAYMENT - WORK PROGRAMME,COO,WORKING LINKS,2025690503,"16,200"
Department for Work and Pensions,Employment Programmes,20-Jun-12,EP PROVIDER PAYMENT - WORK PROGRAMME,COO,INGEUS UK LTD,2025730138,"16,125"
Department for Work and Pensions,Employment Programmes,22-Jun-12,EP PROVIDER PAYMENT - NON-WORK PROGRAMME,COO,JHP GROUP LTD,2025776000,"16,101"
Department for Work and Pensions,Corporate,26-Jun-12,TEMPORARY (TEMP) STAFF COSTS,CIT,CAPITA RESOURCING LTD,2025782988,"16,082"
Department for Work and Pensions,Employment Programmes,18-Jun-12,EP PROVIDER PAYMENT - WORK PROGRAMME,COO,SEETEC BUSINESS TECHNOLOGY CENTRE LTD,2025700865,"16,000"
Department for Work and Pensions,Corporate,28-Jun-12,TELEPHONE AND POSTAGE,COO,ROYAL MAIL GROUP PLC,2025852501,"15,992"
Department for Work and Pensions,Employment Programmes,18-Jun-12,EP PROVIDER PAYMENT - WORK PROGRAMME,COO,INGEUS UK LTD,2025699380,"15,988"
Department for Work and Pensions,Employment Programmes,08-Jun-12,EP PROVIDER PAYMENT - WORK PROGRAMME,COO,INGEUS UK LTD,2025615810,"15,988"
Department for Work and Pensions,Corporate,28-Jun-12,TELEPHONE AND POSTAGE,COO,ROYAL MAIL GROUP PLC,2025852501,"15,977"
Department for Work and Pensions,Employment Programmes,26-Jun-12,EP PROVIDER PAYMENT - NON-WORK PROGRAMME,COO,INTERSERVE WORKING FUTURES,2025787565,"15,967"
Department for Work and Pensions,Employment Programmes,14-Jun-12,EP PROVIDER PAYMENT - WORK PROGRAMME,COO,A4E LTD,2025685884,"15,960"
Department for Work and Pensions,Employment Programmes,08-Jun-12,EP PROVIDER PAYMENT - WORK PROGRAMME,COO,ESG HOLDINGS LIMITED,2025615639,"15,960"
Department for Work and Pensions,Employment Programmes,11-Jun-12,EP PROVIDER PAYMENT - WORK PROGRAMME,COO,ESG HOLDINGS LIMITED,2025619967,"15,960"
Department for Work and Pensions,Employment Programmes,06-Jun-12,EP PROVIDER PAYMENT - WORK PROGRAMME,COO,NEWCASTLE COLLEGE GROUP,2025591122,"15,912"
Department for Work and Pensions,Employment Programmes,08-Jun-12,EP PROVIDER PAYMENT - WORK PROGRAMME,COO,NEWCASTLE COLLEGE GROUP,2025616283,"15,912"
Department for Work and Pensions,Corporate,29-Jun-12,TELEPHONE AND POSTAGE,COO,G3 WORLDWIDE MAIL UK LTD,2025856127,"15,863"
Department for Work and Pensions,Corporate,26-Jun-12,TEMPORARY (TEMP) STAFF COSTS,CIT,CAPITA RESOURCING LTD,2025782988,"15,800"
Department for Work and Pensions,Employment Programmes,11-Jun-12,EP PROVIDER PAYMENT - WORK PROGRAMME,COO,INTERSERVE WORKING FUTURES,2025620205,"15,800"
Department for Work and Pensions,Corporate,26-Jun-12,TEMPORARY (TEMP) STAFF COSTS,Change PMU,CAPITA RESOURCING LTD,2025782988,"15,783"
Department for Work and Pensions,Jobcentre Plus,12-Jun-12,APPS DEV,Change PMU,HP ENTERPRISE SERVICES UK LTD,2025624506,"15,775"
Department for Work and Pensions,Employment Programmes,22-Jun-12,EP PROVIDER PAYMENT - WORK PROGRAMME,COO,PERTEMPS,2025776836,"15,750"
Department for Work and Pensions,Corporate,14-Jun-12,TEMPORARY (TEMP) STAFF COSTS,CIT,CAPITA RESOURCING LTD,2025686290,"15,729"
Department for Work and Pensions,Employment Programmes,06-Jun-12,EP PROVIDER PAYMENT - WORK PROGRAMME,COO,AVANTA ENTERPRISE LTD,2025553622,"15,700"
Department for Work and Pensions,Employment Programmes,28-Jun-12,EP PROVIDER PAYMENT - WORK PROGRAMME,COO,INGEUS UK LTD,2025851523,"15,700"
Department for Work and Pensions,Corporate,29-Jun-12,ACCOMMODATION,COO,TELEREAL TRILLIUM,2025857001,"15,687"
Department for Work and Pensions,Employment Programmes,26-Jun-12,EP PROVIDER PAYMENT - WORK PROGRAMME,COO,INGEUS UK LTD,2025787563,"15,600"
Department for Work and Pensions,Employment Programmes,08-Jun-12,EP PROVIDER PAYMENT - WORK PROGRAMME,COO,INGEUS UK LTD,2025615810,"15,600"
Department for Work and Pensions,Employment Programmes,06-Jun-12,EP PROVIDER PAYMENT - WORK PROGRAMME,COO,SEETEC BUSINESS TECHNOLOGY CENTRE LTD,2025601793,"15,600"
Department for Work and Pensions,Employment Programmes,11-Jun-12,EP PROVIDER PAYMENT - WORK PROGRAMME,COO,SEETEC BUSINESS TECHNOLOGY CENTRE LTD,2025621510,"15,600"
Department for Work and Pensions,Employment Programmes,28-Jun-12,EP PROVIDER PAYMENT - WORK PROGRAMME,COO,WORKING LINKS,2025852870,"15,600"
Department for Work and Pensions,Corporate,01-Jun-12,IS/IT,CIT,HP ENTERPRISE SERVICES UK LTD,2025545986,"15,597"
Department for Work and Pensions,Employment Programmes,28-Jun-12,EP PROVIDER PAYMENT - WORK PROGRAMME,COO,MAXIMUS EMPLOYMENT UK LTD,2025852176,"15,540"
Department for Work and Pensions,Employment Programmes,08-Jun-12,EP PROVIDER PAYMENT - NON-WORK PROGRAMME,COO,INGEUS UK LTD,2025615810,"15,525"
Department for Work and Pensions,Employment Programmes,21-Jun-12,EP PROVIDER PAYMENT - WORK PROGRAMME,COO,A4E LTD,2025768982,"15,500"
Department for Work and Pensions,Employment Programmes,26-Jun-12,EP PROVIDER PAYMENT - WORK PROGRAMME,COO,CAREERS DEVELOPMENT GROUP,2025782993,"15,500"
Department for Work and Pensions,Employment Programmes,11-Jun-12,EP PROVIDER PAYMENT - WORK PROGRAMME,COO,G4S REGIONAL MANAGEMENT UK & I LTD,2025620096,"15,500"
Department for Work and Pensions,Employment Programmes,11-Jun-12,EP PROVIDER PAYMENT - WORK PROGRAMME,COO,MAXIMUS EMPLOYMENT UK LTD,2025620908,"15,500"
Department for Work and Pensions,Employment Programmes,28-Jun-12,EP PROVIDER PAYMENT - WORK PROGRAMME,COO,NEWCASTLE COLLEGE GROUP,2025852262,"15,500"
Department for Work and Pensions,Employment Programmes,06-Jun-12,EP PROVIDER PAYMENT - WORK PROGRAMME,COO,SEETEC BUSINESS TECHNOLOGY CENTRE LTD,2025601793,"15,500"
Department for Work and Pensions,Employment Programmes,14-Jun-12,EP PROVIDER PAYMENT - WORK PROGRAMME,COO,WORKING LINKS,2025690503,"15,500"
Department for Work and Pensions,Corporate,28-Jun-12,TELEPHONE AND POSTAGE,COO,ROYAL MAIL GROUP PLC,2025852501,"15,481"
Department for Work and Pensions,Employment Programmes,28-Jun-12,EP PROVIDER PAYMENT - WORK PROGRAMME,COO,A4E LTD,2025850729,"15,456"
Department for Work and Pensions,Employment Programmes,14-Jun-12,EP PROVIDER PAYMENT - WORK PROGRAMME,COO,A4E LTD,2025685884,"15,400"
Department for Work and Pensions,Employment Programmes,08-Jun-12,EP PROVIDER PAYMENT - WORK PROGRAMME,COO,INGEUS UK LTD,2025615810,"15,400"
Department for Work and Pensions,Employment Programmes,28-Jun-12,EP PROVIDER PAYMENT - WORK PROGRAMME,COO,SEETEC BUSINESS TECHNOLOGY CENTRE LTD,2025852727,"15,400"
Department for Work and Pensions,Employment Programmes,08-Jun-12,EP PROVIDER PAYMENT - WORK PROGRAMME,COO,WORKING LINKS,2025616894,"15,400"
Department for Work and Pensions,Employment Programmes,13-Jun-12,EP PROVIDER PAYMENT - WORK PROGRAMME,COO,REHAB JOBFIT,2025672397,"15,360"
Department for Work and Pensions,Employment Programmes,06-Jun-12,EP PROVIDER PAYMENT - WORK PROGRAMME,COO,A4E LTD,2025553565,"15,300"
Department for Work and Pensions,Employment Programmes,11-Jun-12,EP PROVIDER PAYMENT - WORK PROGRAMME,COO,INGEUS UK LTD,2025620202,"15,300"
Department for Work and Pensions,Employment Programmes,18-Jun-12,EP PROVIDER PAYMENT - WORK PROGRAMME,COO,INGEUS UK LTD,2025699380,"15,300"
Department for Work and Pensions,Employment Programmes,11-Jun-12,EP PROVIDER PAYMENT - WORK PROGRAMME,COO,SEETEC BUSINESS TECHNOLOGY CENTRE LTD,2025621510,"15,300"
Department for Work and Pensions,Employment Programmes,28-Jun-12,EP PROVIDER PAYMENT - WORK PROGRAMME,COO,WORKING LINKS,2025852870,"15,300"
Department for Work and Pensions,Employment Programmes,06-Jun-12,EP PROVIDER PAYMENT - WORK PROGRAMME,COO,INGEUS UK LTD,2025570452,"15,265"
Department for Work and Pensions,Employment Programmes,22-Jun-12,EP PROVIDER PAYMENT - WORK PROGRAMME,COO,WORKING LINKS,2025777619,"15,265"
Department for Work and Pensions,Corporate,19-Jun-12,TEMPORARY (TEMP) STAFF COSTS,CIT,CAPITA RESOURCING LTD,2025702992,"15,238"
Department for Work and Pensions,Employment Programmes,26-Jun-12,EP PROVIDER PAYMENT - WORK PROGRAMME,COO,EOS WORKS LTD,2025787077,"15,100"
Department for Work and Pensions,Employment Programmes,26-Jun-12,EP PROVIDER PAYMENT - WORK PROGRAMME,COO,EOS WORKS LTD,2025787077,"15,100"
Department for Work and Pensions,Employment Programmes,08-Jun-12,EP PROVIDER PAYMENT - WORK PROGRAMME,COO,INGEUS UK LTD,2025615810,"15,100"
Department for Work and Pensions,Corporate,14-Jun-12,COMPUTER SERVICES,CIT,SPECIALIST COMPUTER CENTRES PLC,2025690195,"15,100"
Department for Work and Pensions,Employment Programmes,20-Jun-12,EP PROVIDER PAYMENT - WORK PROGRAMME,COO,INGEUS UK LTD,2025730138,"15,050"
Department for Work and Pensions,Employment Programmes,14-Jun-12,EP PROVIDER PAYMENT - WORK PROGRAMME,COO,A4E LTD,2025685884,"15,000"
Department for Work and Pensions,Employment Programmes,06-Jun-12,EP PROVIDER PAYMENT - WORK PROGRAMME,COO,INGEUS UK LTD,2025570453,"15,000"
Department for Work and Pensions,Employment Programmes,14-Jun-12,EP PROVIDER PAYMENT - WORK PROGRAMME,COO,INGEUS UK LTD,2025688031,"15,000"
Department for Work and Pensions,Employment Programmes,14-Jun-12,EP PROVIDER PAYMENT - WORK PROGRAMME,COO,INTERSERVE WORKING FUTURES,2025688033,"15,000"
Department for Work and Pensions,Employment Programmes,06-Jun-12,EP PROVIDER PAYMENT - WORK PROGRAMME,COO,SEETEC BUSINESS TECHNOLOGY CENTRE LTD,2025601793,"15,000"
Department for Work and Pensions,Employment Programmes,26-Jun-12,EP PROVIDER PAYMENT - WORK PROGRAMME,COO,WORKING LINKS,2025790909,"15,000"
Department for Work and Pensions,Employment Programmes,22-Jun-12,EP PROVIDER PAYMENT - WORK PROGRAMME,COO,INGEUS UK LTD,2025775762,"14,900"
Department for Work and Pensions,Employment Programmes,28-Jun-12,EP PROVIDER PAYMENT - WORK PROGRAMME,COO,SEETEC BUSINESS TECHNOLOGY CENTRE LTD,2025852727,"14,900"
Department for Work and Pensions,Employment Programmes,22-Jun-12,EP PROVIDER PAYMENT - WORK PROGRAMME,COO,WORKING LINKS,2025777619,"14,900"
Department for Work and Pensions,Employment Programmes,06-Jun-12,EP PROVIDER PAYMENT - WORK PROGRAMME,COO,AVANTA ENTERPRISE LTD,2025553622,"14,820"
Department for Work and Pensions,Employment Programmes,08-Jun-12,EP PROVIDER PAYMENT - WORK PROGRAMME,COO,AVANTA ENTERPRISE LTD,2025614559,"14,820"
Department for Work and Pensions,Employment Programmes,08-Jun-12,EP PROVIDER PAYMENT - WORK PROGRAMME,COO,ESG HOLDINGS LIMITED,2025615639,"14,820"
Department for Work and Pensions,Corporate,19-Jun-12,OTHER EXPENDITURE,COO,CAPITA RESOURCING LTD,2025702992,"14,804"
Department for Work and Pensions,Employment Programmes,14-Jun-12,EP PROVIDER PAYMENT - WORK PROGRAMME,COO,INTERSERVE WORKING FUTURES,2025688033,"14,800"
Department for Work and Pensions,Employment Programmes,11-Jun-12,EP PROVIDER PAYMENT - WORK PROGRAMME,COO,ESG HOLDINGS LIMITED,2025619967,"14,750"
Department for Work and Pensions,Employment Programmes,26-Jun-12,EP PROVIDER PAYMENT - WORK PROGRAMME,COO,AVANTA ENTERPRISE LTD,2025782460,"14,700"
Department for Work and Pensions,Employment Programmes,29-Jun-12,EP PROVIDER PAYMENT - WORK PROGRAMME,COO,INGEUS UK LTD,2025856186,"14,700"
Department for Work and Pensions,Employment Programmes,26-Jun-12,EP PROVIDER PAYMENT - WORK PROGRAMME,COO,SEETEC BUSINESS TECHNOLOGY CENTRE LTD,2025790489,"14,700"
Department for Work and Pensions,Corporate,15-Jun-12,COMPUTER SERVICES,COO,HP ENTERPRISE SERVICES UK LTD,2025694207,"14,627"
Department for Work and Pensions,Employment Programmes,19-Jun-12,EP PROVIDER PAYMENT - WORK PROGRAMME,COO,INGEUS UK LTD,2025705547,"14,620"
Department for Work and Pensions,Employment Programmes,06-Jun-12,EP PROVIDER PAYMENT - WORK PROGRAMME,COO,INGEUS UK LTD,2025570452,"14,620"
Department for Work and Pensions,Employment Programmes,14-Jun-12,EP PROVIDER PAYMENT - WORK PROGRAMME,COO,REED IN PARTNERSHIP LTD,2025689755,"14,620"
Department for Work and Pensions,Employment Programmes,21-Jun-12,EP PROVIDER PAYMENT - WORK PROGRAMME,COO,A4E LTD,2025768982,"14,600"
Department for Work and Pensions,Employment Programmes,26-Jun-12,EP PROVIDER PAYMENT - WORK PROGRAMME,COO,G4S REGIONAL MANAGEMENT UK & I LTD,2025787322,"14,600"
Department for Work and Pensions,Employment Programmes,26-Jun-12,EP PROVIDER PAYMENT - WORK PROGRAMME,COO,INGEUS UK LTD,2025787563,"14,600"
Department for Work and Pensions,Employment Programmes,07-Jun-12,EP PROVIDER PAYMENT - WORK PROGRAMME,COO,INGEUS UK LTD,2025610781,"14,600"
Department for Work and Pensions,Employment Programmes,26-Jun-12,EP PROVIDER PAYMENT - WORK PROGRAMME,COO,INTERSERVE WORKING FUTURES,2025787565,"14,600"
Department for Work and Pensions,Employment Programmes,11-Jun-12,EP PROVIDER PAYMENT - WORK PROGRAMME,COO,WORKING LINKS,2025621719,"14,600"
Department for Work and Pensions,Corporate,18-Jun-12,AOS CONTRACTED OUT SERVICES,COO,XEROX UK LTD,2025701121,"14,574"
Department for Work and Pensions,Corporate,15-Jun-12,ACCOMMODATION,COO,TELEREAL TRILLIUM,2025695554,"14,543"
Department for Work and Pensions,Employment Programmes,28-Jun-12,EP PROVIDER PAYMENT - WORK PROGRAMME,COO,ESG HOLDINGS LIMITED,2025851344,"14,500"
Department for Work and Pensions,Employment Programmes,25-Jun-12,EP PROVIDER PAYMENT - WORK PROGRAMME,COO,INGEUS UK LTD,2025779870,"14,500"
Department for Work and Pensions,Corporate,19-Jun-12,TEMPORARY (TEMP) STAFF COSTS,CIT,CAPITA RESOURCING LTD,2025702992,"14,445"
Department for Work and Pensions,Employment Programmes,19-Jun-12,EP PROVIDER PAYMENT - NON-WORK PROGRAMME,COO,JHP GROUP LTD,2025705984,"14,406"
Department for Work and Pensions,Employment Programmes,13-Jun-12,EP PROVIDER PAYMENT - WORK PROGRAMME,COO,A4E LTD,2025631918,"14,400"
Department for Work and Pensions,Employment Programmes,06-Jun-12,EP PROVIDER PAYMENT - WORK PROGRAMME,COO,AVANTA ENTERPRISE LTD,2025553622,"14,400"
Department for Work and Pensions,Employment Programmes,19-Jun-12,EP PROVIDER PAYMENT - WORK PROGRAMME,COO,INGEUS UK LTD,2025705547,"14,400"
Department for Work and Pensions,Employment Programmes,18-Jun-12,EP PROVIDER PAYMENT - WORK PROGRAMME,COO,INGEUS UK LTD,2025699380,"14,400"
Department for Work and Pensions,Employment Programmes,28-Jun-12,EP PROVIDER PAYMENT - WORK PROGRAMME,COO,INGEUS UK LTD,2025851523,"14,400"
Department for Work and Pensions,Employment Programmes,07-Jun-12,EP PROVIDER PAYMENT - WORK PROGRAMME,COO,INGEUS UK LTD,2025610781,"14,400"
Department for Work and Pensions,Employment Programmes,06-Jun-12,EP PROVIDER PAYMENT - WORK PROGRAMME,COO,INGEUS UK LTD,2025570453,"14,400"
Department for Work and Pensions,Employment Programmes,26-Jun-12,EP PROVIDER PAYMENT - WORK PROGRAMME,COO,SEETEC BUSINESS TECHNOLOGY CENTRE LTD,2025790489,"14,400"
Department for Work and Pensions,Employment Programmes,07-Jun-12,EP PROVIDER PAYMENT - WORK PROGRAMME,COO,SEETEC BUSINESS TECHNOLOGY CENTRE LTD,2025612838,"14,400"
Department for Work and Pensions,Employment Programmes,11-Jun-12,EP PROVIDER PAYMENT - WORK PROGRAMME,COO,SEETEC BUSINESS TECHNOLOGY CENTRE LTD,2025621510,"14,400"
Department for Work and Pensions,Employment Programmes,28-Jun-12,EP PROVIDER PAYMENT - WORK PROGRAMME,COO,WORKING LINKS,2025852870,"14,400"
Department for Work and Pensions,Employment Programmes,08-Jun-12,EP PROVIDER PAYMENT - NON-WORK PROGRAMME,COO,INGEUS UK LTD,2025615810,"14,375"
Department for Work and Pensions,Employment Programmes,19-Jun-12,EP PROVIDER PAYMENT - WORK PROGRAMME,COO,A4E LTD,2025702495,"14,352"
Department for Work and Pensions,Employment Programmes,14-Jun-12,EP PROVIDER PAYMENT - WORK PROGRAMME,COO,A4E LTD,2025685884,"14,352"
Department for Work and Pensions,Employment Programmes,11-Jun-12,EP PROVIDER PAYMENT - WORK PROGRAMME,COO,REED IN PARTNERSHIP LTD,2025621264,"14,300"
Department for Work and Pensions,Employment Programmes,11-Jun-12,EP PROVIDER PAYMENT - WORK PROGRAMME,COO,EOS WORKS LTD,2025619965,"14,280"
Department for Work and Pensions,Employment Programmes,07-Jun-12,EP PROVIDER PAYMENT - WORK PROGRAMME,COO,EOS WORKS LTD,2025610444,"14,280"
Department for Work and Pensions,Employment Programmes,11-Jun-12,EP PROVIDER PAYMENT - WORK PROGRAMME,COO,EOS WORKS LTD,2025619965,"14,280"
Department for Work and Pensions,Employment Programmes,28-Jun-12,EP PROVIDER PAYMENT - WORK PROGRAMME,COO,NEWCASTLE COLLEGE GROUP,2025852262,"14,280"
Department for Work and Pensions,Employment Programmes,18-Jun-12,EP PROVIDER PAYMENT - WORK PROGRAMME,COO,INGEUS UK LTD,2025699380,"14,200"
Department for Work and Pensions,Employment Programmes,14-Jun-12,EP PROVIDER PAYMENT - WORK PROGRAMME,COO,SEETEC BUSINESS TECHNOLOGY CENTRE LTD,2025690153,"14,200"
Department for Work and Pensions,Employment Programmes,22-Jun-12,EP PROVIDER PAYMENT - WORK PROGRAMME,COO,WORKING LINKS,2025777619,"14,200"
Department for Work and Pensions,Employment Programmes,19-Jun-12,EP PROVIDER PAYMENT - WORK PROGRAMME,COO,INGEUS UK LTD,2025705547,"14,190"
Department for Work and Pensions,Corporate,07-Jun-12,COMPUTER SERVICES,COO,HP ENTERPRISE SERVICES UK LTD,2025610730,"14,149"
Department for Work and Pensions,Employment Programmes,11-Jun-12,EP PROVIDER PAYMENT - WORK PROGRAMME,COO,JHP GROUP LTD,2025620415,"14,112"
Department for Work and Pensions,Employment Programmes,08-Jun-12,EP PROVIDER PAYMENT - NON-WORK PROGRAMME,COO,WORKING LINKS,2025616894,"14,102"
Department for Work and Pensions,Employment Programmes,28-Jun-12,EP PROVIDER PAYMENT - WORK PROGRAMME,COO,CAREERS DEVELOPMENT GROUP,2025850936,"14,100"
Department for Work and Pensions,Employment Programmes,22-Jun-12,EP PROVIDER PAYMENT - WORK PROGRAMME,COO,G4S REGIONAL MANAGEMENT UK & I LTD,2025775615,"14,100"
Department for Work and Pensions,Employment Programmes,20-Jun-12,EP PROVIDER PAYMENT - WORK PROGRAMME,COO,INGEUS UK LTD,2025730138,"14,100"
Department for Work and Pensions,Employment Programmes,28-Jun-12,EP PROVIDER PAYMENT - WORK PROGRAMME,COO,MAXIMUS EMPLOYMENT UK LTD,2025852176,"14,100"
Department for Work and Pensions,Employment Programmes,06-Jun-12,EP PROVIDER PAYMENT - WORK PROGRAMME,COO,NEWCASTLE COLLEGE GROUP,2025591122,"14,100"
Department for Work and Pensions,Corporate,13-Jun-12,TEMPORARY (TEMP) STAFF COSTS,COO,CAPITA RESOURCING LTD,2025637098,"14,061"
Department for Work and Pensions,Employment Programmes,08-Jun-12,EP PROVIDER PAYMENT - WORK PROGRAMME,COO,NEWCASTLE COLLEGE GROUP,2025616283,"14,040"
Department for Work and Pensions,Employment Programmes,26-Jun-12,EP PROVIDER PAYMENT - WORK PROGRAMME,COO,NEWCASTLE COLLEGE GROUP,2025789296,"14,040"
Department for Work and Pensions,Corporate,28-Jun-12,TELEPHONE AND POSTAGE,COO,ROYAL MAIL GROUP PLC,2025852501,"14,027"
Department for Work and Pensions,Employment Programmes,06-Jun-12,EP PROVIDER PAYMENT - WORK PROGRAMME,COO,AVANTA ENTERPRISE LTD,2025553622,"14,000"
Department for Work and Pensions,Employment Programmes,14-Jun-12,EP PROVIDER PAYMENT - WORK PROGRAMME,COO,REHAB JOBFIT,2025689756,"14,000"
Department for Work and Pensions,Employment Programmes,06-Jun-12,EP PROVIDER PAYMENT - WORK PROGRAMME,COO,REHAB JOBFIT,2025595094,"13,975"
Department for Work and Pensions,Employment Programmes,14-Jun-12,EP PROVIDER PAYMENT - NON-WORK PROGRAMME,COO,INTERSERVE WORKING FUTURES,2025688033,"13,971"
Department for Work and Pensions,Employment Programmes,26-Jun-12,EP PROVIDER PAYMENT - WORK PROGRAMME,COO,AVANTA ENTERPRISE LTD,2025782460,"13,900"
Department for Work and Pensions,Employment Programmes,19-Jun-12,EP PROVIDER PAYMENT - NON-WORK PROGRAMME,COO,SEETEC BUSINESS TECHNOLOGY CENTRE LTD,2025708167,"13,837"
Department for Work and Pensions,Corporate,14-Jun-12,CONTRACTED OUT SERVICES,COO,CAPITA BUSINESS SERVICES LTD,2025686289,"13,821"
Department for Work and Pensions,Employment Programmes,11-Jun-12,EP PROVIDER PAYMENT - WORK PROGRAMME,COO,A4E LTD,2025618460,"13,800"
Department for Work and Pensions,Employment Programmes,18-Jun-12,EP PROVIDER PAYMENT - WORK PROGRAMME,COO,SEETEC BUSINESS TECHNOLOGY CENTRE LTD,2025700865,"13,800"
Department for Work and Pensions,Employment Programmes,26-Jun-12,EP PROVIDER PAYMENT - WORK PROGRAMME,COO,INGEUS UK LTD,2025787563,"13,760"
Department for Work and Pensions,Employment Programmes,19-Jun-12,EP PROVIDER PAYMENT - WORK PROGRAMME,COO,INGEUS UK LTD,2025705547,"13,760"
Department for Work and Pensions,Corporate,28-Jun-12,TELEPHONE AND POSTAGE,COO,ROYAL MAIL GROUP PLC,2025852501,"13,752"
Department for Work and Pensions,Employment Programmes,06-Jun-12,EP PROVIDER PAYMENT - WORK PROGRAMME,COO,SEETEC BUSINESS TECHNOLOGY CENTRE LTD,2025601793,"13,750"
Department for Work and Pensions,Corporate,29-Jun-12,ACCOMMODATION,COO,TELEREAL TRILLIUM,2025857001,"13,740"
Department for Work and Pensions,Employment Programmes,06-Jun-12,EP PROVIDER PAYMENT - WORK PROGRAMME,COO,A4E LTD,2025553565,"13,700"
Department for Work and Pensions,Employment Programmes,26-Jun-12,EP PROVIDER PAYMENT - WORK PROGRAMME,COO,INGEUS UK LTD,2025787563,"13,700"
Department for Work and Pensions,Employment Programmes,22-Jun-12,EP PROVIDER PAYMENT - WORK PROGRAMME,COO,MAXIMUS EMPLOYMENT UK LTD,2025776559,"13,700"
Department for Work and Pensions,Employment Programmes,28-Jun-12,EP PROVIDER PAYMENT - WORK PROGRAMME,COO,REED IN PARTNERSHIP LTD,2025852495,"13,700"
Department for Work and Pensions,Employment Programmes,11-Jun-12,EP PROVIDER PAYMENT - WORK PROGRAMME,COO,REHAB JOBFIT,2025621266,"13,700"
Department for Work and Pensions,Employment Programmes,19-Jun-12,EP PROVIDER PAYMENT - WORK PROGRAMME,COO,A4E LTD,2025702495,"13,680"
Department for Work and Pensions,Employment Programmes,21-Jun-12,EP PROVIDER PAYMENT - WORK PROGRAMME,COO,A4E LTD,2025768982,"13,680"
Department for Work and Pensions,Employment Programmes,06-Jun-12,EP PROVIDER PAYMENT - WORK PROGRAMME,COO,AVANTA ENTERPRISE LTD,2025553622,"13,680"
Department for Work and Pensions,Employment Programmes,08-Jun-12,EP PROVIDER PAYMENT - WORK PROGRAMME,COO,ESG HOLDINGS LIMITED,2025615639,"13,680"
Department for Work and Pensions,Employment Programmes,29-Jun-12,EP PROVIDER PAYMENT - WORK PROGRAMME,COO,REED IN PARTNERSHIP LTD,2025856781,"13,680"
Department for Work and Pensions,Employment Programmes,25-Jun-12,EP PROVIDER PAYMENT - WORK PROGRAMME,COO,CAREERS DEVELOPMENT GROUP,2025779093,"13,600"
Department for Work and Pensions,Employment Programmes,22-Jun-12,EP PROVIDER PAYMENT - WORK PROGRAMME,COO,G4S REGIONAL MANAGEMENT UK & I LTD,2025775615,"13,600"
Department for Work and Pensions,Employment Programmes,14-Jun-12,EP PROVIDER PAYMENT - WORK PROGRAMME,COO,INGEUS UK LTD,2025688031,"13,600"
Department for Work and Pensions,Employment Programmes,06-Jun-12,EP PROVIDER PAYMENT - WORK PROGRAMME,COO,INGEUS UK LTD,2025570452,"13,600"
Department for Work and Pensions,Employment Programmes,25-Jun-12,EP PROVIDER PAYMENT - NON-WORK PROGRAMME,COO,JHP GROUP LTD,2025780045,"13,559"
Department for Work and Pensions,Employment Programmes,11-Jun-12,EP PROVIDER PAYMENT - WORK PROGRAMME,COO,A4E LTD,2025618460,"13,500"
Department for Work and Pensions,Employment Programmes,14-Jun-12,EP PROVIDER PAYMENT - WORK PROGRAMME,COO,AVANTA ENTERPRISE LTD,2025685929,"13,500"
Department for Work and Pensions,Employment Programmes,08-Jun-12,EP PROVIDER PAYMENT - WORK PROGRAMME,COO,G4S REGIONAL MANAGEMENT UK & I LTD,2025615719,"13,500"
Department for Work and Pensions,Employment Programmes,22-Jun-12,EP PROVIDER PAYMENT - WORK PROGRAMME,COO,INGEUS UK LTD,2025775762,"13,500"
Department for Work and Pensions,Employment Programmes,22-Jun-12,EP PROVIDER PAYMENT - WORK PROGRAMME,COO,INGEUS UK LTD,2025775762,"13,500"
Department for Work and Pensions,Employment Programmes,13-Jun-12,EP PROVIDER PAYMENT - WORK PROGRAMME,COO,INGEUS UK LTD,2025647757,"13,500"
Department for Work and Pensions,Employment Programmes,18-Jun-12,EP PROVIDER PAYMENT - WORK PROGRAMME,COO,PERTEMPS,2025700438,"13,500"
Department for Work and Pensions,Employment Programmes,07-Jun-12,EP PROVIDER PAYMENT - WORK PROGRAMME,COO,SEETEC BUSINESS TECHNOLOGY CENTRE LTD,2025612838,"13,500"
Department for Work and Pensions,Housing Benefits,14-Jun-12,Housing Benefit Admin,COO,RUTLAND COUNTY COUNCIL,2025692298,"13,473"
Department for Work and Pensions,Corporate,01-Jun-12,COMPUTER SERVICES,COO,HP ENTERPRISE SERVICES UK LTD,2025545986,"13,462"
Department for Work and Pensions,Employment Programmes,13-Jun-12,EP PROVIDER PAYMENT - WORK PROGRAMME,COO,REHAB JOBFIT,2025672397,"13,440"
Department for Work and Pensions,Employment Programmes,26-Jun-12,EP PROVIDER PAYMENT - WORK PROGRAMME,COO,A4E LTD,2025782397,"13,400"
Department for Work and Pensions,Employment Programmes,26-Jun-12,EP PROVIDER PAYMENT - WORK PROGRAMME,COO,A4E LTD,2025782397,"13,400"
Department for Work and Pensions,Employment Programmes,26-Jun-12,EP PROVIDER PAYMENT - WORK PROGRAMME,COO,NEWCASTLE COLLEGE GROUP,2025789296,"13,400"
Department for Work and Pensions,Employment Programmes,28-Jun-12,EP PROVIDER PAYMENT - NON-WORK PROGRAMME,COO,SHAW TRUST,2025852729,"13,338"
Department for Work and Pensions,Employment Programmes,14-Jun-12,EP PROVIDER PAYMENT - WORK PROGRAMME,COO,A4E LTD,2025685884,"13,300"
Department for Work and Pensions,Employment Programmes,11-Jun-12,EP PROVIDER PAYMENT - WORK PROGRAMME,COO,SEETEC BUSINESS TECHNOLOGY CENTRE LTD,2025621510,"13,300"
Department for Work and Pensions,Employment Programmes,22-Jun-12,EP PROVIDER PAYMENT - WORK PROGRAMME,COO,SEETEC BUSINESS TECHNOLOGY CENTRE LTD,2025777303,"13,300"
Department for Work and Pensions,Employment Programmes,08-Jun-12,EP PROVIDER PAYMENT - WORK PROGRAMME,COO,SEETEC BUSINESS TECHNOLOGY CENTRE LTD,2025616672,"13,260"
Department for Work and Pensions,Employment Programmes,22-Jun-12,EP PROVIDER PAYMENT - WORK PROGRAMME,COO,A4E LTD,2025772962,"13,248"
Department for Work and Pensions,Employment Programmes,18-Jun-12,EP PROVIDER PAYMENT - WORK PROGRAMME,COO,A4E LTD,2025697013,"13,248"
Department for Work and Pensions,Employment Programmes,08-Jun-12,EP PROVIDER PAYMENT - WORK PROGRAMME,COO,A4E LTD,2025614518,"13,248"
Department for Work and Pensions,Employment Programmes,06-Jun-12,EP PROVIDER PAYMENT - WORK PROGRAMME,COO,A4E LTD,2025553565,"13,200"
Department for Work and Pensions,Employment Programmes,22-Jun-12,EP PROVIDER PAYMENT - WORK PROGRAMME,COO,EOS WORKS LTD,2025775463,"13,200"
Department for Work and Pensions,Employment Programmes,28-Jun-12,EP PROVIDER PAYMENT - WORK PROGRAMME,COO,G4S REGIONAL MANAGEMENT UK & I LTD,2025851450,"13,200"
Department for Work and Pensions,Employment Programmes,08-Jun-12,EP PROVIDER PAYMENT - WORK PROGRAMME,COO,INGEUS UK LTD,2025615810,"13,200"
Department for Work and Pensions,Employment Programmes,25-Jun-12,EP PROVIDER PAYMENT - WORK PROGRAMME,COO,INGEUS UK LTD,2025779870,"13,200"
Department for Work and Pensions,Employment Programmes,06-Jun-12,EP PROVIDER PAYMENT - WORK PROGRAMME,COO,INGEUS UK LTD,2025570453,"13,200"
Department for Work and Pensions,Employment Programmes,18-Jun-12,EP PROVIDER PAYMENT - WORK PROGRAMME,COO,INGEUS UK LTD,2025699380,"13,200"
Department for Work and Pensions,Employment Programmes,08-Jun-12,EP PROVIDER PAYMENT - WORK PROGRAMME,COO,INGEUS UK LTD,2025615810,"13,200"
Department for Work and Pensions,Employment Programmes,14-Jun-12,EP PROVIDER PAYMENT - WORK PROGRAMME,COO,SEETEC BUSINESS TECHNOLOGY CENTRE LTD,2025690153,"13,200"
Department for Work and Pensions,Employment Programmes,28-Jun-12,EP PROVIDER PAYMENT - WORK PROGRAMME,COO,WORKING LINKS,2025852870,"13,200"
Department for Work and Pensions,Employment Programmes,26-Jun-12,EP PROVIDER PAYMENT - NON-WORK PROGRAMME,COO,JHP GROUP LTD,2025788038,"13,135"
Department for Work and Pensions,Employment Programmes,11-Jun-12,EP PROVIDER PAYMENT - WORK PROGRAMME,COO,NEWCASTLE COLLEGE GROUP,2025621010,"13,104"
Department for Work and Pensions,Employment Programmes,28-Jun-12,EP PROVIDER PAYMENT - WORK PROGRAMME,COO,AVANTA ENTERPRISE LTD,2025850739,"13,100"
Department for Work and Pensions,Employment Programmes,18-Jun-12,EP PROVIDER PAYMENT - WORK PROGRAMME,COO,AVANTA ENTERPRISE LTD,2025697054,"13,100"
Department for Work and Pensions,Employment Programmes,22-Jun-12,EP PROVIDER PAYMENT - WORK PROGRAMME,COO,AVANTA ENTERPRISE LTD,2025772999,"13,100"
Department for Work and Pensions,Employment Programmes,11-Jun-12,EP PROVIDER PAYMENT - WORK PROGRAMME,COO,AVANTA ENTERPRISE LTD,2025618494,"13,100"
Department for Work and Pensions,Employment Programmes,25-Jun-12,EP PROVIDER PAYMENT - WORK PROGRAMME,COO,INGEUS UK LTD,2025779870,"13,100"
Department for Work and Pensions,Employment Programmes,11-Jun-12,EP PROVIDER PAYMENT - WORK PROGRAMME,COO,INGEUS UK LTD,2025620202,"13,100"
Department for Work and Pensions,Employment Programmes,26-Jun-12,EP PROVIDER PAYMENT - WORK PROGRAMME,COO,MAXIMUS EMPLOYMENT UK LTD,2025789084,"13,100"
Department for Work and Pensions,Corporate,19-Jun-12,OTHER EXPENDITURE,CIT,CAPITA RESOURCING LTD,2025702992,"13,097"
Department for Work and Pensions,Employment Programmes,26-Jun-12,EP PROVIDER PAYMENT - WORK PROGRAMME,COO,G4S REGIONAL MANAGEMENT UK & I LTD,2025787322,"13,090"
Department for Work and Pensions,Jobcentre Plus,07-Jun-12,ACCOMMODATION COSTS,Change PMU,TELEREAL TRILLIUM,2025612998,"13,064"
Department for Work and Pensions,Corporate,28-Jun-12,TELEPHONE AND POSTAGE,COO,ROYAL MAIL GROUP PLC,2025852501,"13,058"
Department for Work and Pensions,Employment Programmes,26-Jun-12,EP PROVIDER PAYMENT - NON-WORK PROGRAMME,COO,WORKING LINKS,2025790909,"13,041"
Department for Work and Pensions,Corporate,28-Jun-12,TELEPHONE AND POSTAGE,COO,ROYAL MAIL GROUP PLC,2025852501,"13,025"
Department for Work and Pensions,Employment Programmes,28-Jun-12,EP PROVIDER PAYMENT - WORK PROGRAMME,COO,A4E LTD,2025850729,"13,000"
Department for Work and Pensions,Employment Programmes,21-Jun-12,EP PROVIDER PAYMENT - WORK PROGRAMME,COO,A4E LTD,2025768982,"13,000"
Department for Work and Pensions,Employment Programmes,26-Jun-12,EP PROVIDER PAYMENT - WORK PROGRAMME,COO,AVANTA ENTERPRISE LTD,2025782460,"13,000"
Department for Work and Pensions,Employment Programmes,28-Jun-12,EP PROVIDER PAYMENT - WORK PROGRAMME,COO,EOS WORKS LTD,2025851343,"13,000"
Department for Work and Pensions,Employment Programmes,26-Jun-12,EP PROVIDER PAYMENT - WORK PROGRAMME,COO,INGEUS UK LTD,2025787563,"13,000"
Department for Work and Pensions,Employment Programmes,06-Jun-12,EP PROVIDER PAYMENT - WORK PROGRAMME,COO,PERTEMPS,2025592695,"13,000"
Department for Work and Pensions,Employment Programmes,08-Jun-12,EP PROVIDER PAYMENT - WORK PROGRAMME,COO,SEETEC BUSINESS TECHNOLOGY CENTRE LTD,2025616672,"13,000"
Department for Work and Pensions,Employment Programmes,19-Jun-12,EP PROVIDER PAYMENT - NON-WORK PROGRAMME,COO,JHP GROUP LTD,2025705984,"12,936"
Department for Work and Pensions,Employment Programmes,26-Jun-12,EP PROVIDER PAYMENT - WORK PROGRAMME,COO,INGEUS UK LTD,2025787563,"12,900"
Department for Work and Pensions,Employment Programmes,14-Jun-12,EP PROVIDER PAYMENT - WORK PROGRAMME,COO,INGEUS UK LTD,2025688031,"12,900"
Department for Work and Pensions,Employment Programmes,29-Jun-12,EP PROVIDER PAYMENT - WORK PROGRAMME,COO,INGEUS UK LTD,2025856186,"12,900"
Department for Work and Pensions,Employment Programmes,07-Jun-12,EP PROVIDER PAYMENT - WORK PROGRAMME,COO,INGEUS UK LTD,2025610781,"12,900"
Department for Work and Pensions,Employment Programmes,22-Jun-12,EP PROVIDER PAYMENT - WORK PROGRAMME,COO,SEETEC BUSINESS TECHNOLOGY CENTRE LTD,2025777303,"12,900"
Department for Work and Pensions,Employment Programmes,28-Jun-12,EP PROVIDER PAYMENT - NON-WORK PROGRAMME,COO,SHAW TRUST,2025852729,"12,881"
Department for Work and Pensions,Employment Programmes,07-Jun-12,EP PROVIDER PAYMENT - WORK PROGRAMME,COO,PERTEMPS,2025612222,"12,816"
Department for Work and Pensions,Employment Programmes,11-Jun-12,EP PROVIDER PAYMENT - WORK PROGRAMME,COO,PERTEMPS,2025621128,"12,816"
Department for Work and Pensions,Employment Programmes,29-Jun-12,EP PROVIDER PAYMENT - WORK PROGRAMME,COO,G4S REGIONAL MANAGEMENT UK & I LTD,2025856128,"12,800"
Department for Work and Pensions,Employment Programmes,28-Jun-12,EP PROVIDER PAYMENT - WORK PROGRAMME,COO,INGEUS UK LTD,2025851523,"12,800"
Department for Work and Pensions,Employment Programmes,28-Jun-12,EP PROVIDER PAYMENT - WORK PROGRAMME,COO,INGEUS UK LTD,2025851523,"12,800"
Department for Work and Pensions,Employment Programmes,06-Jun-12,EP PROVIDER PAYMENT - WORK PROGRAMME,COO,REED IN PARTNERSHIP LTD,2025595092,"12,800"
Department for Work and Pensions,Employment Programmes,14-Jun-12,EP PROVIDER PAYMENT - NON-WORK PROGRAMME,COO,JHP GROUP LTD,2025688397,"12,712"
Department for Work and Pensions,Employment Programmes,26-Jun-12,EP PROVIDER PAYMENT - WORK PROGRAMME,COO,A4E LTD,2025782397,"12,700"
Department for Work and Pensions,Employment Programmes,11-Jun-12,EP PROVIDER PAYMENT - WORK PROGRAMME,COO,A4E LTD,2025618460,"12,700"
Department for Work and Pensions,Employment Programmes,26-Jun-12,EP PROVIDER PAYMENT - WORK PROGRAMME,COO,INGEUS UK LTD,2025787563,"12,700"
Department for Work and Pensions,Employment Programmes,26-Jun-12,EP PROVIDER PAYMENT - WORK PROGRAMME,COO,REED IN PARTNERSHIP LTD,2025789911,"12,700"
Department for Work and Pensions,Employment Programmes,22-Jun-12,EP PROVIDER PAYMENT - WORK PROGRAMME,COO,REED IN PARTNERSHIP LTD,2025776994,"12,700"
Department for Work and Pensions,Employment Programmes,18-Jun-12,EP PROVIDER PAYMENT - WORK PROGRAMME,COO,REHAB JOBFIT,2025700582,"12,700"
Department for Work and Pensions,Employment Programmes,26-Jun-12,EP PROVIDER PAYMENT - WORK PROGRAMME,COO,SEETEC BUSINESS TECHNOLOGY CENTRE LTD,2025790489,"12,700"
Department for Work and Pensions,Employment Programmes,28-Jun-12,EP PROVIDER PAYMENT - NON-WORK PROGRAMME,COO,CDG WISE ABILITY LTD,2025850938,"12,691"
Department for Work and Pensions,Employment Programmes,28-Jun-12,EP PROVIDER PAYMENT - WORK PROGRAMME,COO,G4S REGIONAL MANAGEMENT UK & I LTD,2025851450,"12,685"
Department for Work and Pensions,Employment Programmes,20-Jun-12,EP PROVIDER PAYMENT - WORK PROGRAMME,COO,INGEUS UK LTD,2025730138,"12,685"
Department for Work and Pensions,Employment Programmes,29-Jun-12,EP PROVIDER PAYMENT - WORK PROGRAMME,COO,WORKING LINKS,2025857068,"12,685"
Department for Work and Pensions,Employment Programmes,11-Jun-12,EP PROVIDER PAYMENT - WORK PROGRAMME,COO,CAREERS DEVELOPMENT GROUP,2025618707,"12,600"
Department for Work and Pensions,Employment Programmes,11-Jun-12,EP PROVIDER PAYMENT - WORK PROGRAMME,COO,EOS WORKS LTD,2025619965,"12,600"
Department for Work and Pensions,Employment Programmes,29-Jun-12,EP PROVIDER PAYMENT - WORK PROGRAMME,COO,INGEUS UK LTD,2025856186,"12,600"
Department for Work and Pensions,Employment Programmes,28-Jun-12,EP PROVIDER PAYMENT - WORK PROGRAMME,COO,SEETEC BUSINESS TECHNOLOGY CENTRE LTD,2025852727,"12,600"
Department for Work and Pensions,Employment Programmes,28-Jun-12,EP PROVIDER PAYMENT - WORK PROGRAMME,COO,AVANTA ENTERPRISE LTD,2025850739,"12,540"
Department for Work and Pensions,Employment Programmes,26-Jun-12,EP PROVIDER PAYMENT - WORK PROGRAMME,COO,AVANTA ENTERPRISE LTD,2025782460,"12,540"
Department for Work and Pensions,Employment Programmes,06-Jun-12,EP PROVIDER PAYMENT - WORK PROGRAMME,COO,AVANTA ENTERPRISE LTD,2025553622,"12,540"
Department for Work and Pensions,Employment Programmes,08-Jun-12,EP PROVIDER PAYMENT - WORK PROGRAMME,COO,CAREERS DEVELOPMENT GROUP,2025614741,"12,540"
Department for Work and Pensions,Corporate,22-Jun-12,PROFESSIONAL FEES,COO,THE BIG WORD INTERPRETING SERVICES LTD,2025777472,"12,511"
Department for Work and Pensions,Employment Programmes,28-Jun-12,EP PROVIDER PAYMENT - WORK PROGRAMME,COO,INGEUS UK LTD,2025851523,"12,500"
Department for Work and Pensions,Employment Programmes,11-Jun-12,EP PROVIDER PAYMENT - WORK PROGRAMME,COO,JHP GROUP LTD,2025620415,"12,500"
Department for Work and Pensions,Employment Programmes,28-Jun-12,EP PROVIDER PAYMENT - WORK PROGRAMME,COO,NEWCASTLE COLLEGE GROUP,2025852262,"12,500"
Department for Work and Pensions,Employment Programmes,29-Jun-12,EP PROVIDER PAYMENT - WORK PROGRAMME,COO,WORKING LINKS,2025857068,"12,500"
Department for Work and Pensions,Employment Programmes,28-Jun-12,EP PROVIDER PAYMENT - WORK PROGRAMME,COO,SEETEC BUSINESS TECHNOLOGY CENTRE LTD,2025852727,"12,480"
Department for Work and Pensions,Employment Programmes,26-Jun-12,EP PROVIDER PAYMENT - WORK PROGRAMME,COO,INGEUS UK LTD,2025787563,"12,470"
Department for Work and Pensions,Employment Programmes,21-Jun-12,EP PROVIDER PAYMENT - WORK PROGRAMME,COO,A4E LTD,2025768982,"12,400"
Department for Work and Pensions,Employment Programmes,22-Jun-12,EP PROVIDER PAYMENT - WORK PROGRAMME,COO,INGEUS UK LTD,2025775762,"12,400"
Department for Work and Pensions,Employment Programmes,22-Jun-12,EP PROVIDER PAYMENT - WORK PROGRAMME,COO,AVANTA ENTERPRISE LTD,2025772999,"12,300"
Department for Work and Pensions,Employment Programmes,18-Jun-12,EP PROVIDER PAYMENT - WORK PROGRAMME,COO,INGEUS UK LTD,2025699380,"12,300"
Department for Work and Pensions,Employment Programmes,06-Jun-12,EP PROVIDER PAYMENT - WORK PROGRAMME,COO,INGEUS UK LTD,2025570452,"12,300"
Department for Work and Pensions,Employment Programmes,18-Jun-12,EP PROVIDER PAYMENT - WORK PROGRAMME,COO,INGEUS UK LTD,2025699380,"12,300"
Department for Work and Pensions,Employment Programmes,13-Jun-12,EP PROVIDER PAYMENT - WORK PROGRAMME,COO,INGEUS UK LTD,2025647757,"12,300"
Department for Work and Pensions,Employment Programmes,22-Jun-12,EP PROVIDER PAYMENT - WORK PROGRAMME,COO,INGEUS UK LTD,2025775762,"12,300"
Department for Work and Pensions,Employment Programmes,18-Jun-12,EP PROVIDER PAYMENT - WORK PROGRAMME,COO,INTERSERVE WORKING FUTURES,2025699382,"12,300"
Department for Work and Pensions,Employment Programmes,28-Jun-12,EP PROVIDER PAYMENT - WORK PROGRAMME,COO,SERCO LTD,2025852728,"12,300"
Department for Work and Pensions,Employment Programmes,11-Jun-12,EP PROVIDER PAYMENT - WORK PROGRAMME,COO,SERCO LTD,2025621511,"12,300"
Department for Work and Pensions,Employment Programmes,14-Jun-12,EP PROVIDER PAYMENT - WORK PROGRAMME,COO,A4E LTD,2025685884,"12,255"
Department for Work and Pensions,Employment Programmes,26-Jun-12,EP PROVIDER PAYMENT - WORK PROGRAMME,COO,INGEUS UK LTD,2025787563,"12,255"
Department for Work and Pensions,Employment Programmes,06-Jun-12,EP PROVIDER PAYMENT - WORK PROGRAMME,COO,INTERSERVE WORKING FUTURES,2025554478,"12,255"
Department for Work and Pensions,Employment Programmes,11-Jun-12,EP PROVIDER PAYMENT - WORK PROGRAMME,COO,SERCO LTD,2025621511,"12,250"
Department for Work and Pensions,Employment Programmes,28-Jun-12,EP PROVIDER PAYMENT - WORK PROGRAMME,COO,A4E LTD,2025850729,"12,200"
Department for Work and Pensions,Employment Programmes,20-Jun-12,EP PROVIDER PAYMENT - WORK PROGRAMME,COO,A4E LTD,2025714172,"12,144"
Department for Work and Pensions,Employment Programmes,26-Jun-12,EP PROVIDER PAYMENT - WORK PROGRAMME,COO,A4E LTD,2025782397,"12,144"
Department for Work and Pensions,Employment Programmes,18-Jun-12,EP PROVIDER PAYMENT - WORK PROGRAMME,COO,A4E LTD,2025697013,"12,144"
Department for Work and Pensions,Employment Programmes,21-Jun-12,EP PROVIDER PAYMENT - WORK PROGRAMME,COO,A4E LTD,2025768982,"12,144"
Department for Work and Pensions,Corporate,22-Jun-12,PROFESSIONAL FEES,COO,THE BIG WORD INTERPRETING SERVICES LTD,2025777472,"12,104"
Department for Work and Pensions,Employment Programmes,13-Jun-12,EP PROVIDER PAYMENT - WORK PROGRAMME,COO,A4E LTD,2025631918,"12,100"
Department for Work and Pensions,Employment Programmes,18-Jun-12,EP PROVIDER PAYMENT - WORK PROGRAMME,COO,AVANTA ENTERPRISE LTD,2025697054,"12,100"
Department for Work and Pensions,Employment Programmes,18-Jun-12,EP PROVIDER PAYMENT - WORK PROGRAMME,COO,AVANTA ENTERPRISE LTD,2025697054,"12,100"
Department for Work and Pensions,Employment Programmes,22-Jun-12,EP PROVIDER PAYMENT - WORK PROGRAMME,COO,G4S REGIONAL MANAGEMENT UK & I LTD,2025775615,"12,100"
Department for Work and Pensions,Employment Programmes,28-Jun-12,EP PROVIDER PAYMENT - WORK PROGRAMME,COO,INGEUS UK LTD,2025851523,"12,100"
Department for Work and Pensions,Employment Programmes,26-Jun-12,EP PROVIDER PAYMENT - NON-WORK PROGRAMME,COO,WORKING LINKS,2025790909,"12,032"
Department for Work and Pensions,Corporate,29-Jun-12,ACCOMMODATION,COO,TELEREAL TRILLIUM,2025857001,"12,023"
Department for Work and Pensions,Employment Programmes,26-Jun-12,EP PROVIDER PAYMENT - WORK PROGRAMME,COO,AVANTA ENTERPRISE LTD,2025782460,"12,000"
Department for Work and Pensions,Employment Programmes,26-Jun-12,EP PROVIDER PAYMENT - WORK PROGRAMME,COO,G4S REGIONAL MANAGEMENT UK & I LTD,2025787322,"12,000"
Department for Work and Pensions,Employment Programmes,26-Jun-12,EP PROVIDER PAYMENT - WORK PROGRAMME,COO,G4S REGIONAL MANAGEMENT UK & I LTD,2025787322,"12,000"
Department for Work and Pensions,Employment Programmes,14-Jun-12,EP PROVIDER PAYMENT - WORK PROGRAMME,COO,INGEUS UK LTD,2025688031,"12,000"
Department for Work and Pensions,Employment Programmes,14-Jun-12,EP PROVIDER PAYMENT - WORK PROGRAMME,COO,INGEUS UK LTD,2025688031,"12,000"
Department for Work and Pensions,Employment Programmes,26-Jun-12,EP PROVIDER PAYMENT - WORK PROGRAMME,COO,INGEUS UK LTD,2025787563,"12,000"
Department for Work and Pensions,Employment Programmes,18-Jun-12,EP PROVIDER PAYMENT - WORK PROGRAMME,COO,INGEUS UK LTD,2025699380,"12,000"
Department for Work and Pensions,Employment Programmes,14-Jun-12,EP PROVIDER PAYMENT - WORK PROGRAMME,COO,INGEUS UK LTD,2025688031,"12,000"
Department for Work and Pensions,Employment Programmes,20-Jun-12,EP PROVIDER PAYMENT - WORK PROGRAMME,COO,INGEUS UK LTD,2025730138,"12,000"
Department for Work and Pensions,Employment Programmes,07-Jun-12,EP PROVIDER PAYMENT - WORK PROGRAMME,COO,INGEUS UK LTD,2025610781,"12,000"
Department for Work and Pensions,Employment Programmes,08-Jun-12,EP PROVIDER PAYMENT - WORK PROGRAMME,COO,INGEUS UK LTD,2025615810,"12,000"
Department for Work and Pensions,Employment Programmes,06-Jun-12,EP PROVIDER PAYMENT - WORK PROGRAMME,COO,INGEUS UK LTD,2025570452,"12,000"
Department for Work and Pensions,Employment Programmes,11-Jun-12,EP PROVIDER PAYMENT - WORK PROGRAMME,COO,NEWCASTLE COLLEGE GROUP,2025621010,"12,000"
Department for Work and Pensions,Employment Programmes,26-Jun-12,EP PROVIDER PAYMENT - WORK PROGRAMME,COO,SERCO LTD,2025790493,"12,000"
Department for Work and Pensions,Employment Programmes,14-Jun-12,EP PROVIDER PAYMENT - WORK PROGRAMME,COO,WORKING LINKS,2025690503,"12,000"
Department for Work and Pensions,Employment Programmes,13-Jun-12,EP PROVIDER PAYMENT - WORK PROGRAMME,COO,WORKING LINKS,2025682843,"12,000"
Department for Work and Pensions,Employment Programmes,08-Jun-12,EP PROVIDER PAYMENT - WORK PROGRAMME,COO,WORKING LINKS,2025616894,"12,000"
Department for Work and Pensions,Employment Programmes,22-Jun-12,EP PROVIDER PAYMENT - WORK PROGRAMME,COO,WORKING LINKS,2025777619,"12,000"
Department for Work and Pensions,Employment Programmes,26-Jun-12,EP PROVIDER PAYMENT - WORK PROGRAMME,COO,WORKING LINKS,2025790909,"12,000"
Department for Work and Pensions,Employment Programmes,07-Jun-12,EP PROVIDER PAYMENT - WORK PROGRAMME,COO,WORKING LINKS,2025613156,"12,000"
Department for Work and Pensions,Corporate,22-Jun-12,PROFESSIONAL FEES,COO,THE BIG WORD INTERPRETING SERVICES LTD,2025777472,"11,983"
Department for Work and Pensions,Employment Programmes,29-Jun-12,EP PROVIDER PAYMENT - WORK PROGRAMME,COO,A4E LTD,2025854456,"11,900"
Department for Work and Pensions,Employment Programmes,18-Jun-12,EP PROVIDER PAYMENT - WORK PROGRAMME,COO,A4E LTD,2025697013,"11,900"
Department for Work and Pensions,Employment Programmes,07-Jun-12,EP PROVIDER PAYMENT - WORK PROGRAMME,COO,A4E LTD,2025608677,"11,900"
Department for Work and Pensions,Employment Programmes,11-Jun-12,EP PROVIDER PAYMENT - WORK PROGRAMME,COO,AVANTA ENTERPRISE LTD,2025618494,"11,900"
Department for Work and Pensions,Employment Programmes,18-Jun-12,EP PROVIDER PAYMENT - WORK PROGRAMME,COO,PERTEMPS,2025700438,"11,900"
Department for Work and Pensions,Employment Programmes,28-Jun-12,EP PROVIDER PAYMENT - NON-WORK PROGRAMME,COO,THE PLUSS ORGANISATION,2025852811,"11,831"
Department for Work and Pensions,Employment Programmes,22-Jun-12,EP PROVIDER PAYMENT - WORK PROGRAMME,COO,A4E LTD,2025772962,"11,800"
Department for Work and Pensions,Employment Programmes,20-Jun-12,EP PROVIDER PAYMENT - WORK PROGRAMME,COO,AVANTA ENTERPRISE LTD,2025714235,"11,800"
Department for Work and Pensions,Employment Programmes,06-Jun-12,EP PROVIDER PAYMENT - WORK PROGRAMME,COO,G4S REGIONAL MANAGEMENT UK & I LTD,2025568545,"11,800"
Department for Work and Pensions,Employment Programmes,26-Jun-12,EP PROVIDER PAYMENT - WORK PROGRAMME,COO,PERTEMPS,2025789598,"11,800"
Department for Work and Pensions,Employment Programmes,06-Jun-12,EP PROVIDER PAYMENT - WORK PROGRAMME,COO,SEETEC BUSINESS TECHNOLOGY CENTRE LTD,2025601793,"11,800"
Department for Work and Pensions,Employment Programmes,20-Jun-12,EP PROVIDER PAYMENT - WORK PROGRAMME,COO,SEETEC BUSINESS TECHNOLOGY CENTRE LTD,2025762087,"11,800"
Department for Work and Pensions,Corporate,28-Jun-12,TELEPHONE AND POSTAGE,COO,ROYAL MAIL GROUP PLC,2025852501,"11,798"
Department for Work and Pensions,Employment Programmes,07-Jun-12,EP PROVIDER PAYMENT - WORK PROGRAMME,COO,PERTEMPS,2025612222,"11,748"
Department for Work and Pensions,Employment Programmes,28-Jun-12,EP PROVIDER PAYMENT - WORK PROGRAMME,COO,PERTEMPS,2025852373,"11,748"
Department for Work and Pensions,Employment Programmes,28-Jun-12,EP PROVIDER PAYMENT - WORK PROGRAMME,COO,G4S REGIONAL MANAGEMENT UK & I LTD,2025851450,"11,700"
Department for Work and Pensions,Employment Programmes,07-Jun-12,EP PROVIDER PAYMENT - WORK PROGRAMME,COO,INGEUS UK LTD,2025610781,"11,700"
Department for Work and Pensions,Employment Programmes,19-Jun-12,EP PROVIDER PAYMENT - WORK PROGRAMME,COO,SEETEC BUSINESS TECHNOLOGY CENTRE LTD,2025708167,"11,700"
Department for Work and Pensions,Corporate,28-Jun-12,TELEPHONE AND POSTAGE,COO,ROYAL MAIL GROUP PLC,2025852501,"11,685"
Department for Work and Pensions,Corporate,28-Jun-12,TELEPHONE AND POSTAGE,COO,ROYAL MAIL GROUP PLC,2025852501,"11,680"
Department for Work and Pensions,Employment Programmes,28-Jun-12,EP PROVIDER PAYMENT - NON-WORK PROGRAMME,COO,SHAW TRUST,2025852729,"11,672"
Department for Work and Pensions,Corporate,13-Jun-12,TEMPORARY (TEMP) STAFF COSTS,CIT,CAPITA RESOURCING LTD,2025637098,"11,658"
Department for Work and Pensions,Corporate,22-Jun-12,PROFESSIONAL FEES,COO,THE BIG WORD INTERPRETING SERVICES LTD,2025777472,"11,626"
Department for Work and Pensions,Corporate,28-Jun-12,TELEPHONE AND POSTAGE,COO,ROYAL MAIL GROUP PLC,2025852501,"11,616"
Department for Work and Pensions,Employment Programmes,22-Jun-12,EP PROVIDER PAYMENT - WORK PROGRAMME,COO,JHP GROUP LTD,2025776000,"11,610"
Department for Work and Pensions,Employment Programmes,18-Jun-12,EP PROVIDER PAYMENT - WORK PROGRAMME,COO,A4E LTD,2025697013,"11,600"
Department for Work and Pensions,Employment Programmes,28-Jun-12,EP PROVIDER PAYMENT - WORK PROGRAMME,COO,G4S REGIONAL MANAGEMENT UK & I LTD,2025851450,"11,600"
Department for Work and Pensions,Employment Programmes,18-Jun-12,EP PROVIDER PAYMENT - WORK PROGRAMME,COO,INGEUS UK LTD,2025699380,"11,600"
Department for Work and Pensions,Employment Programmes,14-Jun-12,EP PROVIDER PAYMENT - WORK PROGRAMME,COO,INGEUS UK LTD,2025688031,"11,600"
Department for Work and Pensions,Employment Programmes,29-Jun-12,EP PROVIDER PAYMENT - WORK PROGRAMME,COO,INGEUS UK LTD,2025856186,"11,600"
Department for Work and Pensions,Employment Programmes,08-Jun-12,EP PROVIDER PAYMENT - NON-WORK PROGRAMME,COO,INTERSERVE WORKING FUTURES,2025614629,"11,576"
Department for Work and Pensions,Employment Programmes,26-Jun-12,EP PROVIDER PAYMENT - WORK PROGRAMME,COO,G4S REGIONAL MANAGEMENT UK & I LTD,2025787322,"11,560"
Department for Work and Pensions,Corporate,22-Jun-12,OTHER OPERATING LEASES,COO,INCHCAPE FLEET SOLUTIONS LTD,2025775759,"11,560"
Department for Work and Pensions,Employment Programmes,28-Jun-12,EP PROVIDER PAYMENT - NON-WORK PROGRAMME,COO,WORKING LINKS,2025852870,"11,559"
Department for Work and Pensions,Employment Programmes,14-Jun-12,EP PROVIDER PAYMENT - NON-WORK PROGRAMME,COO,SEETEC BUSINESS TECHNOLOGY CENTRE LTD,2025690153,"11,531"
Department for Work and Pensions,Employment Programmes,13-Jun-12,EP PROVIDER PAYMENT - WORK PROGRAMME,COO,REHAB JOBFIT,2025672397,"11,520"
Department for Work and Pensions,Employment Programmes,08-Jun-12,EP PROVIDER PAYMENT - WORK PROGRAMME,COO,EOS WORKS LTD,2025615637,"11,500"
Department for Work and Pensions,Employment Programmes,11-Jun-12,EP PROVIDER PAYMENT - WORK PROGRAMME,COO,INGEUS UK LTD,2025620202,"11,500"
Department for Work and Pensions,Employment Programmes,28-Jun-12,EP PROVIDER PAYMENT - WORK PROGRAMME,COO,PERTEMPS,2025852373,"11,500"
Department for Work and Pensions,Employment Programmes,11-Jun-12,EP PROVIDER PAYMENT - WORK PROGRAMME,COO,SEETEC BUSINESS TECHNOLOGY CENTRE LTD,2025621510,"11,500"
Department for Work and Pensions,Employment Programmes,07-Jun-12,EP PROVIDER PAYMENT - WORK PROGRAMME,COO,SEETEC BUSINESS TECHNOLOGY CENTRE LTD,2025612838,"11,500"
Department for Work and Pensions,Employment Programmes,26-Jun-12,EP PROVIDER PAYMENT - WORK PROGRAMME,COO,WORKING LINKS,2025790909,"11,500"
Department for Work and Pensions,Employment Programmes,19-Jun-12,EP PROVIDER PAYMENT - WORK PROGRAMME,COO,WORKING LINKS,2025708549,"11,500"
Department for Work and Pensions,Employment Programmes,11-Jun-12,EP PROVIDER PAYMENT - WORK PROGRAMME,COO,WORKING LINKS,2025621719,"11,500"
Department for Work and Pensions,Corporate,22-Jun-12,OTHER OPERATING LEASES,COO,INCHCAPE FLEET SOLUTIONS LTD,2025775759,"11,462"
Department for Work and Pensions,Corporate,14-Jun-12,TEMPORARY (TEMP) STAFF COSTS,CIT,CAPITA RESOURCING LTD,2025686290,"11,460"
Department for Work and Pensions,Housing Benefits,14-Jun-12,Housing Benefit Admin,COO,CORPORATION OF LONDON,2025692101,"11,434"
Department for Work and Pensions,Corporate,28-Jun-12,TELEPHONE AND POSTAGE,COO,ROYAL MAIL GROUP PLC,2025852501,"11,422"
Department for Work and Pensions,Employment Programmes,25-Jun-12,EP PROVIDER PAYMENT - WORK PROGRAMME,COO,A4E LTD,2025778884,"11,400"
Department for Work and Pensions,Employment Programmes,22-Jun-12,EP PROVIDER PAYMENT - WORK PROGRAMME,COO,A4E LTD,2025772962,"11,400"
Department for Work and Pensions,Employment Programmes,08-Jun-12,EP PROVIDER PAYMENT - WORK PROGRAMME,COO,AVANTA ENTERPRISE LTD,2025614559,"11,400"
Department for Work and Pensions,Employment Programmes,28-Jun-12,EP PROVIDER PAYMENT - WORK PROGRAMME,COO,AVANTA ENTERPRISE LTD,2025850739,"11,400"
Department for Work and Pensions,Employment Programmes,28-Jun-12,EP PROVIDER PAYMENT - WORK PROGRAMME,COO,ESG HOLDINGS LIMITED,2025851344,"11,400"
Department for Work and Pensions,Employment Programmes,28-Jun-12,EP PROVIDER PAYMENT - WORK PROGRAMME,COO,ESG HOLDINGS LIMITED,2025851344,"11,400"
Department for Work and Pensions,Employment Programmes,28-Jun-12,EP PROVIDER PAYMENT - WORK PROGRAMME,COO,G4S REGIONAL MANAGEMENT UK & I LTD,2025851450,"11,400"
Department for Work and Pensions,Employment Programmes,28-Jun-12,EP PROVIDER PAYMENT - WORK PROGRAMME,COO,INGEUS UK LTD,2025851523,"11,400"
Department for Work and Pensions,Employment Programmes,28-Jun-12,EP PROVIDER PAYMENT - WORK PROGRAMME,COO,INGEUS UK LTD,2025851523,"11,400"
Department for Work and Pensions,Employment Programmes,29-Jun-12,EP PROVIDER PAYMENT - WORK PROGRAMME,COO,INGEUS UK LTD,2025856186,"11,400"
Department for Work and Pensions,Employment Programmes,28-Jun-12,EP PROVIDER PAYMENT - WORK PROGRAMME,COO,REED IN PARTNERSHIP LTD,2025852495,"11,400"
Department for Work and Pensions,Employment Programmes,26-Jun-12,EP PROVIDER PAYMENT - WORK PROGRAMME,COO,REHAB JOBFIT,2025789913,"11,400"
Department for Work and Pensions,Employment Programmes,22-Jun-12,EP PROVIDER PAYMENT - WORK PROGRAMME,COO,SEETEC BUSINESS TECHNOLOGY CENTRE LTD,2025777303,"11,400"
Department for Work and Pensions,Employment Programmes,06-Jun-12,EP PROVIDER PAYMENT - WORK PROGRAMME,COO,SERCO LTD,2025601795,"11,400"
Department for Work and Pensions,Employment Programmes,08-Jun-12,EP PROVIDER PAYMENT - WORK PROGRAMME,COO,A4E LTD,2025614518,"11,300"
Department for Work and Pensions,Employment Programmes,20-Jun-12,EP PROVIDER PAYMENT - WORK PROGRAMME,COO,INGEUS UK LTD,2025730138,"11,300"
Department for Work and Pensions,Corporate,11-Jun-12,APPS DEV,COO,HP ENTERPRISE SERVICES UK LTD,2025620165,"11,288"
Department for Work and Pensions,Employment Programmes,26-Jun-12,EP PROVIDER PAYMENT - NON-WORK PROGRAMME,COO,WORKING LINKS,2025790909,"11,282"
Department for Work and Pensions,Employment Programmes,06-Jun-12,EP PROVIDER PAYMENT - WORK PROGRAMME,COO,NEWCASTLE COLLEGE GROUP,2025591122,"11,232"
Department for Work and Pensions,Employment Programmes,06-Jun-12,EP PROVIDER PAYMENT - WORK PROGRAMME,COO,EOS WORKS LTD,2025566353,"11,220"
Department for Work and Pensions,Employment Programmes,26-Jun-12,EP PROVIDER PAYMENT - WORK PROGRAMME,COO,EOS WORKS LTD,2025787077,"11,220"
Department for Work and Pensions,Employment Programmes,25-Jun-12,EP PROVIDER PAYMENT - WORK PROGRAMME,COO,INTERSERVE WORKING FUTURES,2025779871,"11,220"
Department for Work and Pensions,Employment Programmes,28-Jun-12,EP PROVIDER PAYMENT - WORK PROGRAMME,COO,A4E LTD,2025850729,"11,200"
Department for Work and Pensions,Employment Programmes,14-Jun-12,EP PROVIDER PAYMENT - WORK PROGRAMME,COO,INGEUS UK LTD,2025688031,"11,200"
Department for Work and Pensions,Employment Programmes,22-Jun-12,EP PROVIDER PAYMENT - WORK PROGRAMME,COO,INGEUS UK LTD,2025775762,"11,200"
Department for Work and Pensions,Employment Programmes,26-Jun-12,EP PROVIDER PAYMENT - WORK PROGRAMME,COO,INGEUS UK LTD,2025787563,"11,180"
Department for Work and Pensions,Employment Programmes,07-Jun-12,EP PROVIDER PAYMENT - WORK PROGRAMME,COO,INGEUS UK LTD,2025610781,"11,180"
Department for Work and Pensions,Corporate,28-Jun-12,TELEPHONE AND POSTAGE,COO,ROYAL MAIL GROUP PLC,2025852501,"11,108"
Department for Work and Pensions,Employment Programmes,14-Jun-12,EP PROVIDER PAYMENT - WORK PROGRAMME,COO,AVANTA ENTERPRISE LTD,2025685929,"11,100"
Department for Work and Pensions,Employment Programmes,22-Jun-12,EP PROVIDER PAYMENT - WORK PROGRAMME,COO,EOS WORKS LTD,2025775463,"11,100"
Department for Work and Pensions,Employment Programmes,11-Jun-12,EP PROVIDER PAYMENT - WORK PROGRAMME,COO,INGEUS UK LTD,2025620202,"11,100"
Department for Work and Pensions,Employment Programmes,11-Jun-12,EP PROVIDER PAYMENT - WORK PROGRAMME,COO,MAXIMUS EMPLOYMENT UK LTD,2025620908,"11,100"
Department for Work and Pensions,Employment Programmes,25-Jun-12,EP PROVIDER PAYMENT - WORK PROGRAMME,COO,MAXIMUS EMPLOYMENT UK LTD,2025780467,"11,100"
Department for Work and Pensions,Employment Programmes,18-Jun-12,EP PROVIDER PAYMENT - WORK PROGRAMME,COO,REHAB JOBFIT,2025700582,"11,100"
Department for Work and Pensions,Employment Programmes,22-Jun-12,EP PROVIDER PAYMENT - WORK PROGRAMME,COO,SERCO LTD,2025777307,"11,100"
Department for Work and Pensions,Employment Programmes,28-Jun-12,EP PROVIDER PAYMENT - WORK PROGRAMME,COO,WORKING LINKS,2025852870,"11,100"
Department for Work and Pensions,Housing Benefits,14-Jun-12,Housing Benefit Admin,COO,ORKNEY ISLANDS COUNCIL,2025692267,"11,041"
Department for Work and Pensions,Employment Programmes,20-Jun-12,EP PROVIDER PAYMENT - WORK PROGRAMME,COO,A4E LTD,2025714172,"11,040"
Department for Work and Pensions,Corporate,28-Jun-12,TELEPHONE AND POSTAGE,COO,ROYAL MAIL GROUP PLC,2025852501,"11,018"
Department for Work and Pensions,Employment Programmes,13-Jun-12,EP PROVIDER PAYMENT - WORK PROGRAMME,COO,A4E LTD,2025631918,"11,000"
Department for Work and Pensions,Employment Programmes,18-Jun-12,EP PROVIDER PAYMENT - WORK PROGRAMME,COO,INGEUS UK LTD,2025699380,"11,000"
Department for Work and Pensions,Employment Programmes,14-Jun-12,EP PROVIDER PAYMENT - WORK PROGRAMME,COO,REED IN PARTNERSHIP LTD,2025689755,"11,000"
Department for Work and Pensions,Corporate,22-Jun-12,PROFESSIONAL FEES,COO,THE BIG WORD INTERPRETING SERVICES LTD,2025777472,"10,994"
Department for Work and Pensions,Employment Programmes,22-Jun-12,EP PROVIDER PAYMENT - WORK PROGRAMME,COO,AVANTA ENTERPRISE LTD,2025772999,"10,965"
Department for Work and Pensions,Corporate,28-Jun-12,TELEPHONE AND POSTAGE,COO,ROYAL MAIL GROUP PLC,2025852501,"10,937"
Department for Work and Pensions,Employment Programmes,29-Jun-12,EP PROVIDER PAYMENT - WORK PROGRAMME,COO,SEETEC BUSINESS TECHNOLOGY CENTRE LTD,2025856939,"10,920"
Department for Work and Pensions,Employment Programmes,18-Jun-12,EP PROVIDER PAYMENT - WORK PROGRAMME,COO,A4E LTD,2025697013,"10,900"
Department for Work and Pensions,Employment Programmes,08-Jun-12,EP PROVIDER PAYMENT - WORK PROGRAMME,COO,A4E LTD,2025614518,"10,900"
Department for Work and Pensions,Employment Programmes,26-Jun-12,EP PROVIDER PAYMENT - WORK PROGRAMME,COO,AVANTA ENTERPRISE LTD,2025782460,"10,900"
Department for Work and Pensions,Employment Programmes,11-Jun-12,EP PROVIDER PAYMENT - WORK PROGRAMME,COO,AVANTA ENTERPRISE LTD,2025618494,"10,900"
Department for Work and Pensions,Employment Programmes,08-Jun-12,EP PROVIDER PAYMENT - WORK PROGRAMME,COO,INGEUS UK LTD,2025615810,"10,900"
Department for Work and Pensions,Employment Programmes,22-Jun-12,EP PROVIDER PAYMENT - WORK PROGRAMME,COO,INGEUS UK LTD,2025775762,"10,900"
Department for Work and Pensions,Employment Programmes,22-Jun-12,EP PROVIDER PAYMENT - WORK PROGRAMME,COO,INGEUS UK LTD,2025775762,"10,900"
Department for Work and Pensions,Employment Programmes,06-Jun-12,EP PROVIDER PAYMENT - WORK PROGRAMME,COO,REHAB JOBFIT,2025595094,"10,900"
Department for Work and Pensions,Employment Programmes,07-Jun-12,EP PROVIDER PAYMENT - WORK PROGRAMME,COO,SEETEC BUSINESS TECHNOLOGY CENTRE LTD,2025612838,"10,900"
Department for Work and Pensions,Employment Programmes,07-Jun-12,EP PROVIDER PAYMENT - WORK PROGRAMME,COO,WORKING LINKS,2025613156,"10,900"
Department for Work and Pensions,Employment Programmes,06-Jun-12,EP PROVIDER PAYMENT - WORK PROGRAMME,COO,WORKING LINKS,2025605516,"10,900"
Department for Work and Pensions,Employment Programmes,11-Jun-12,EP PROVIDER PAYMENT - WORK PROGRAMME,COO,A4E LTD,2025618460,"10,800"
Department for Work and Pensions,Employment Programmes,18-Jun-12,EP PROVIDER PAYMENT - WORK PROGRAMME,COO,AVANTA ENTERPRISE LTD,2025697054,"10,800"
Department for Work and Pensions,Employment Programmes,28-Jun-12,EP PROVIDER PAYMENT - WORK PROGRAMME,COO,EOS WORKS LTD,2025851343,"10,800"
Department for Work and Pensions,Employment Programmes,25-Jun-12,EP PROVIDER PAYMENT - WORK PROGRAMME,COO,G4S REGIONAL MANAGEMENT UK & I LTD,2025779784,"10,800"
Department for Work and Pensions,Employment Programmes,25-Jun-12,EP PROVIDER PAYMENT - WORK PROGRAMME,COO,G4S REGIONAL MANAGEMENT UK & I LTD,2025779784,"10,800"
Department for Work and Pensions,Employment Programmes,25-Jun-12,EP PROVIDER PAYMENT - WORK PROGRAMME,COO,G4S REGIONAL MANAGEMENT UK & I LTD,2025779784,"10,800"
Department for Work and Pensions,Employment Programmes,29-Jun-12,EP PROVIDER PAYMENT - WORK PROGRAMME,COO,INGEUS UK LTD,2025856186,"10,800"
Department for Work and Pensions,Employment Programmes,26-Jun-12,EP PROVIDER PAYMENT - WORK PROGRAMME,COO,INGEUS UK LTD,2025787563,"10,800"
Department for Work and Pensions,Employment Programmes,11-Jun-12,EP PROVIDER PAYMENT - WORK PROGRAMME,COO,INGEUS UK LTD,2025620202,"10,800"
Department for Work and Pensions,Employment Programmes,08-Jun-12,EP PROVIDER PAYMENT - WORK PROGRAMME,COO,INGEUS UK LTD,2025615810,"10,800"
Department for Work and Pensions,Employment Programmes,26-Jun-12,EP PROVIDER PAYMENT - WORK PROGRAMME,COO,INGEUS UK LTD,2025787563,"10,800"
Department for Work and Pensions,Employment Programmes,26-Jun-12,EP PROVIDER PAYMENT - WORK PROGRAMME,COO,INGEUS UK LTD,2025787563,"10,800"
Department for Work and Pensions,Employment Programmes,08-Jun-12,EP PROVIDER PAYMENT - WORK PROGRAMME,COO,INGEUS UK LTD,2025615810,"10,800"
Department for Work and Pensions,Employment Programmes,11-Jun-12,EP PROVIDER PAYMENT - WORK PROGRAMME,COO,MAXIMUS EMPLOYMENT UK LTD,2025620908,"10,800"
Department for Work and Pensions,Employment Programmes,28-Jun-12,EP PROVIDER PAYMENT - WORK PROGRAMME,COO,MAXIMUS EMPLOYMENT UK LTD,2025852176,"10,800"
Department for Work and Pensions,Employment Programmes,11-Jun-12,EP PROVIDER PAYMENT - WORK PROGRAMME,COO,MAXIMUS EMPLOYMENT UK LTD,2025620908,"10,800"
Department for Work and Pensions,Employment Programmes,11-Jun-12,EP PROVIDER PAYMENT - WORK PROGRAMME,COO,PERTEMPS,2025621128,"10,800"
Department for Work and Pensions,Employment Programmes,18-Jun-12,EP PROVIDER PAYMENT - WORK PROGRAMME,COO,SEETEC BUSINESS TECHNOLOGY CENTRE LTD,2025700865,"10,800"
Department for Work and Pensions,Employment Programmes,20-Jun-12,EP PROVIDER PAYMENT - WORK PROGRAMME,COO,SEETEC BUSINESS TECHNOLOGY CENTRE LTD,2025762087,"10,800"
Department for Work and Pensions,Employment Programmes,26-Jun-12,EP PROVIDER PAYMENT - WORK PROGRAMME,COO,SERCO LTD,2025790493,"10,800"
Department for Work and Pensions,Employment Programmes,29-Jun-12,EP PROVIDER PAYMENT - WORK PROGRAMME,COO,WORKING LINKS,2025857068,"10,800"
Department for Work and Pensions,Employment Programmes,19-Jun-12,EP PROVIDER PAYMENT - WORK PROGRAMME,COO,WORKING LINKS,2025708549,"10,800"
